Workbook

Sheet Historical
A1: From 2022-12-29 Sites Historical WAA Tool
B6: Including Face Value Demands | E6: No Face Value Demands
A7: Date | B7: TCC Diversion | C7: GCID Diversion | D7: Total Diversion | E7: TCC Diversion | F7: GCID Diversion | G7: Total Diversion
A8: 2000-01-01 | B8: 0 | C8: 0 | D8: 0 | E8: 0 | F8: 0 | G8: 0
A9: 2000-01-02 | B9: 0 | C9: 0 | D9: 0 | E9: 0 | F9: 0 | G9: 0
A10: 2000-01-03 | B10: 0 | C10: 0 | D10: 0 | E10: 0 | F10: 0 | G10: 0
A11: 2000-01-04 | B11: 0 | C11: 0 | D11: 0 | E11: 0 | F11: 0 | G11: 0
A12: 2000-01-05 | B12: 0 | C12: 0 | D12: 0 | E12: 0 | F12: 0 | G12: 0
A13: 2000-01-06 | B13: 0 | C13: 0 | D13: 0 | E13: 0 | F13: 0 | G13: 0
A14: 2000-01-07 | B14: 0 | C14: 0 | D14: 0 | E14: 0 | F14: 0 | G14: 0
A15: 2000-01-08 | B15: 0 | C15: 0 | D15: 0 | E15: 0 | F15: 0 | G15: 0
A16: 2000-01-09 | B16: 0 | C16: 0 | D16: 0 | E16: 0 | F16: 0 | G16: 0
A17: 2000-01-10 | B17: 0 | C17: 0 | D17: 0 | E17: 0 | F17: 0 | G17: 0
A18: 2000-01-11 | B18: 0 | C18: 0 | D18: 0 | E18: 0 | F18: 0 | G18: 0
A19: 2000-01-12 | B19: 0 | C19: 0 | D19: 0 | E19: 0 | F19: 0 | G19: 0
A20: 2000-01-13 | B20: 0 | C20: 0 | D20: 0 | E20: 0 | F20: 0 | G20: 0
A21: 2000-01-14 | B21: 0 | C21: 0 | D21: 0 | E21: 0 | F21: 0 | G21: 0
A22: 2000-01-15 | B22: 0 | C22: 0 | D22: 0 | E22: 0 | F22: 0 | G22: 0
A23: 2000-01-16 | B23: 0 | C23: 0 | D23: 0 | E23: 0 | F23: 0 | G23: 0
A24: 2000-01-17 | B24: 0 | C24: 0 | D24: 0 | E24: 0 | F24: 0 | G24: 0
A25: 2000-01-18 | B25: 0 | C25: 0 | D25: 0 | E25: 0 | F25: 0 | G25: 0
A26: 2000-01-19 | B26: 0 | C26: 0 | D26: 0 | E26: 0 | F26: 0 | G26: 0
A27: 2000-01-20 | B27: 0 | C27: 0 | D27: 0 | E27: 0 | F27: 0 | G27: 0
A28: 2000-01-21 | B28: 0 | C28: 0 | D28: 0 | E28: 0 | F28: 0 | G28: 0
A29: 2000-01-22 | B29: 0 | C29: 0 | D29: 0 | E29: 0 | F29: 0 | G29: 0
A30: 2000-01-23 | B30: 0 | C30: 0 | D30: 0 | E30: 0 | F30: 0 | G30: 0
A31: 2000-01-24 | B31: 0 | C31: 0 | D31: 0 | E31: 0 | F31: 0 | G31: 0
A32: 2000-01-25 | B32: 0 | C32: 0 | D32: 0 | E32: 0 | F32: 0 | G32: 0
A33: 2000-01-26 | B33: 541.1239532 | C33: 0 | D33: 541.1239532 | E33: 2200 | F33: 2000 | G33: 4200
A34: 2000-01-27 | B34: 2147.685207 | C34: 0 | D34: 2147.685207 | E34: 2200 | F34: 2000 | G34: 4200
A35: 2000-01-28 | B35: 2200 | C35: 1384.527799 | D35: 3584.527799 | E35: 2200 | F35: 2000 | G35: 4200
A36: 2000-01-29 | B36: 2200 | C36: 2000 | D36: 4200 | E36: 2200 | F36: 2000 | G36: 4200
A37: 2000-01-30 | B37: 2200 | C37: 2000 | D37: 4200 | E37: 2200 | F37: 2000 | G37: 4200
A38: 2000-01-31 | B38: 2200 | C38: 2000 | D38: 4200 | E38: 2200 | F38: 2000 | G38: 4200
A39: 2000-02-01 | B39: 228.8994304 | C39: 0 | D39: 228.8994304 | E39: 2200 | F39: 2000 | G39: 4200
A40: 2000-02-02 | B40: 1820.161335 | C40: 0 | D40: 1820.161335 | E40: 2200 | F40: 2000 | G40: 4200
A41: 2000-02-03 | B41: 2200 | C41: 1182.613716 | D41: 3382.613716 | E41: 2200 | F41: 2000 | G41: 4200
A42: 2000-02-04 | B42: 2200 | C42: 2000 | D42: 4200 | E42: 2200 | F42: 2000 | G42: 4200
A43: 2000-02-05 | B43: 2200 | C43: 2000 | D43: 4200 | E43: 2200 | F43: 2000 | G43: 4200
A44: 2000-02-06 | B44: 2200 | C44: 2000 | D44: 4200 | E44: 2200 | F44: 2000 | G44: 4200
A45: 2000-02-07 | B45: 2200 | C45: 2000 | D45: 4200 | E45: 2200 | F45: 2000 | G45: 4200
A46: 2000-02-08 | B46: 2200 | C46: 2000 | D46: 4200 | E46: 2200 | F46: 2000 | G46: 4200
A47: 2000-02-09 | B47: 2200 | C47: 2000 | D47: 4200 | E47: 2200 | F47: 2000 | G47: 4200
A48: 2000-02-10 | B48: 2200 | C48: 2000 | D48: 4200 | E48: 2200 | F48: 2000 | G48: 4200
A49: 2000-02-11 | B49: 2200 | C49: 2000 | D49: 4200 | E49: 2200 | F49: 2000 | G49: 4200
A50: 2000-02-12 | B50: 2200 | C50: 2000 | D50: 4200 | E50: 2200 | F50: 2000 | G50: 4200
A51: 2000-02-13 | B51: 2200 | C51: 2000 | D51: 4200 | E51: 2200 | F51: 2000 | G51: 4200
A52: 2000-02-14 | B52: 2200 | C52: 2000 | D52: 4200 | E52: 2200 | F52: 2000 | G52: 4200
A53: 2000-02-15 | B53: 2200 | C53: 2000 | D53: 4200 | E53: 2200 | F53: 2000 | G53: 4200
A54: 2000-02-16 | B54: 2200 | C54: 2000 | D54: 4200 | E54: 2200 | F54: 2000 | G54: 4200
A55: 2000-02-17 | B55: 2200 | C55: 2000 | D55: 4200 | E55: 2200 | F55: 2000 | G55: 4200
A56: 2000-02-18 | B56: 2200 | C56: 2000 | D56: 4200 | E56: 2200 | F56: 2000 | G56: 4200
A57: 2000-02-19 | B57: 2200 | C57: 2000 | D57: 4200 | E57: 2200 | F57: 2000 | G57: 4200
A58: 2000-02-20 | B58: 2200 | C58: 2000 | D58: 4200 | E58: 2200 | F58: 2000 | G58: 4200
A59: 2000-02-21 | B59: 2200 | C59: 2000 | D59: 4200 | E59: 2200 | F59: 2000 | G59: 4200
A60: 2000-02-22 | B60: 2200 | C60: 2000 | D60: 4200 | E60: 2200 | F60: 2000 | G60: 4200
A61: 2000-02-23 | B61: 2200 | C61: 2000 | D61: 4200 | E61: 2200 | F61: 2000 | G61: 4200
A62: 2000-02-24 | B62: 2200 | C62: 2000 | D62: 4200 | E62: 2200 | F62: 2000 | G62: 4200
A63: 2000-02-25 | B63: 2200 | C63: 2000 | D63: 4200 | E63: 2200 | F63: 2000 | G63: 4200
A64: 2000-02-26 | B64: 2200 | C64: 2000 | D64: 4200 | E64: 2200 | F64: 2000 | G64: 4200
A65: 2000-02-27 | B65: 2200 | C65: 2000 | D65: 4200 | E65: 2200 | F65: 2000 | G65: 4200
A66: 2000-02-28 | B66: 2200 | C66: 2000 | D66: 4200 | E66: 2200 | F66: 2000 | G66: 4200
A67: 2000-02-29 | B67: 2200 | C67: 2000 | D67: 4200 | E67: 2200 | F67: 2000 | G67: 4200
A68: 2000-03-01 | B68: 2200 | C68: 2000 | D68: 4200 | E68: 2200 | F68: 2000 | G68: 4200
A69: 2000-03-02 | B69: 2200 | C69: 2000 | D69: 4200 | E69: 2200 | F69: 2000 | G69: 4200
A70: 2000-03-03 | B70: 2200 | C70: 2000 | D70: 4200 | E70: 2200 | F70: 2000 | G70: 4200
A71: 2000-03-04 | B71: 2200 | C71: 2000 | D71: 4200 | E71: 2200 | F71: 2000 | G71: 4200
A72: 2000-03-05 | B72: 2200 | C72: 2000 | D72: 4200 | E72: 2200 | F72: 2000 | G72: 4200
A73: 2000-03-06 | B73: 2200 | C73: 2000 | D73: 4200 | E73: 2200 | F73: 2000 | G73: 4200
A74: 2000-03-07 | B74: 2200 | C74: 2000 | D74: 4200 | E74: 2200 | F74: 2000 | G74: 4200
A75: 2000-03-08 | B75: 2200 | C75: 2000 | D75: 4200 | E75: 2200 | F75: 2000 | G75: 4200
A76: 2000-03-09 | B76: 2200 | C76: 2000 | D76: 4200 | E76: 2200 | F76: 2000 | G76: 4200
A77: 2000-03-10 | B77: 2200 | C77: 2000 | D77: 4200 | E77: 2200 | F77: 2000 | G77: 4200
A78: 2000-03-11 | B78: 2200 | C78: 2000 | D78: 4200 | E78: 2200 | F78: 2000 | G78: 4200
A79: 2000-03-12 | B79: 2200 | C79: 2000 | D79: 4200 | E79: 2200 | F79: 2000 | G79: 4200
A80: 2000-03-13 | B80: 2200 | C80: 2000 | D80: 4200 | E80: 2200 | F80: 2000 | G80: 4200
A81: 2000-03-14 | B81: 2200 | C81: 2000 | D81: 4200 | E81: 2200 | F81: 2000 | G81: 4200
A82: 2000-03-15 | B82: 2200 | C82: 2000 | D82: 4200 | E82: 2200 | F82: 2000 | G82: 4200
A83: 2000-03-16 | B83: 2200 | C83: 2000 | D83: 4200 | E83: 2200 | F83: 2000 | G83: 4200
A84: 2000-03-17 | B84: 2200 | C84: 2000 | D84: 4200 | E84: 2200 | F84: 2000 | G84: 4200
A85: 2000-03-18 | B85: 2200 | C85: 2000 | D85: 4200 | E85: 2200 | F85: 2000 | G85: 4200
A86: 2000-03-19 | B86: 2200 | C86: 2000 | D86: 4200 | E86: 2200 | F86: 2000 | G86: 4200
A87: 2000-03-20 | B87: 2200 | C87: 2000 | D87: 4200 | E87: 2200 | F87: 2000 | G87: 4200
A88: 2000-03-21 | B88: 2200 | C88: 2000 | D88: 4200 | E88: 2200 | F88: 2000 | G88: 4200
A89: 2000-03-22 | B89: 2200 | C89: 1859.229676 | D89: 4059.229676 | E89: 2200 | F89: 2000 | G89: 4200
A90: 2000-03-23 | B90: 2200 | C90: 459.229676 | D90: 2659.229676 | E90: 2200 | F90: 2000 | G90: 4200
A91: 2000-03-24 | B91: 1559.229676 | C91: 0 | D91: 1559.229676 | E91: 2200 | F91: 2000 | G91: 4200
A92: 2000-03-25 | B92: 1059.229676 | C92: 0 | D92: 1059.229676 | E92: 2200 | F92: 2000 | G92: 4200
A93: 2000-03-26 | B93: 659.229676 | C93: 0 | D93: 659.229676 | E93: 2200 | F93: 2000 | G93: 4200
A94: 2000-03-27 | B94: 559.229676 | C94: 0 | D94: 559.229676 | E94: 2200 | F94: 1600 | G94: 3800
A95: 2000-03-28 | B95: 479.229676 | C95: 0 | D95: 479.229676 | E95: 2200 | F95: 1100 | G95: 3300
A96: 2000-03-29 | B96: 159.229676 | C96: 0 | D96: 159.229676 | E96: 2200 | F96: 800 | G96: 3000
A97: 2000-03-30 | B97: 0 | C97: 0 | D97: 0 | E97: 2200 | F97: 400 | G97: 2600
A98: 2000-03-31 | B98: 0 | C98: 0 | D98: 0 | E98: 2000 | F98: 0 | G98: 2000
A99: 2000-04-01 | B99: 0 | C99: 0 | D99: 0 | E99: 1600 | F99: 0 | G99: 1600
A100: 2000-04-02 | B100: 0 | C100: 0 | D100: 0 | E100: 1000 | F100: 0 | G100: 1000
A101: 2000-04-03 | B101: 0 | C101: 0 | D101: 0 | E101: 600 | F101: 0 | G101: 600
A102: 2000-04-04 | B102: 0 | C102: 0 | D102: 0 | E102: 300 | F102: 0 | G102: 300
A103: 2000-04-05 | B103: 0 | C103: 0 | D103: 0 | E103: 100 | F103: 0 | G103: 100
A104: 2000-04-06 | B104: 0 | C104: 0 | D104: 0 | E104: 0 | F104: 0 | G104: 0
A105: 2000-04-07 | B105: 0 | C105: 0 | D105: 0 | E105: 0 | F105: 0 | G105: 0
A106: 2000-04-08 | B106: 0 | C106: 0 | D106: 0 | E106: 0 | F106: 0 | G106: 0
A107: 2000-04-09 | B107: 0 | C107: 0 | D107: 0 | E107: 0 | F107: 0 | G107: 0
A108: 2000-04-10 | B108: 0 | C108: 0 | D108: 0 | E108: 0 | F108: 0 | G108: 0
A109: 2000-04-11 | B109: 0 | C109: 0 | D109: 0 | E109: 400 | F109: 0 | G109: 400
A110: 2000-04-12 | B110: 0 | C110: 0 | D110: 0 | E110: 500 | F110: 0 | G110: 500
A111: 2000-04-13 | B111: 0 | C111: 0 | D111: 0 | E111: 500 | F111: 0 | G111: 500
A112: 2000-04-14 | B112: 0 | C112: 0 | D112: 0 | E112: 600 | F112: 0 | G112: 600
A113: 2000-04-15 | B113: 0 | C113: 0 | D113: 0 | E113: 1200 | F113: 0 | G113: 1200
A114: 2000-04-16 | B114: 0 | C114: 0 | D114: 0 | E114: 1000 | F114: 0 | G114: 1000
A115: 2000-04-17 | B115: 0 | C115: 0 | D115: 0 | E115: 900 | F115: 0 | G115: 900
A116: 2000-04-18 | B116: 1961.882473 | C116: 0 | D116: 1961.882473 | E116: 2200 | F116: 1000 | G116: 3200
A117: 2000-04-19 | B117: 2200 | C117: 586.4371457 | D117: 2786.437146 | E117: 2200 | F117: 2000 | G117: 4200
A118: 2000-04-20 | B118: 1793.035555 | C118: 0 | D118: 1793.035555 | E118: 2200 | F118: 2000 | G118: 4200
A119: 2000-04-21 | B119: 993.035555 | C119: 0 | D119: 993.035555 | E119: 2200 | F119: 2000 | G119: 4200
A120: 2000-04-22 | B120: 1093.035555 | C120: 0 | D120: 1093.035555 | E120: 2200 | F120: 1800 | G120: 4000
A121: 2000-04-23 | B121: 893.035555 | C121: 0 | D121: 893.035555 | E121: 2200 | F121: 900 | G121: 3100
A122: 2000-04-24 | B122: 593.035555 | C122: 0 | D122: 593.035555 | E122: 2200 | F122: 400 | G122: 2600
A123: 2000-04-25 | B123: 293.035555 | C123: 0 | D123: 293.035555 | E123: 1900 | F123: 0 | G123: 1900
A124: 2000-04-26 | B124: 0 | C124: 0 | D124: 0 | E124: 1200 | F124: 0 | G124: 1200
A125: 2000-04-27 | B125: 0 | C125: 0 | D125: 0 | E125: 300 | F125: 0 | G125: 300
A126: 2000-04-28 | B126: 0 | C126: 0 | D126: 0 | E126: 0 | F126: 0 | G126: 0
A127: 2000-04-29 | B127: 0 | C127: 0 | D127: 0 | E127: 0 | F127: 0 | G127: 0
A128: 2000-04-30 | B128: 0 | C128: 0 | D128: 0 | E128: 0 | F128: 0 | G128: 0
A129: 2000-05-01 | B129: 0 | C129: 0 | D129: 0 | E129: 0 | F129: 0 | G129: 0
A130: 2000-05-02 | B130: 0 | C130: 0 | D130: 0 | E130: 0 | F130: 0 | G130: 0
A131: 2000-05-03 | B131: 0 | C131: 0 | D131: 0 | E131: 0 | F131: 0 | G131: 0
A132: 2000-05-04 | B132: 0 | C132: 0 | D132: 0 | E132: 0 | F132: 0 | G132: 0
A133: 2000-05-05 | B133: 0 | C133: 0 | D133: 0 | E133: 0 | F133: 0 | G133: 0
A134: 2000-05-06 | B134: 0 | C134: 0 | D134: 0 | E134: 0 | F134: 0 | G134: 0
A135: 2000-05-07 | B135: 0 | C135: 0 | D135: 0 | E135: 0 | F135: 0 | G135: 0
A136: 2000-05-08 | B136: 0 | C136: 0 | D136: 0 | E136: 0 | F136: 0 | G136: 0
A137: 2000-05-09 | B137: 0 | C137: 0 | D137: 0 | E137: 0 | F137: 0 | G137: 0
A138: 2000-05-10 | B138: 0 | C138: 0 | D138: 0 | E138: 0 | F138: 0 | G138: 0
A139: 2000-05-11 | B139: 0 | C139: 0 | D139: 0 | E139: 0 | F139: 0 | G139: 0
A140: 2000-05-12 | B140: 0 | C140: 0 | D140: 0 | E140: 0 | F140: 0 | G140: 0
A141: 2000-05-13 | B141: 0 | C141: 0 | D141: 0 | E141: 0 | F141: 0 | G141: 0
A142: 2000-05-14 | B142: 0 | C142: 0 | D142: 0 | E142: 0 | F142: 0 | G142: 0
A143: 2000-05-15 | B143: 0 | C143: 0 | D143: 0 | E143: 0 | F143: 0 | G143: 0
A144: 2000-05-16 | B144: 0 | C144: 0 | D144: 0 | E144: 0 | F144: 0 | G144: 0
A145: 2000-05-17 | B145: 0 | C145: 0 | D145: 0 | E145: 0 | F145: 0 | G145: 0
A146: 2000-05-18 | B146: 0 | C146: 0 | D146: 0 | E146: 0 | F146: 0 | G146: 0
A147: 2000-05-19 | B147: 0 | C147: 0 | D147: 0 | E147: 0 | F147: 0 | G147: 0
A148: 2000-05-20 | B148: 0 | C148: 0 | D148: 0 | E148: 0 | F148: 0 | G148: 0
A149: 2000-05-21 | B149: 0 | C149: 0 | D149: 0 | E149: 0 | F149: 0 | G149: 0
A150: 2000-05-22 | B150: 0 | C150: 0 | D150: 0 | E150: 0 | F150: 0 | G150: 0
A151: 2000-05-23 | B151: 0 | C151: 0 | D151: 0 | E151: 100 | F151: 0 | G151: 100
A152: 2000-05-24 | B152: 0 | C152: 0 | D152: 0 | E152: 0 | F152: 0 | G152: 0
A153: 2000-05-25 | B153: 0 | C153: 0 | D153: 0 | E153: 0 | F153: 0 | G153: 0
A154: 2000-05-26 | B154: 0 | C154: 0 | D154: 0 | E154: 0 | F154: 0 | G154: 0
A155: 2000-05-27 | B155: 0 | C155: 0 | D155: 0 | E155: 0 | F155: 0 | G155: 0
A156: 2000-05-28 | B156: 0 | C156: 0 | D156: 0 | E156: 0 | F156: 0 | G156: 0
A157: 2000-05-29 | B157: 0 | C157: 0 | D157: 0 | E157: 0 | F157: 0 | G157: 0
A158: 2000-05-30 | B158: 0 | C158: 0 | D158: 0 | E158: 0 | F158: 0 | G158: 0
A159: 2000-05-31 | B159: 0 | C159: 0 | D159: 0 | E159: 0 | F159: 0 | G159: 0
A160: 2000-06-01 | B160: 0 | C160: 0 | D160: 0 | E160: 0 | F160: 0 | G160: 0
A161: 2000-06-02 | B161: 0 | C161: 0 | D161: 0 | E161: 0 | F161: 0 | G161: 0
A162: 2000-06-03 | B162: 0 | C162: 0 | D162: 0 | E162: 0 | F162: 0 | G162: 0
A163: 2000-06-04 | B163: 0 | C163: 0 | D163: 0 | E163: 0 | F163: 0 | G163: 0
A164: 2000-06-05 | B164: 0 | C164: 0 | D164: 0 | E164: 0 | F164: 0 | G164: 0
A165: 2000-06-06 | B165: 0 | C165: 0 | D165: 0 | E165: 0 | F165: 0 | G165: 0
A166: 2000-06-07 | B166: 0 | C166: 0 | D166: 0 | E166: 0 | F166: 0 | G166: 0
A167: 2000-06-08 | B167: 0 | C167: 0 | D167: 0 | E167: 0 | F167: 0 | G167: 0
A168: 2000-06-09 | B168: 0 | C168: 0 | D168: 0 | E168: 0 | F168: 0 | G168: 0
A169: 2000-06-10 | B169: 0 | C169: 0 | D169: 0 | E169: 0 | F169: 0 | G169: 0
A170: 2000-06-11 | B170: 0 | C170: 0 | D170: 0 | E170: 0 | F170: 0 | G170: 0
A171: 2000-06-12 | B171: 0 | C171: 0 | D171: 0 | E171: 0 | F171: 0 | G171: 0
A172: 2000-06-13 | B172: 0 | C172: 0 | D172: 0 | E172: 0 | F172: 0 | G172: 0
A173: 2000-06-14 | B173: 0 | C173: 0 | D173: 0 | E173: 0 | F173: 0 | G173: 0
A174: 2000-06-15 | B174: 0 | C174: 0 | D174: 0 | E174: 0 | F174: 0 | G174: 0
A175: 2000-06-16 | B175: 0 | C175: 0 | D175: 0 | E175: 0 | F175: 0 | G175: 0
A176: 2000-06-17 | B176: 0 | C176: 0 | D176: 0 | E176: 0 | F176: 0 | G176: 0
A177: 2000-06-18 | B177: 0 | C177: 0 | D177: 0 | E177: 0 | F177: 0 | G177: 0
A178: 2000-06-19 | B178: 0 | C178: 0 | D178: 0 | E178: 0 | F178: 0 | G178: 0
A179: 2000-06-20 | B179: 0 | C179: 0 | D179: 0 | E179: 0 | F179: 0 | G179: 0
A180: 2000-06-21 | B180: 0 | C180: 0 | D180: 0 | E180: 0 | F180: 0 | G180: 0
A181: 2000-06-22 | B181: 0 | C181: 0 | D181: 0 | E181: 0 | F181: 0 | G181: 0
A182: 2000-06-23 | B182: 0 | C182: 0 | D182: 0 | E182: 0 | F182: 0 | G182: 0
A183: 2000-06-24 | B183: 0 | C183: 0 | D183: 0 | E183: 0 | F183: 0 | G183: 0
A184: 2000-06-25 | B184: 0 | C184: 0 | D184: 0 | E184: 0 | F184: 0 | G184: 0
A185: 2000-06-26 | B185: 0 | C185: 0 | D185: 0 | E185: 0 | F185: 0 | G185: 0
A186: 2000-06-27 | B186: 0 | C186: 0 | D186: 0 | E186: 0 | F186: 0 | G186: 0
A187: 2000-06-28 | B187: 0 | C187: 0 | D187: 0 | E187: 0 | F187: 0 | G187: 0
A188: 2000-06-29 | B188: 0 | C188: 0 | D188: 0 | E188: 0 | F188: 0 | G188: 0
A189: 2000-06-30 | B189: 0 | C189: 0 | D189: 0 | E189: 0 | F189: 0 | G189: 0
A190: 2000-07-01 | B190: 0 | C190: 0 | D190: 0 | E190: 0 | F190: 0 | G190: 0
A191: 2000-07-02 | B191: 0 | C191: 0 | D191: 0 | E191: 0 | F191: 0 | G191: 0
A192: 2000-07-03 | B192: 0 | C192: 0 | D192: 0 | E192: 0 | F192: 0 | G192: 0
A193: 2000-07-04 | B193: 0 | C193: 0 | D193: 0 | E193: 0 | F193: 0 | G193: 0
A194: 2000-07-05 | B194: 0 | C194: 0 | D194: 0 | E194: 0 | F194: 0 | G194: 0
A195: 2000-07-06 | B195: 0 | C195: 0 | D195: 0 | E195: 0 | F195: 0 | G195: 0
A196: 2000-07-07 | B196: 0 | C196: 0 | D196: 0 | E196: 0 | F196: 0 | G196: 0
A197: 2000-07-08 | B197: 0 | C197: 0 | D197: 0 | E197: 0 | F197: 0 | G197: 0
A198: 2000-07-09 | B198: 0 | C198: 0 | D198: 0 | E198: 0 | F198: 0 | G198: 0
A199: 2000-07-10 | B199: 0 | C199: 0 | D199: 0 | E199: 0 | F199: 0 | G199: 0
A200: 2000-07-11 | B200: 0 | C200: 0 | D200: 0 | E200: 0 | F200: 0 | G200: 0
A201: 2000-07-12 | B201: 0 | C201: 0 | D201: 0 | E201: 0 | F201: 0 | G201: 0
A202: 2000-07-13 | B202: 0 | C202: 0 | D202: 0 | E202: 0 | F202: 0 | G202: 0
A203: 2000-07-14 | B203: 0 | C203: 0 | D203: 0 | E203: 0 | F203: 0 | G203: 0
A204: 2000-07-15 | B204: 0 | C204: 0 | D204: 0 | E204: 0 | F204: 0 | G204: 0
... 7747 more rows

Sheet EOS Storage
A1: Without Face Value Demands | H1: With Face Value Demands
B2: Sites Volume (TAF): | C2: 1500 | I2: Sites Volume (TAF): | J2: 1500
B3: Dead Pool (TAF): | C3: 60 | I3: Dead Pool (TAF): | J3: 60
A4: Water Year | B4: Sites Release Potential (TAF) | C4: EOS Storage | D4: Evap (TAF) | E4: Total Diversion without FV (TAF) | F4: Max Allowable Diversion (TAF) | H4: Water Year | I4: Sites Release Potential (TAF) | J4: EOS Storage | K4: Evap (TAF) | L4: Total Diversion with FV (TAF) | M4: Max Allowable Diversion (TAF)
A5: 1999 | B5: 75 | C5: 1389 | D5: =2.2828*AVERAGE(C4:C5)^0.3878 -> 37.77528893 | H5: 1999 | I5: 75 | J5: 1389 | K5: =2.2828*AVERAGE(J4:J5)^0.3878 -> 37.77528893
A6: 2000 | B6: 124 | C6: =MAX($C$3,C5+E6-B6-D5) -> 1338.224711 | D6: =2.2828*AVERAGE(C5:C6)^0.3878 -> 37.50602214 | E6: =INDEX('Wilkins Analysis (No FV)'!$K$10:$K$7953,MATCH(DATE(A6,9,30),'Wilkins Analysis (No FV)'!$A$10:$A$7953,0))/1000 -> 111 | F6: =MAX($C$2-C5,0) -> 111 | H6: 2000 | I6: 124 | J6: =MAX($C$3,J5+L6-I6-K5) -> 1338.224711 | K6: =2.2828*AVERAGE(J5:J6)^0.3878 -> 37.50602214 | L6: =INDEX('Wilkins Analysis (with FV)'!$K$10:$K$7953,MATCH(DATE(A6,9,30),'Wilkins Analysis (with FV)'!$A$10:$A$7953,0))/1000 -> 111 | M6: =MAX($C$2-J5,0) -> 111 | Q6: Water Year | R6: Potential Diversions (TAF) | U6: Limited Diversions (TAF) | X6: End of Sep Sites Storage (TAF)
A7: 2001 | B7: 493 | C7: =MAX($C$3,C6+E7-B7-D6) -> 969.4939779 | D7: =2.2828*AVERAGE(C6:C7)^0.3878 -> 35.15367615 | E7: =INDEX('Wilkins Analysis (No FV)'!$K$10:$K$7953,MATCH(DATE(A7,9,30),'Wilkins Analysis (No FV)'!$A$10:$A$7953,0))/1000 -> 161.7752889 | F7: =MAX($C$2-C6,0) -> 161.7752889 | H7: 2001 | I7: 493 | J7: =MAX($C$3,J6+L7-I7-K6) -> 850.9926311 | K7: =2.2828*AVERAGE(J6:J7)^0.3878 -> 34.4423249 | L7: =INDEX('Wilkins Analysis (with FV)'!$K$10:$K$7953,MATCH(DATE(A7,9,30),'Wilkins Analysis (with FV)'!$A$10:$A$7953,0))/1000 -> 43.27394214 | M7: =MAX($C$2-J6,0) -> 161.7752889 | R7: WAAT No FV | S7: DDFT | T7: Difference | U7: WAAT No FV | V7: DDFT | W7: Difference | X7: WAAT no FV | Y7: DDFT
A8: 2002 | B8: 387 | C8: 875.3486246 | D8: 32.23053062 | E8: =INDEX('Wilkins Analysis (No FV)'!$K$10:$K$7953,MATCH(DATE(A8,9,30),'Wilkins Analysis (No FV)'!$A$10:$A$7953,0))/1000 -> 328.0083229 | F8: 530.5060221 | H8: 2002 | I8: 387 | J8: 607.1419922 | K8: 29.42043905 | L8: =INDEX('Wilkins Analysis (with FV)'!$K$10:$K$7953,MATCH(DATE(A8,9,30),'Wilkins Analysis (with FV)'!$A$10:$A$7953,0))/1000 -> 177.591686 | M8: 649.0073689 | Q8: 2009 | R8: 82 | S8: 108 | T8: -26 | U8: 82 | V8: 108 | W8: -26 | X8: 119 | Y8: 193
A9: 2003 | B9: 167 | C9: 1300.769469 | D9: 34.36225763 | E9: =INDEX('Wilkins Analysis (No FV)'!$K$10:$K$7953,MATCH(DATE(A9,9,30),'Wilkins Analysis (No FV)'!$A$10:$A$7953,0))/1000 -> 624.6513754 | F9: 624.6513754 | H9: 2003 | I9: 167 | J9: 957.6985645 | K9: 30.2373644 | L9: =INDEX('Wilkins Analysis (with FV)'!$K$10:$K$7953,MATCH(DATE(A9,9,30),'Wilkins Analysis (with FV)'!$A$10:$A$7953,0))/1000 -> 546.9770114 | M9: 892.8580078 | Q9: 2010 | R9: 513 | S9: 257 | T9: 255 | U9: 513 | V9: 257 | W9: 255 | X9: 354 | Y9: 174
A10: 2004 | B10: 209 | C10: 1256.637742 | D10: 36.58248702 | E10: =INDEX('Wilkins Analysis (No FV)'!$K$10:$K$7953,MATCH(DATE(A10,9,30),'Wilkins Analysis (No FV)'!$A$10:$A$7953,0))/1000 -> 199.2305306 | F10: 199.2305306 | H10: 2004 | I10: 209 | J10: 1186.078147 | K10: 34.16330361 | L10: =INDEX('Wilkins Analysis (with FV)'!$K$10:$K$7953,MATCH(DATE(A10,9,30),'Wilkins Analysis (with FV)'!$A$10:$A$7953,0))/1000 -> 467.6169466 | M10: 542.3014355 | Q10: 2011 | R10: 1207 | S10: 666 | T10: 541 | U10: 1146 | V10: 666 | W10: 480 | X10: 1406 | Y10: 749
A11: 2005 | B11: 151 | C11: 1312.417513 | D11: 36.64701227 | E11: =INDEX('Wilkins Analysis (No FV)'!$K$10:$K$7953,MATCH(DATE(A11,9,30),'Wilkins Analysis (No FV)'!$A$10:$A$7953,0))/1000 -> 243.3622576 | F11: 243.3622576 | H11: 2005 | I11: 151 | J11: 1273.690968 | K11: 36.03439693 | L11: =INDEX('Wilkins Analysis (with FV)'!$K$10:$K$7953,MATCH(DATE(A11,9,30),'Wilkins Analysis (with FV)'!$A$10:$A$7953,0))/1000 -> 272.7761245 | M11: 313.9218533 | Q11: 2012 | R11: 112 | S11: 31 | T11: 81 | U11: 94 | V11: 31 | W11: 63 | X11: 1178 | Y11: 468
A12: 2006 | B12: 75 | C12: 1388.352988 | D12: 37.36451543 | E12: =INDEX('Wilkins Analysis (No FV)'!$K$10:$K$7953,MATCH(DATE(A12,9,30),'Wilkins Analysis (No FV)'!$A$10:$A$7953,0))/1000 -> 187.582487 | F12: 187.582487 | H12: 2006 | I12: 75 | J12: 1388.965603 | K12: 37.15913951 | L12: =INDEX('Wilkins Analysis (with FV)'!$K$10:$K$7953,MATCH(DATE(A12,9,30),'Wilkins Analysis (with FV)'!$A$10:$A$7953,0))/1000 -> 226.3090324 | M12: 226.3090324 | Q12: 2013 | R12: 171 | S12: 150 | T12: 21 | U12: 171 | V12: 150 | W12: 21 | X12: 832 | Y12: 112
A13: 2007 | B13: 416 | C13: 1037.181116 | D13: 35.83907034 | E13: =INDEX('Wilkins Analysis (No FV)'!$K$10:$K$7953,MATCH(DATE(A13,9,30),'Wilkins Analysis (No FV)'!$A$10:$A$7953,0))/1000 -> 102.192644 | F13: 111.6470123 | H13: 2007 | I13: 416 | J13: 935.8064636 | K13: 35.25419013 | L13: =INDEX('Wilkins Analysis (with FV)'!$K$10:$K$7953,MATCH(DATE(A13,9,30),'Wilkins Analysis (with FV)'!$A$10:$A$7953,0))/1000 -> 0 | M13: 111.0343969 | Q13: 2014 | R13: 13 | S13: 0 | T13: 13 | U13: 13 | V13: 0 | W13: 13 | X13: 808 | Y13: 42
A14: 2008 | B14: 601 | C14: 557.631217 | D14: 30.46065297 | E14: =INDEX('Wilkins Analysis (No FV)'!$K$10:$K$7953,MATCH(DATE(A14,9,30),'Wilkins Analysis (No FV)'!$A$10:$A$7953,0))/1000 -> 157.289171 | F14: 462.8188837 | H14: 2008 | I14: 601 | J14: 307.0808477 | K14: 27.65343376 | L14: =INDEX('Wilkins Analysis (with FV)'!$K$10:$K$7953,MATCH(DATE(A14,9,30),'Wilkins Analysis (with FV)'!$A$10:$A$7953,0))/1000 -> 7.528574325 | M14: 564.1935364 | Q14: 2015 | R14: 144 | S14: 18 | T14: 125 | U14: 144 | V14: 18 | W14: 125 | X14: 921 | Y14: 50
A15: 2009 | B15: 490 | C15: 119.1929989 | D15: 21.84675716 | E15: =INDEX('Wilkins Analysis (No FV)'!$K$10:$K$7953,MATCH(DATE(A15,9,30),'Wilkins Analysis (No FV)'!$A$10:$A$7953,0))/1000 -> 82.02243491 | F15: 942.368783 | H15: 2009 | I15: 490 | J15: 60 | K15: 17.23229136 | L15: =INDEX('Wilkins Analysis (with FV)'!$K$10:$K$7953,MATCH(DATE(A15,9,30),'Wilkins Analysis (with FV)'!$A$10:$A$7953,0))/1000 -> 40.55101851 | M15: 1192.919152 | Q15: 2016 | R15: 379 | S15: 265 | T15: 114 | U15: 379 | V15: 265 | W15: 114 | X15: 1038 | Y15: 52
A16: 2010 | B16: 256 | C16: 353.8748898 | D16: 19.01357373 | E16: =INDEX('Wilkins Analysis (No FV)'!$K$10:$K$7953,MATCH(DATE(A16,9,30),'Wilkins Analysis (No FV)'!$A$10:$A$7953,0))/1000 -> 512.528648 | F16: 1380.807001 | H16: 2010 | I16: 256 | J16: 60 | K16: 11.16953051 | L16: =INDEX('Wilkins Analysis (with FV)'!$K$10:$K$7953,MATCH(DATE(A16,9,30),'Wilkins Analysis (with FV)'!$A$10:$A$7953,0))/1000 -> 92.17866752 | M16: 1440 | Q16: 2017 | R16: 1177 | S16: 1002 | T16: 175 | U16: 462 | V16: 1002 | W16: -540 | X16: 1392 | Y16: 970
A17: 2011 | B17: 75 | C17: 1405.986426 | D17: 31.64644805 | E17: =INDEX('Wilkins Analysis (No FV)'!$K$10:$K$7953,MATCH(DATE(A17,9,30),'Wilkins Analysis (No FV)'!$A$10:$A$7953,0))/1000 -> 1146.12511 | F17: 1146.12511 | H17: 2011 | I17: 75 | J17: 720.9611431 | K17: 23.09351937 | L17: =INDEX('Wilkins Analysis (with FV)'!$K$10:$K$7953,MATCH(DATE(A17,9,30),'Wilkins Analysis (with FV)'!$A$10:$A$7953,0))/1000 -> 747.1306736 | M17: 1440 | Q17: 2018 | R17: 54 | S17: 34 | T17: 20 | U17: 54 | V17: 34 | W17: 20 | X17: 1165 | Y17: 736
A18: 2012 | B18: 290 | C18: 1178.353552 | D18: 36.73141207 | E18: =INDEX('Wilkins Analysis (No FV)'!$K$10:$K$7953,MATCH(DATE(A18,9,30),'Wilkins Analysis (No FV)'!$A$10:$A$7953,0))/1000 -> 94.01357373 | F18: 94.01357373 | H18: 2012 | I18: 290 | J18: 413.3520522 | K18: 26.69032627 | L18: =INDEX('Wilkins Analysis (with FV)'!$K$10:$K$7953,MATCH(DATE(A18,9,30),'Wilkins Analysis (with FV)'!$A$10:$A$7953,0))/1000 -> 5.484428492 | M18: 779.0388569 | T18: =AVERAGE(T8:T17) -> 131.9 | W18: =AVERAGE(W8:W17) -> 52.5
A19: 2013 | B19: 481 | C19: 831.7956009 | D19: 33.32117901 | E19: =INDEX('Wilkins Analysis (No FV)'!$K$10:$K$7953,MATCH(DATE(A19,9,30),'Wilkins Analysis (No FV)'!$A$10:$A$7953,0))/1000 -> 171.173461 | F19: 321.6464481 | H19: 2013 | I19: 481 | J19: 60 | K19: 19.01800202 | L19: =INDEX('Wilkins Analysis (with FV)'!$K$10:$K$7953,MATCH(DATE(A19,9,30),'Wilkins Analysis (with FV)'!$A$10:$A$7953,0))/1000 -> 99.33969474 | M19: 1086.647948
A20: 2014 | B20: 4 | C20: 807.713848 | D20: 30.78892256 | E20: =INDEX('Wilkins Analysis (No FV)'!$K$10:$K$7953,MATCH(DATE(A20,9,30),'Wilkins Analysis (No FV)'!$A$10:$A$7953,0))/1000 -> 13.23942612 | F20: 668.2043991 | H20: 2014 | I20: 4 | J20: 60 | K20: 11.16953051 | L20: =INDEX('Wilkins Analysis (with FV)'!$K$10:$K$7953,MATCH(DATE(A20,9,30),'Wilkins Analysis (with FV)'!$A$10:$A$7953,0))/1000 -> 0 | M20: 1440 | Q20: Water Year | R20: Potential Diversions (TAF) | U20: Limited Diversions (TAF) | X20: End of Sep Sites Storage (TAF)
A21: 2015 | B21: 0 | C21: 920.7265004 | D21: 31.42612302 | E21: =INDEX('Wilkins Analysis (No FV)'!$K$10:$K$7953,MATCH(DATE(A21,9,30),'Wilkins Analysis (No FV)'!$A$10:$A$7953,0))/1000 -> 143.801575 | F21: 692.286152 | H21: 2015 | I21: 0 | J21: 143.894036 | K21: 13.71878044 | L21: =INDEX('Wilkins Analysis (with FV)'!$K$10:$K$7953,MATCH(DATE(A21,9,30),'Wilkins Analysis (with FV)'!$A$10:$A$7953,0))/1000 -> 95.0635665 | M21: 1440 | R21: WAAT FV | S21: DDFT | T21: Difference | U21: WAAT No FV | V21: DDFT | W21: Difference | X21: WAAT no FV | Y21: DDFT
A22: 2016 | B22: 230 | C22: 1037.9448 | D22: 32.98763074 | E22: =INDEX('Wilkins Analysis (No FV)'!$K$10:$K$7953,MATCH(DATE(A22,9,30),'Wilkins Analysis (No FV)'!$A$10:$A$7953,0))/1000 -> 378.644423 | F22: 579.2734996 | H22: 2016 | I22: 230 | J22: 119.5938749 | K22: 15.15302811 | L22: =INDEX('Wilkins Analysis (with FV)'!$K$10:$K$7953,MATCH(DATE(A22,9,30),'Wilkins Analysis (with FV)'!$A$10:$A$7953,0))/1000 -> 219.4186194 | M22: 1356.105964 | Q22: 2009 | R22: ='Wilkins Analysis (with FV)'!AE19 -> 40.55101851 | S22: 108 | T22: =R22-S22 -> -67.44898149 | U22: ='Wilkins Analysis (with FV)'!AF19 -> 40.55101851 | V22: 108 | W22: =U22-V22 -> -67.44898149 | X22: =J15 -> 60 | Y22: 193
A23: 2017 | B23: 75 | C23: 1392.012369 | D23: 35.86440052 | E23: =INDEX('Wilkins Analysis (No FV)'!$K$10:$K$7953,MATCH(DATE(A23,9,30),'Wilkins Analysis (No FV)'!$A$10:$A$7953,0))/1000 -> 462.0551996 | F23: 462.0551996 | H23: 2017 | I23: 75 | J23: 1142.639968 | K23: 27.81957262 | L23: =INDEX('Wilkins Analysis (with FV)'!$K$10:$K$7953,MATCH(DATE(A23,9,30),'Wilkins Analysis (with FV)'!$A$10:$A$7953,0))/1000 -> 1113.199121 | M23: 1380.406125 | Q23: 2010 | R23: ='Wilkins Analysis (with FV)'!AE20 -> 92.17866752 | S23: 257 | T23: =R23-S23 -> -164.8213325 | U23: ='Wilkins Analysis (with FV)'!AF20 -> 92.17866752 | V23: 257 | W23: =U23-V23 -> -164.8213325 | X23: =J16 -> 60 | Y23: 174
A24: 2018 | B24: 245 | C24: 1164.701659 | D24: 36.57864141 | E24: =INDEX('Wilkins Analysis (No FV)'!$K$10:$K$7953,MATCH(DATE(A24,9,30),'Wilkins Analysis (No FV)'!$A$10:$A$7953,0))/1000 -> 53.55369 | F24: 107.9876307 | H24: 2018 | I24: 245 | J24: 871.7575834 | K24: 33.34847158 | L24: =INDEX('Wilkins Analysis (with FV)'!$K$10:$K$7953,MATCH(DATE(A24,9,30),'Wilkins Analysis (with FV)'!$A$10:$A$7953,0))/1000 -> 1.937188528 | M24: 357.3600325 | Q24: 2011 | R24: ='Wilkins Analysis (with FV)'!AE21 -> 747.1306736 | S24: 666 | T24: 81.13067361 | U24: ='Wilkins Analysis (with FV)'!AF21 -> 747.1306736 | V24: 666 | W24: 81.13067361 | X24: 720.9611431 | Y24: 749
A25: 2019 | B25: 75 | C25: 1388.421359 | D25: 36.55870914 | E25: =INDEX('Wilkins Analysis (No FV)'!$K$10:$K$7953,MATCH(DATE(A25,9,30),'Wilkins Analysis (No FV)'!$A$10:$A$7953,0))/1000 -> 335.2983413 | F25: 335.2983413 | H25: 2019 | I25: 75 | J25: 1391.651528 | K25: 34.89036768 | L25: =INDEX('Wilkins Analysis (with FV)'!$K$10:$K$7953,MATCH(DATE(A25,9,30),'Wilkins Analysis (with FV)'!$A$10:$A$7953,0))/1000 -> 628.2424166 | M25: 628.2424166 | Q25: 2012 | R25: ='Wilkins Analysis (with FV)'!AE22 -> 5.484428492 | S25: 31 | T25: -25.51557151 | U25: ='Wilkins Analysis (with FV)'!AF22 -> 5.484428492 | V25: 31 | W25: -25.51557151 | X25: 413.3520522 | Y25: 468
A26: 2020 | B26: 428 | C26: 929.0196715 | D26: 35.21103591 | E26: =INDEX('Wilkins Analysis (No FV)'!$K$10:$K$7953,MATCH(DATE(A26,9,30),'Wilkins Analysis (No FV)'!$A$10:$A$7953,0))/1000 -> 5.157022 | F26: 111.5786414 | H26: 2020 | I26: 428 | J26: 928.7611607 | K26: 35.22853867 | L26: =INDEX('Wilkins Analysis (with FV)'!$K$10:$K$7953,MATCH(DATE(A26,9,30),'Wilkins Analysis (with FV)'!$A$10:$A$7953,0))/1000 -> 0 | M26: 108.3484716 | Q26: 2013 | R26: ='Wilkins Analysis (with FV)'!AE23 -> 99.33969474 | S26: 150 | T26: -50.66030526 | U26: ='Wilkins Analysis (with FV)'!AF23 -> 99.33969474 | V26: 150 | W26: -50.66030526 | X26: 60 | Y26: 112
A27: 2021 | B27: 384 | C27: 509.8086355 | D27: 29.26875919 | E27: =INDEX('Wilkins Analysis (No FV)'!$K$10:$K$7953,MATCH(DATE(A27,9,30),'Wilkins Analysis (No FV)'!$A$10:$A$7953,0))/1000 -> 0 | F27: 570.9803285 | H27: 2021 | I27: 384 | J27: 509.5326221 | K27: 29.26454203 | L27: =INDEX('Wilkins Analysis (with FV)'!$K$10:$K$7953,MATCH(DATE(A27,9,30),'Wilkins Analysis (with FV)'!$A$10:$A$7953,0))/1000 -> 0 | M27: 571.2388393 | Q27: 2014 | R27: ='Wilkins Analysis (with FV)'!AE24 -> 0 | S27: 0 | T27: 0 | U27: ='Wilkins Analysis (with FV)'!AF24 -> 0 | V27: 0 | W27: 0 | X27: 60 | Y27: 42
Q28: 2015 | R28: ='Wilkins Analysis (with FV)'!AE25 -> 95.0635665 | S28: 18 | T28: 77.0635665 | U28: ='Wilkins Analysis (with FV)'!AF25 -> 95.0635665 | V28: 18 | W28: 77.0635665 | X28: 143.894036 | Y28: 50
Q29: 2016 | R29: ='Wilkins Analysis (with FV)'!AE26 -> 219.4186194 | S29: 265 | T29: -45.58138061 | U29: ='Wilkins Analysis (with FV)'!AF26 -> 219.4186194 | V29: 265 | W29: -45.58138061 | X29: 119.5938749 | Y29: 52
Q30: 2017 | R30: ='Wilkins Analysis (with FV)'!AE27 -> 1113.199121 | S30: 1002 | T30: 111.1991207 | U30: ='Wilkins Analysis (with FV)'!AF27 -> 1113.199121 | V30: 1002 | W30: 111.1991207 | X30: 1142.639968 | Y30: 970
Q31: 2018 | R31: ='Wilkins Analysis (with FV)'!AE28 -> 1.937188528 | S31: 34 | T31: -32.06281147 | U31: ='Wilkins Analysis (with FV)'!AF28 -> 1.937188528 | V31: 34 | W31: -32.06281147 | X31: 871.7575834 | Y31: 736
W32: =AVERAGE(W22:W31) -> -11.6697022

Sheet Wilkins Analysis (No FV)
K1: Diversion Capacity: | L1: 2200 | N1: 2000
K2: Travel Time: | L2: 3 | N2: 2
B3: Min | C3: =MIN(C10:C7953) -> 0 | D3: =MIN(D10:D7953) -> 0 | E3: 0 | F3: 0 | G3: 0 | I3: 94.01357373 | J3: 0 | K3: 0 | L3: 0 | M3: 0 | N3: 0 | O3: 0 | P3: 2890 | R3: =MIN(R10:R7953) -> 2890 | S3: 2890 | T3: 0 | U3: 2890 | V3: 2890 | W3: 0 | X3: 2890
B4: Max | C4: =MAX(C10:C7953) -> 2200 | D4: =MAX(D10:D7953) -> 2200 | E4: 2000 | F4: 2000 | G4: 4200 | I4: 1380.807001 | J4: 4200 | K4: 1146125.11 | L4: 2200 | M4: 2200 | N4: 2000 | O4: 2000 | P4: 31600 | R4: =MAX(R10:R7953) -> 60988.17 | S4: 56788.17 | T4: 27942.48372 | U4: 28845.68628 | V4: 60988.17 | W4: 31875.63208 | X4: 29112.53792
B5: Avg | C5: =AVERAGE(C10:C7953) -> 362.150005 | D5: =AVERAGE(D10:D7953) -> 362.3324483 | E5: 260.0569609 | F5: 260.187972 | G5: 622.2069659 | I5: 460.4536175 | J5: 349.8645016 | K5: 154725.4348 | L5: 202.7563591 | M5: 202.8585033 | N5: 147.1081425 | O5: 147.1822524 | P5: 9257.484894 | R5: =AVERAGE(R10:R7953) -> 10183.08066 | S5: 9561.842419 | T5: 653.5913006 | U5: 8908.251119 | V5: 9834.287771 | W5: 760.3438873 | X5: 9073.943884
A7: Date | B7: Water Year | C7: Historical WAA No FV | I7: Liminted Based on Storage | L7: Trailing Average for Attenuation | P7: Downstream Flows
C8: TCC Diversion | D8: 5-Day TCC | E8: GCID Diversion | F8: 5-Day GCID | G8: Combined Diversion | H8: Cumulative Diversion | I8: Max. Annual Diversion | J8: Limited Combined Diversion | K8: Cumulative Diversion | L8: Limited TCC Diversion | M8: 5-Day TCC | N8: Limited GCID Diversion | O8: 5-Day GCID | P8: Wilkins Slough 11390500 | Q8: Historical Tisdale Spill | R8: Historical Tisdale Est. | S8: Est. Sac River @ Tisdale Flow | T8: Est. Tisdale Spill | U8: Wilkins LESS Original WAA | V8: Est. Sac River @ Tisdale Flow | W8: Est. Tisdale Spill | X8: Wilkins LESS Limited WAA
C9: CFS | E9: CFS | G9: CFS | H9: AF | I9: TAF | J9: CFS | K9: AF | L9: CFS | M9: CFS | N9: CFS | O9: CFS | P9: CFS | Q9: CFS | R9: CFS | S9: CFS | T9: CFS | U9: CFS | V9: CFS | W9: CFS | X9: CFS
A10: 2000-01-01 | B10: =IF(MONTH(A10)>9,YEAR(A10)+1,YEAR(A10)) -> 2000 | C10: =Historical!E8 -> 0 | E10: =Historical!F8 -> 0 | G10: =C10+E10 -> 0 | H10: =G10*1.98347 -> 0 | I10: =VLOOKUP(B10,'EOS Storage'!$A$5:$F$28,5) -> 111 | J10: =G10 -> 0 | K10: =G10*1.98347 -> 0 | L10: =IF(J10<C10,MIN($L$1,J10),C10) -> 0 | N10: =J10-L10 -> 0 | P10: 7020 | Q10: =Tisdale!B2 -> 0 | R10: =P10+Tisdale!B2 -> 7020
A11: 2000-01-02 | B11: =IF(MONTH(A11)>9,YEAR(A11)+1,YEAR(A11)) -> 2000 | C11: =Historical!E9 -> 0 | E11: =Historical!F9 -> 0 | G11: 0 | H11: =IF(B11=B10,G11*1.98347+H10,G11*1.98347) -> 0 | I11: =VLOOKUP(B11,'EOS Storage'!$A$5:$F$28,6) -> 111 | J11: =IF(B11=B10,IF(K10<I11*1000,MIN(G11,(I11*1000-K10)/1.98347),0),G11) -> 0 | K11: =K10+J11*1.98347 -> 0 | L11: 0 | N11: =J11-L11 -> 0 | P11: 7030 | Q11: =Tisdale!B3 -> 0 | R11: =P11+Tisdale!B3 -> 7030
A12: 2000-01-03 | B12: 2000 | C12: =Historical!E10 -> 0 | E12: =Historical!F10 -> 0 | G12: 0 | H12: =IF(B12=B11,G12*1.98347+H11,G12*1.98347) -> 0 | I12: =VLOOKUP(B12,'EOS Storage'!$A$5:$F$28,6) -> 111 | J12: 0 | K12: =K11+J12*1.98347 -> 0 | L12: 0 | N12: 0 | P12: 6940 | Q12: =Tisdale!B4 -> 0 | R12: =P12+Tisdale!B4 -> 6940
A13: 2000-01-04 | B13: 2000 | C13: =Historical!E11 -> 0 | E13: =Historical!F11 -> 0 | G13: 0 | H13: 0 | I13: =VLOOKUP(B13,'EOS Storage'!$A$5:$F$28,6) -> 111 | J13: 0 | K13: 0 | L13: 0 | N13: 0 | P13: 6850 | Q13: =Tisdale!B5 -> 0 | R13: =P13+Tisdale!B5 -> 6850 | S13: =R13-D13-F13 -> 6850 | T13: =intrp(Tisdale!$E$2:$F$14,'Wilkins Analysis (No FV)'!S13) -> 0 | U13: =S13-T13 -> 6850 | V13: =R13-M13-O13 -> 6850 | W13: =intrp(Tisdale!$E$2:$F$14,V13) -> 0 | X13: =V13-W13 -> 6850
A14: 2000-01-05 | B14: 2000 | C14: =Historical!E12 -> 0 | D14: =AVERAGE(C10:C14) -> 0 | E14: =Historical!F12 -> 0 | F14: =AVERAGE(E10:E14) -> 0 | G14: 0 | H14: 0 | I14: =VLOOKUP(B14,'EOS Storage'!$A$5:$F$28,6) -> 111 | J14: 0 | K14: 0 | L14: 0 | M14: =AVERAGE(L10:L14) -> 0 | N14: 0 | O14: =AVERAGE(N10:N14) -> 0 | P14: 6820 | Q14: =Tisdale!B6 -> 0 | R14: =P14+Tisdale!B6 -> 6820 | S14: =R14-D14-F14 -> 6820 | T14: =intrp(Tisdale!$E$2:$F$14,S14) -> 0 | U14: =S14-T14 -> 6820 | V14: =R14-M14-O14 -> 6820 | W14: =intrp(Tisdale!$E$2:$F$14,V14) -> 0 | X14: =V14-W14 -> 6820
A15: 2000-01-06 | B15: 2000 | C15: =Historical!E13 -> 0 | D15: =AVERAGE(C11:C15) -> 0 | E15: =Historical!F13 -> 0 | F15: =AVERAGE(E11:E15) -> 0 | G15: 0 | H15: 0 | I15: =VLOOKUP(B15,'EOS Storage'!$A$5:$F$28,6) -> 111 | J15: 0 | K15: 0 | L15: 0 | M15: =AVERAGE(L11:L15) -> 0 | N15: 0 | O15: =AVERAGE(N11:N15) -> 0 | P15: 6700 | Q15: =Tisdale!B7 -> 0 | R15: =P15+Tisdale!B7 -> 6700 | S15: 6700 | T15: =intrp(Tisdale!$E$2:$F$14,S15) -> 0 | U15: 6700 | V15: 6700 | W15: =intrp(Tisdale!$E$2:$F$14,V15) -> 0 | X15: 6700
A16: 2000-01-07 | B16: 2000 | C16: =Historical!E14 -> 0 | D16: 0 | E16: =Historical!F14 -> 0 | F16: 0 | G16: 0 | H16: 0 | I16: =VLOOKUP(B16,'EOS Storage'!$A$5:$F$28,6) -> 111 | J16: 0 | K16: 0 | L16: 0 | M16: 0 | N16: 0 | O16: 0 | P16: 6580 | Q16: =Tisdale!B8 -> 0 | R16: =P16+Tisdale!B8 -> 6580 | S16: 6580 | T16: =intrp(Tisdale!$E$2:$F$14,S16) -> 0 | U16: 6580 | V16: 6580 | W16: =intrp(Tisdale!$E$2:$F$14,V16) -> 0 | X16: 6580
A17: 2000-01-08 | B17: 2000 | C17: =Historical!E15 -> 0 | D17: 0 | E17: =Historical!F15 -> 0 | F17: 0 | G17: 0 | H17: 0 | I17: =VLOOKUP(B17,'EOS Storage'!$A$5:$F$28,6) -> 111 | J17: 0 | K17: 0 | L17: 0 | M17: 0 | N17: 0 | O17: 0 | P17: 6430 | Q17: =Tisdale!B9 -> 0 | R17: =P17+Tisdale!B9 -> 6430 | S17: 6430 | T17: =intrp(Tisdale!$E$2:$F$14,S17) -> 0 | U17: 6430 | V17: 6430 | W17: =intrp(Tisdale!$E$2:$F$14,V17) -> 0 | X17: 6430
A18: 2000-01-09 | B18: 2000 | C18: =Historical!E16 -> 0 | D18: 0 | E18: =Historical!F16 -> 0 | F18: 0 | G18: 0 | H18: 0 | I18: =VLOOKUP(B18,'EOS Storage'!$A$5:$F$28,6) -> 111 | J18: 0 | K18: 0 | L18: 0 | M18: 0 | N18: 0 | O18: 0 | P18: 6290 | Q18: =Tisdale!B10 -> 0 | R18: =P18+Tisdale!B10 -> 6290 | S18: 6290 | T18: =intrp(Tisdale!$E$2:$F$14,S18) -> 0 | U18: 6290 | V18: 6290 | W18: =intrp(Tisdale!$E$2:$F$14,V18) -> 0 | X18: 6290
A19: 2000-01-10 | B19: 2000 | C19: =Historical!E17 -> 0 | D19: 0 | E19: =Historical!F17 -> 0 | F19: 0 | G19: 0 | H19: 0 | I19: =VLOOKUP(B19,'EOS Storage'!$A$5:$F$28,6) -> 111 | J19: 0 | K19: 0 | L19: 0 | M19: 0 | N19: 0 | O19: 0 | P19: 6290 | Q19: =Tisdale!B11 -> 0 | R19: =P19+Tisdale!B11 -> 6290 | S19: 6290 | T19: =intrp(Tisdale!$E$2:$F$14,S19) -> 0 | U19: 6290 | V19: 6290 | W19: =intrp(Tisdale!$E$2:$F$14,V19) -> 0 | X19: 6290
A20: 2000-01-11 | B20: 2000 | C20: =Historical!E18 -> 0 | D20: 0 | E20: =Historical!F18 -> 0 | F20: 0 | G20: 0 | H20: 0 | I20: =VLOOKUP(B20,'EOS Storage'!$A$5:$F$28,6) -> 111 | J20: 0 | K20: 0 | L20: 0 | M20: 0 | N20: 0 | O20: 0 | P20: 6350 | Q20: =Tisdale!B12 -> 0 | R20: =P20+Tisdale!B12 -> 6350 | S20: 6350 | T20: =intrp(Tisdale!$E$2:$F$14,S20) -> 0 | U20: 6350 | V20: 6350 | W20: =intrp(Tisdale!$E$2:$F$14,V20) -> 0 | X20: 6350
A21: 2000-01-12 | B21: 2000 | C21: =Historical!E19 -> 0 | D21: 0 | E21: =Historical!F19 -> 0 | F21: 0 | G21: 0 | H21: 0 | I21: =VLOOKUP(B21,'EOS Storage'!$A$5:$F$28,6) -> 111 | J21: 0 | K21: 0 | L21: 0 | M21: 0 | N21: 0 | O21: 0 | P21: 6600 | Q21: =Tisdale!B13 -> 0 | R21: =P21+Tisdale!B13 -> 6600 | S21: 6600 | T21: =intrp(Tisdale!$E$2:$F$14,S21) -> 0 | U21: 6600 | V21: 6600 | W21: =intrp(Tisdale!$E$2:$F$14,V21) -> 0 | X21: 6600
A22: 2000-01-13 | B22: 2000 | C22: =Historical!E20 -> 0 | D22: 0 | E22: =Historical!F20 -> 0 | F22: 0 | G22: 0 | H22: 0 | I22: =VLOOKUP(B22,'EOS Storage'!$A$5:$F$28,6) -> 111 | J22: 0 | K22: 0 | L22: 0 | M22: 0 | N22: 0 | O22: 0 | P22: 8000 | Q22: =Tisdale!B14 -> 0 | R22: =P22+Tisdale!B14 -> 8000 | S22: 8000 | T22: =intrp(Tisdale!$E$2:$F$14,S22) -> 0 | U22: 8000 | V22: 8000 | W22: =intrp(Tisdale!$E$2:$F$14,V22) -> 0 | X22: 8000
A23: 2000-01-14 | B23: 2000 | C23: =Historical!E21 -> 0 | D23: 0 | E23: =Historical!F21 -> 0 | F23: 0 | G23: 0 | H23: 0 | I23: =VLOOKUP(B23,'EOS Storage'!$A$5:$F$28,6) -> 111 | J23: 0 | K23: 0 | L23: 0 | M23: 0 | N23: 0 | O23: 0 | P23: 8140 | Q23: =Tisdale!B15 -> 0 | R23: =P23+Tisdale!B15 -> 8140 | S23: 8140 | T23: =intrp(Tisdale!$E$2:$F$14,S23) -> 0 | U23: 8140 | V23: 8140 | W23: =intrp(Tisdale!$E$2:$F$14,V23) -> 0 | X23: 8140
A24: 2000-01-15 | B24: 2000 | C24: =Historical!E22 -> 0 | D24: 0 | E24: =Historical!F22 -> 0 | F24: 0 | G24: 0 | H24: 0 | I24: =VLOOKUP(B24,'EOS Storage'!$A$5:$F$28,6) -> 111 | J24: 0 | K24: 0 | L24: 0 | M24: 0 | N24: 0 | O24: 0 | P24: 8000 | Q24: =Tisdale!B16 -> 0 | R24: =P24+Tisdale!B16 -> 8000 | S24: 8000 | T24: =intrp(Tisdale!$E$2:$F$14,S24) -> 0 | U24: 8000 | V24: 8000 | W24: =intrp(Tisdale!$E$2:$F$14,V24) -> 0 | X24: 8000
A25: 2000-01-16 | B25: 2000 | C25: =Historical!E23 -> 0 | D25: 0 | E25: =Historical!F23 -> 0 | F25: 0 | G25: 0 | H25: 0 | I25: =VLOOKUP(B25,'EOS Storage'!$A$5:$F$28,6) -> 111 | J25: 0 | K25: 0 | L25: 0 | M25: 0 | N25: 0 | O25: 0 | P25: 10300 | Q25: =Tisdale!B17 -> 0 | R25: =P25+Tisdale!B17 -> 10300 | S25: 10300 | T25: =intrp(Tisdale!$E$2:$F$14,S25) -> 0 | U25: 10300 | V25: 10300 | W25: =intrp(Tisdale!$E$2:$F$14,V25) -> 0 | X25: 10300
A26: 2000-01-17 | B26: 2000 | C26: =Historical!E24 -> 0 | D26: 0 | E26: =Historical!F24 -> 0 | F26: 0 | G26: 0 | H26: 0 | I26: =VLOOKUP(B26,'EOS Storage'!$A$5:$F$28,6) -> 111 | J26: 0 | K26: 0 | L26: 0 | M26: 0 | N26: 0 | O26: 0 | P26: 15000 | Q26: =Tisdale!B18 -> 14822.6 | R26: =P26+Tisdale!B18 -> 29822.6 | S26: 29822.6 | T26: =intrp(Tisdale!$E$2:$F$14,S26) -> 4185.5 | U26: 25637.1 | V26: 29822.6 | W26: =intrp(Tisdale!$E$2:$F$14,V26) -> 4185.5 | X26: 25637.1
A27: 2000-01-18 | B27: 2000 | C27: =Historical!E25 -> 0 | D27: 0 | E27: =Historical!F25 -> 0 | F27: 0 | G27: 0 | H27: 0 | I27: =VLOOKUP(B27,'EOS Storage'!$A$5:$F$28,6) -> 111 | J27: 0 | K27: 0 | L27: 0 | M27: 0 | N27: 0 | O27: 0 | P27: 14500 | Q27: =Tisdale!B19 -> 14568 | R27: =P27+Tisdale!B19 -> 29068 | S27: 29068 | T27: =intrp(Tisdale!$E$2:$F$14,S27) -> 3734 | U27: 25334 | V27: 29068 | W27: =intrp(Tisdale!$E$2:$F$14,V27) -> 3734 | X27: 25334
A28: 2000-01-19 | B28: 2000 | C28: =Historical!E26 -> 0 | D28: 0 | E28: =Historical!F26 -> 0 | F28: 0 | G28: 0 | H28: 0 | I28: =VLOOKUP(B28,'EOS Storage'!$A$5:$F$28,6) -> 111 | J28: 0 | K28: 0 | L28: 0 | M28: 0 | N28: 0 | O28: 0 | P28: 12400 | Q28: =Tisdale!B20 -> 0 | R28: =P28+Tisdale!B20 -> 12400 | S28: 12400 | T28: =intrp(Tisdale!$E$2:$F$14,S28) -> 0 | U28: 12400 | V28: 12400 | W28: =intrp(Tisdale!$E$2:$F$14,V28) -> 0 | X28: 12400
A29: 2000-01-20 | B29: 2000 | C29: =Historical!E27 -> 0 | D29: 0 | E29: =Historical!F27 -> 0 | F29: 0 | G29: 0 | H29: 0 | I29: =VLOOKUP(B29,'EOS Storage'!$A$5:$F$28,6) -> 111 | J29: 0 | K29: 0 | L29: 0 | M29: 0 | N29: 0 | O29: 0 | P29: 13400 | Q29: =Tisdale!B21 -> 0 | R29: =P29+Tisdale!B21 -> 13400 | S29: 13400 | T29: =intrp(Tisdale!$E$2:$F$14,S29) -> 0 | U29: 13400 | V29: 13400 | W29: =intrp(Tisdale!$E$2:$F$14,V29) -> 0 | X29: 13400
A30: 2000-01-21 | B30: 2000 | C30: =Historical!E28 -> 0 | D30: 0 | E30: =Historical!F28 -> 0 | F30: 0 | G30: 0 | H30: 0 | I30: =VLOOKUP(B30,'EOS Storage'!$A$5:$F$28,6) -> 111 | J30: 0 | K30: 0 | L30: 0 | M30: 0 | N30: 0 | O30: 0 | P30: 19100 | Q30: =Tisdale!B22 -> 0 | R30: =P30+Tisdale!B22 -> 19100 | S30: 19100 | T30: =intrp(Tisdale!$E$2:$F$14,S30) -> 0 | U30: 19100 | V30: 19100 | W30: =intrp(Tisdale!$E$2:$F$14,V30) -> 0 | X30: 19100
A31: 2000-01-22 | B31: 2000 | C31: =Historical!E29 -> 0 | D31: 0 | E31: =Historical!F29 -> 0 | F31: 0 | G31: 0 | H31: 0 | I31: =VLOOKUP(B31,'EOS Storage'!$A$5:$F$28,6) -> 111 | J31: 0 | K31: 0 | L31: 0 | M31: 0 | N31: 0 | O31: 0 | P31: 17500 | Q31: =Tisdale!B23 -> 0 | R31: =P31+Tisdale!B23 -> 17500 | S31: 17500 | T31: =intrp(Tisdale!$E$2:$F$14,S31) -> 0 | U31: 17500 | V31: 17500 | W31: =intrp(Tisdale!$E$2:$F$14,V31) -> 0 | X31: 17500
A32: 2000-01-23 | B32: 2000 | C32: =Historical!E30 -> 0 | D32: 0 | E32: =Historical!F30 -> 0 | F32: 0 | G32: 0 | H32: 0 | I32: =VLOOKUP(B32,'EOS Storage'!$A$5:$F$28,6) -> 111 | J32: 0 | K32: 0 | L32: 0 | M32: 0 | N32: 0 | O32: 0 | P32: 14500 | Q32: =Tisdale!B24 -> 0 | R32: =P32+Tisdale!B24 -> 14500 | S32: 14500 | T32: =intrp(Tisdale!$E$2:$F$14,S32) -> 0 | U32: 14500 | V32: 14500 | W32: =intrp(Tisdale!$E$2:$F$14,V32) -> 0 | X32: 14500
A33: 2000-01-24 | B33: 2000 | C33: =Historical!E31 -> 0 | D33: 0 | E33: =Historical!F31 -> 0 | F33: 0 | G33: 0 | H33: 0 | I33: =VLOOKUP(B33,'EOS Storage'!$A$5:$F$28,6) -> 111 | J33: 0 | K33: 0 | L33: 0 | M33: 0 | N33: 0 | O33: 0 | P33: 14700 | Q33: =Tisdale!B25 -> 0 | R33: =P33+Tisdale!B25 -> 14700 | S33: 14700 | T33: =intrp(Tisdale!$E$2:$F$14,S33) -> 0 | U33: 14700 | V33: 14700 | W33: =intrp(Tisdale!$E$2:$F$14,V33) -> 0 | X33: 14700
A34: 2000-01-25 | B34: 2000 | C34: =Historical!E32 -> 0 | D34: 0 | E34: =Historical!F32 -> 0 | F34: 0 | G34: 0 | H34: 0 | I34: =VLOOKUP(B34,'EOS Storage'!$A$5:$F$28,6) -> 111 | J34: 0 | K34: 0 | L34: 0 | M34: 0 | N34: 0 | O34: 0 | P34: 20800 | Q34: =Tisdale!B26 -> 622.4 | R34: =P34+Tisdale!B26 -> 21422.4 | S34: 21422.4 | T34: =intrp(Tisdale!$E$2:$F$14,S34) -> 0 | U34: 21422.4 | V34: 21422.4 | W34: =intrp(Tisdale!$E$2:$F$14,V34) -> 0 | X34: 21422.4
A35: 2000-01-26 | B35: 2000 | C35: =Historical!E33 -> 2200 | D35: 440 | E35: =Historical!F33 -> 2000 | F35: 400 | G35: 4200 | H35: 8330.574 | I35: =VLOOKUP(B35,'EOS Storage'!$A$5:$F$28,6) -> 111 | J35: 4200 | K35: 8330.574 | L35: 2200 | M35: 440 | N35: 2000 | O35: 400 | P35: 23600 | Q35: =Tisdale!B27 -> 1356.41 | R35: =P35+Tisdale!B27 -> 24956.41 | S35: 24116.41 | T35: =intrp(Tisdale!$E$2:$F$14,S35) -> 456.6 | U35: 23659.81 | V35: 24116.41 | W35: =intrp(Tisdale!$E$2:$F$14,V35) -> 456.6 | X35: 23659.81
A36: 2000-01-27 | B36: 2000 | C36: =Historical!E34 -> 2200 | D36: 880 | E36: =Historical!F34 -> 2000 | F36: 800 | G36: 4200 | H36: 16661.148 | I36: =VLOOKUP(B36,'EOS Storage'!$A$5:$F$28,6) -> 111 | J36: 4200 | K36: 16661.148 | L36: 2200 | M36: 880 | N36: 2000 | O36: 800 | P36: 23300 | Q36: =Tisdale!B28 -> 820.66 | R36: =P36+Tisdale!B28 -> 24120.66 | S36: 22440.66 | T36: =intrp(Tisdale!$E$2:$F$14,S36) -> 0 | U36: 22440.66 | V36: 22440.66 | W36: =intrp(Tisdale!$E$2:$F$14,V36) -> 0 | X36: 22440.66
A37: 2000-01-28 | B37: 2000 | C37: =Historical!E35 -> 2200 | D37: 1320 | E37: =Historical!F35 -> 2000 | F37: 1200 | G37: 4200 | H37: 24991.722 | I37: =VLOOKUP(B37,'EOS Storage'!$A$5:$F$28,6) -> 111 | J37: 4200 | K37: 24991.722 | L37: 2200 | M37: 1320 | N37: 2000 | O37: 1200 | P37: 22100 | Q37: =Tisdale!B29 -> 137.77 | R37: =P37+Tisdale!B29 -> 22237.77 | S37: 19717.77 | T37: =intrp(Tisdale!$E$2:$F$14,S37) -> 0 | U37: 19717.77 | V37: 19717.77 | W37: =intrp(Tisdale!$E$2:$F$14,V37) -> 0 | X37: 19717.77
A38: 2000-01-29 | B38: 2000 | C38: =Historical!E36 -> 2200 | D38: 1760 | E38: =Historical!F36 -> 2000 | F38: 1600 | G38: 4200 | H38: 33322.296 | I38: =VLOOKUP(B38,'EOS Storage'!$A$5:$F$28,6) -> 111 | J38: 4200 | K38: 33322.296 | L38: 2200 | M38: 1760 | N38: 2000 | O38: 1600 | P38: 20300 | Q38: =Tisdale!B30 -> 0 | R38: =P38+Tisdale!B30 -> 20300 | S38: 16940 | T38: =intrp(Tisdale!$E$2:$F$14,S38) -> 0 | U38: 16940 | V38: 16940 | W38: =intrp(Tisdale!$E$2:$F$14,V38) -> 0 | X38: 16940
A39: 2000-01-30 | B39: 2000 | C39: =Historical!E37 -> 2200 | D39: 2200 | E39: =Historical!F37 -> 2000 | F39: 2000 | G39: 4200 | H39: 41652.87 | I39: =VLOOKUP(B39,'EOS Storage'!$A$5:$F$28,6) -> 111 | J39: 4200 | K39: 41652.87 | L39: 2200 | M39: 2200 | N39: 2000 | O39: 2000 | P39: 20400 | Q39: =Tisdale!B31 -> 0 | R39: =P39+Tisdale!B31 -> 20400 | S39: 16200 | T39: =intrp(Tisdale!$E$2:$F$14,S39) -> 0 | U39: 16200 | V39: 16200 | W39: =intrp(Tisdale!$E$2:$F$14,V39) -> 0 | X39: 16200
A40: 2000-01-31 | B40: 2000 | C40: =Historical!E38 -> 2200 | D40: 2200 | E40: =Historical!F38 -> 2000 | F40: 2000 | G40: 4200 | H40: 49983.444 | I40: =VLOOKUP(B40,'EOS Storage'!$A$5:$F$28,6) -> 111 | J40: 4200 | K40: 49983.444 | L40: 2200 | M40: 2200 | N40: 2000 | O40: 2000 | P40: 23300 | Q40: =Tisdale!B32 -> 2005.42 | R40: =P40+Tisdale!B32 -> 25305.42 | S40: 21105.42 | T40: =intrp(Tisdale!$E$2:$F$14,S40) -> 0 | U40: 21105.42 | V40: 21105.42 | W40: =intrp(Tisdale!$E$2:$F$14,V40) -> 0 | X40: 21105.42
A41: 2000-02-01 | B41: 2000 | C41: =Historical!E39 -> 2200 | D41: 2200 | E41: =Historical!F39 -> 2000 | F41: 2000 | G41: 4200 | H41: 58314.018 | I41: =VLOOKUP(B41,'EOS Storage'!$A$5:$F$28,6) -> 111 | J41: 4200 | K41: 58314.018 | L41: 2200 | M41: 2200 | N41: 2000 | O41: 2000 | P41: 25300 | Q41: =Tisdale!B33 -> 6429.82 | R41: =P41+Tisdale!B33 -> 31729.82 | S41: 27529.82 | T41: =intrp(Tisdale!$E$2:$F$14,S41) -> 2949.871429 | U41: 24579.94857 | V41: 27529.82 | W41: =intrp(Tisdale!$E$2:$F$14,V41) -> 2949.871429 | X41: 24579.94857
A42: 2000-02-02 | B42: 2000 | C42: =Historical!E40 -> 2200 | D42: 2200 | E42: =Historical!F40 -> 2000 | F42: 2000 | G42: 4200 | H42: 66644.592 | I42: =VLOOKUP(B42,'EOS Storage'!$A$5:$F$28,6) -> 111 | J42: 4200 | K42: 66644.592 | L42: 2200 | M42: 2200 | N42: 2000 | O42: 2000 | P42: 24600 | Q42: =Tisdale!B34 -> 3754.31 | R42: =P42+Tisdale!B34 -> 28354.31 | S42: 24154.31 | T42: =intrp(Tisdale!$E$2:$F$14,S42) -> 484.6740741 | U42: 23669.63593 | V42: 24154.31 | W42: =intrp(Tisdale!$E$2:$F$14,V42) -> 484.6740741 | X42: 23669.63593
A43: 2000-02-03 | B43: 2000 | C43: =Historical!E41 -> 2200 | D43: 2200 | E43: =Historical!F41 -> 2000 | F43: 2000 | G43: 4200 | H43: 74975.166 | I43: =VLOOKUP(B43,'EOS Storage'!$A$5:$F$28,6) -> 111 | J43: 4200 | K43: 74975.166 | L43: 2200 | M43: 2200 | N43: 2000 | O43: 2000 | P43: 23600 | Q43: =Tisdale!B35 -> 1388.27 | R43: =P43+Tisdale!B35 -> 24988.27 | S43: 20788.27 | T43: =intrp(Tisdale!$E$2:$F$14,S43) -> 0 | U43: 20788.27 | V43: 20788.27 | W43: =intrp(Tisdale!$E$2:$F$14,V43) -> 0 | X43: 20788.27
A44: 2000-02-04 | B44: 2000 | C44: =Historical!E42 -> 2200 | D44: 2200 | E44: =Historical!F42 -> 2000 | F44: 2000 | G44: 4200 | H44: 83305.74 | I44: =VLOOKUP(B44,'EOS Storage'!$A$5:$F$28,6) -> 111 | J44: 4200 | K44: 83305.74 | L44: 2200 | M44: 2200 | N44: 2000 | O44: 2000 | P44: 22400 | Q44: =Tisdale!B36 -> 132.97 | R44: =P44+Tisdale!B36 -> 22532.97 | S44: 18332.97 | T44: =intrp(Tisdale!$E$2:$F$14,S44) -> 0 | U44: 18332.97 | V44: 18332.97 | W44: =intrp(Tisdale!$E$2:$F$14,V44) -> 0 | X44: 18332.97
A45: 2000-02-05 | B45: 2000 | C45: =Historical!E43 -> 2200 | D45: 2200 | E45: =Historical!F43 -> 2000 | F45: 2000 | G45: 4200 | H45: 91636.314 | I45: =VLOOKUP(B45,'EOS Storage'!$A$5:$F$28,6) -> 111 | J45: 4200 | K45: 91636.314 | L45: 2200 | M45: 2200 | N45: 2000 | O45: 2000 | P45: 22700 | Q45: =Tisdale!B37 -> 221.67 | R45: =P45+Tisdale!B37 -> 22921.67 | S45: 18721.67 | T45: =intrp(Tisdale!$E$2:$F$14,S45) -> 0 | U45: 18721.67 | V45: 18721.67 | W45: =intrp(Tisdale!$E$2:$F$14,V45) -> 0 | X45: 18721.67
A46: 2000-02-06 | B46: 2000 | C46: =Historical!E44 -> 2200 | D46: 2200 | E46: =Historical!F44 -> 2000 | F46: 2000 | G46: 4200 | H46: 99966.888 | I46: =VLOOKUP(B46,'EOS Storage'!$A$5:$F$28,6) -> 111 | J46: 4200 | K46: 99966.888 | L46: 2200 | M46: 2200 | N46: 2000 | O46: 2000 | P46: 22700 | Q46: =Tisdale!B38 -> 270.14 | R46: =P46+Tisdale!B38 -> 22970.14 | S46: 18770.14 | T46: =intrp(Tisdale!$E$2:$F$14,S46) -> 0 | U46: 18770.14 | V46: 18770.14 | W46: =intrp(Tisdale!$E$2:$F$14,V46) -> 0 | X46: 18770.14
A47: 2000-02-07 | B47: 2000 | C47: =Historical!E45 -> 2200 | D47: 2200 | E47: =Historical!F45 -> 2000 | F47: 2000 | G47: 4200 | H47: 108297.462 | I47: =VLOOKUP(B47,'EOS Storage'!$A$5:$F$28,6) -> 111 | J47: 4200 | K47: 108297.462 | L47: 2200 | M47: 2200 | N47: 2000 | O47: 2000 | P47: 23600 | Q47: =Tisdale!B39 -> 1243.89 | R47: =P47+Tisdale!B39 -> 24843.89 | S47: 20643.89 | T47: =intrp(Tisdale!$E$2:$F$14,S47) -> 0 | U47: 20643.89 | V47: 20643.89 | W47: =intrp(Tisdale!$E$2:$F$14,V47) -> 0 | X47: 20643.89
A48: 2000-02-08 | B48: 2000 | C48: =Historical!E46 -> 2200 | D48: 2200 | E48: =Historical!F46 -> 2000 | F48: 2000 | G48: 4200 | H48: 116628.036 | I48: =VLOOKUP(B48,'EOS Storage'!$A$5:$F$28,6) -> 111 | J48: 1362.530313 | K48: 111000 | L48: 1362.530313 | M48: 2032.506063 | N48: 0 | O48: 1600 | P48: 22000 | Q48: =Tisdale!B40 -> 224.16 | R48: =P48+Tisdale!B40 -> 22224.16 | S48: 18024.16 | T48: =intrp(Tisdale!$E$2:$F$14,S48) -> 0 | U48: 18024.16 | V48: 18591.65394 | W48: =intrp(Tisdale!$E$2:$F$14,V48) -> 0 | X48: 18591.65394
A49: 2000-02-09 | B49: 2000 | C49: =Historical!E47 -> 2200 | D49: 2200 | E49: =Historical!F47 -> 2000 | F49: 2000 | G49: 4200 | H49: 124958.61 | I49: =VLOOKUP(B49,'EOS Storage'!$A$5:$F$28,6) -> 111 | J49: 0 | K49: 111000 | L49: 0 | M49: 1592.506063 | N49: 0 | O49: 1200 | P49: 19700 | Q49: =Tisdale!B41 -> 0 | R49: =P49+Tisdale!B41 -> 19700 | S49: 15500 | T49: =intrp(Tisdale!$E$2:$F$14,S49) -> 0 | U49: 15500 | V49: 16907.49394 | W49: =intrp(Tisdale!$E$2:$F$14,V49) -> 0 | X49: 16907.49394
A50: 2000-02-10 | B50: 2000 | C50: =Historical!E48 -> 2200 | D50: 2200 | E50: =Historical!F48 -> 2000 | F50: 2000 | G50: 4200 | H50: 133289.184 | I50: =VLOOKUP(B50,'EOS Storage'!$A$5:$F$28,6) -> 111 | J50: 0 | K50: 111000 | L50: 0 | M50: 1152.506063 | N50: 0 | O50: 800 | P50: 18600 | Q50: =Tisdale!B42 -> 0 | R50: =P50+Tisdale!B42 -> 18600 | S50: 14400 | T50: =intrp(Tisdale!$E$2:$F$14,S50) -> 0 | U50: 14400 | V50: 16647.49394 | W50: =intrp(Tisdale!$E$2:$F$14,V50) -> 0 | X50: 16647.49394
A51: 2000-02-11 | B51: 2000 | C51: =Historical!E49 -> 2200 | D51: 2200 | E51: =Historical!F49 -> 2000 | F51: 2000 | G51: 4200 | H51: 141619.758 | I51: =VLOOKUP(B51,'EOS Storage'!$A$5:$F$28,6) -> 111 | J51: 0 | K51: 111000 | L51: 0 | M51: 712.5060626 | N51: 0 | O51: 400 | P51: 21300 | Q51: =Tisdale!B43 -> 1027.12 | R51: =P51+Tisdale!B43 -> 22327.12 | S51: 18127.12 | T51: =intrp(Tisdale!$E$2:$F$14,S51) -> 0 | U51: 18127.12 | V51: 21214.61394 | W51: =intrp(Tisdale!$E$2:$F$14,V51) -> 0 | X51: 21214.61394
A52: 2000-02-12 | B52: 2000 | C52: =Historical!E50 -> 2200 | D52: 2200 | E52: =Historical!F50 -> 2000 | F52: 2000 | G52: 4200 | H52: 149950.332 | I52: =VLOOKUP(B52,'EOS Storage'!$A$5:$F$28,6) -> 111 | J52: 0 | K52: 111000 | L52: 0 | M52: 272.5060626 | N52: 0 | O52: 0 | P52: 25400 | Q52: =Tisdale!B44 -> 6947.54 | R52: =P52+Tisdale!B44 -> 32347.54 | S52: 28147.54 | T52: =intrp(Tisdale!$E$2:$F$14,S52) -> 3273.77 | U52: 24873.77 | V52: 32075.03394 | W52: =intrp(Tisdale!$E$2:$F$14,V52) -> 6060.02715 | X52: 26015.00679
A53: 2000-02-13 | B53: 2000 | C53: =Historical!E51 -> 2200 | D53: 2200 | E53: =Historical!F51 -> 2000 | F53: 2000 | G53: 4200 | H53: 158280.906 | I53: =VLOOKUP(B53,'EOS Storage'!$A$5:$F$28,6) -> 111 | J53: 0 | K53: 111000 | L53: 0 | M53: 0 | N53: 0 | O53: 0 | P53: 27200 | Q53: =Tisdale!B45 -> 13992.46 | R53: =P53+Tisdale!B45 -> 41192.46 | S53: 36992.46 | T53: =intrp(Tisdale!$E$2:$F$14,S53) -> 9993.968 | U53: 26998.492 | V53: 41192.46 | W53: =intrp(Tisdale!$E$2:$F$14,V53) -> 13811.32727 | X53: 27381.13273
A54: 2000-02-14 | B54: 2000 | C54: =Historical!E52 -> 2200 | D54: 2200 | E54: =Historical!F52 -> 2000 | F54: 2000 | G54: 4200 | H54: 166611.48 | I54: =VLOOKUP(B54,'EOS Storage'!$A$5:$F$28,6) -> 111 | J54: 0 | K54: 111000 | L54: 0 | M54: 0 | N54: 0 | O54: 0 | P54: 27900 | Q54: =Tisdale!B46 -> 14721.86 | R54: =P54+Tisdale!B46 -> 42621.86 | S54: 38421.86 | T54: =intrp(Tisdale!$E$2:$F$14,S54) -> 11292.6 | U54: 27129.26 | V54: 42621.86 | W54: =intrp(Tisdale!$E$2:$F$14,V54) -> 15107.97722 | X54: 27513.88278
A55: 2000-02-15 | B55: 2000 | C55: =Historical!E53 -> 2200 | D55: 2200 | E55: =Historical!F53 -> 2000 | F55: 2000 | G55: 4200 | H55: 174942.054 | I55: =VLOOKUP(B55,'EOS Storage'!$A$5:$F$28,6) -> 111 | J55: 0 | K55: 111000 | L55: 0 | M55: 0 | N55: 0 | O55: 0 | P55: 29000 | Q55: =Tisdale!B47 -> 16028.54 | R55: =P55+Tisdale!B47 -> 45028.54 | S55: 40828.54 | T55: =intrp(Tisdale!$E$2:$F$14,S55) -> 13480.49091 | U55: 27348.04909 | V55: 45028.54 | W55: =intrp(Tisdale!$E$2:$F$14,V55) -> 17240.47848 | X55: 27788.06152
A56: 2000-02-16 | B56: 2000 | C56: =Historical!E54 -> 2200 | D56: 2200 | E56: =Historical!F54 -> 2000 | F56: 2000 | G56: 4200 | H56: 183272.628 | I56: =VLOOKUP(B56,'EOS Storage'!$A$5:$F$28,6) -> 111 | J56: 0 | K56: 111000 | L56: 0 | M56: 0 | N56: 0 | O56: 0 | P56: 29200 | Q56: =Tisdale!B48 -> 16242.71 | R56: =P56+Tisdale!B48 -> 45442.71 | S56: 41242.71 | T56: =intrp(Tisdale!$E$2:$F$14,S56) -> 13857.00909 | U56: 27385.70091 | V56: 45442.71 | W56: =intrp(Tisdale!$E$2:$F$14,V56) -> 17607.46456 | X56: 27835.24544
A57: 2000-02-17 | B57: 2000 | C57: =Historical!E55 -> 2200 | D57: 2200 | E57: =Historical!F55 -> 2000 | F57: 2000 | G57: 4200 | H57: 191603.202 | I57: =VLOOKUP(B57,'EOS Storage'!$A$5:$F$28,6) -> 111 | J57: 0 | K57: 111000 | L57: 0 | M57: 0 | N57: 0 | O57: 0 | P57: 28700 | Q57: =Tisdale!B49 -> 15680.26 | R57: =P57+Tisdale!B49 -> 44380.26 | S57: 40180.26 | T57: =intrp(Tisdale!$E$2:$F$14,S57) -> 12891.14545 | U57: 27289.11455 | V57: 44380.26 | W57: =intrp(Tisdale!$E$2:$F$14,V57) -> 16666.05316 | X57: 27714.20684
A58: 2000-02-18 | B58: 2000 | C58: =Historical!E56 -> 2200 | D58: 2200 | E58: =Historical!F56 -> 2000 | F58: 2000 | G58: 4200 | H58: 199933.776 | I58: =VLOOKUP(B58,'EOS Storage'!$A$5:$F$28,6) -> 111 | J58: 0 | K58: 111000 | L58: 0 | M58: 0 | N58: 0 | O58: 0 | P58: 28300 | Q58: =Tisdale!B50 -> 15219.43 | R58: =P58+Tisdale!B50 -> 43519.43 | S58: 39319.43 | T58: =intrp(Tisdale!$E$2:$F$14,S58) -> 12108.57273 | U58: 27210.85727 | V58: 43519.43 | W58: =intrp(Tisdale!$E$2:$F$14,V58) -> 15903.29241 | X58: 27616.13759
A59: 2000-02-19 | B59: 2000 | C59: =Historical!E57 -> 2200 | D59: 2200 | E59: =Historical!F57 -> 2000 | F59: 2000 | G59: 4200 | H59: 208264.35 | I59: =VLOOKUP(B59,'EOS Storage'!$A$5:$F$28,6) -> 111 | J59: 0 | K59: 111000 | L59: 0 | M59: 0 | N59: 0 | O59: 0 | P59: 28000 | Q59: =Tisdale!B51 -> 14823.16 | R59: =P59+Tisdale!B51 -> 42823.16 | S59: 38623.16 | T59: =intrp(Tisdale!$E$2:$F$14,S59) -> 11475.6 | U59: 27147.56 | V59: 42823.16 | W59: =intrp(Tisdale!$E$2:$F$14,V59) -> 15286.3443 | X59: 27536.8157
A60: 2000-02-20 | B60: 2000 | C60: =Historical!E58 -> 2200 | D60: 2200 | E60: =Historical!F58 -> 2000 | F60: 2000 | G60: 4200 | H60: 216594.924 | I60: =VLOOKUP(B60,'EOS Storage'!$A$5:$F$28,6) -> 111 | J60: 0 | K60: 111000 | L60: 0 | M60: 0 | N60: 0 | O60: 0 | P60: 27700 | Q60: =Tisdale!B52 -> 14531.4 | R60: =P60+Tisdale!B52 -> 42231.4 | S60: 38031.4 | T60: =intrp(Tisdale!$E$2:$F$14,S60) -> 10937.63636 | U60: 27093.76364 | V60: 42231.4 | W60: =intrp(Tisdale!$E$2:$F$14,V60) -> 14755.81818 | X60: 27475.58182
A61: 2000-02-21 | B61: 2000 | C61: =Historical!E59 -> 2200 | D61: 2200 | E61: =Historical!F59 -> 2000 | F61: 2000 | G61: 4200 | H61: 224925.498 | I61: =VLOOKUP(B61,'EOS Storage'!$A$5:$F$28,6) -> 111 | J61: 0 | K61: 111000 | L61: 0 | M61: 0 | N61: 0 | O61: 0 | P61: 27500 | Q61: =Tisdale!B53 -> 14285.76 | R61: =P61+Tisdale!B53 -> 41785.76 | S61: 37585.76 | T61: =intrp(Tisdale!$E$2:$F$14,S61) -> 10532.50909 | U61: 27053.25091 | V61: 41785.76 | W61: =intrp(Tisdale!$E$2:$F$14,V61) -> 14350.69091 | X61: 27435.06909
A62: 2000-02-22 | B62: 2000 | C62: =Historical!E60 -> 2200 | D62: 2200 | E62: =Historical!F60 -> 2000 | F62: 2000 | G62: 4200 | H62: 233256.072 | I62: =VLOOKUP(B62,'EOS Storage'!$A$5:$F$28,6) -> 111 | J62: 0 | K62: 111000 | L62: 0 | M62: 0 | N62: 0 | O62: 0 | P62: 27600 | Q62: =Tisdale!B54 -> 14362.72 | R62: =P62+Tisdale!B54 -> 41962.72 | S62: 37762.72 | T62: =intrp(Tisdale!$E$2:$F$14,S62) -> 10693.38182 | U62: 27069.33818 | V62: 41962.72 | W62: =intrp(Tisdale!$E$2:$F$14,V62) -> 14511.56364 | X62: 27451.15636
A63: 2000-02-23 | B63: 2000 | C63: =Historical!E61 -> 2200 | D63: 2200 | E63: =Historical!F61 -> 2000 | F63: 2000 | G63: 4200 | H63: 241586.646 | I63: =VLOOKUP(B63,'EOS Storage'!$A$5:$F$28,6) -> 111 | J63: 0 | K63: 111000 | L63: 0 | M63: 0 | N63: 0 | O63: 0 | P63: 27800 | Q63: =Tisdale!B55 -> 14685.29 | R63: =P63+Tisdale!B55 -> 42485.29 | S63: 38285.29 | T63: =intrp(Tisdale!$E$2:$F$14,S63) -> 11168.44545 | U63: 27116.84455 | V63: 42485.29 | W63: =intrp(Tisdale!$E$2:$F$14,V63) -> 14986.62727 | X63: 27498.66273
A64: 2000-02-24 | B64: 2000 | C64: =Historical!E62 -> 2200 | D64: 2200 | E64: =Historical!F62 -> 2000 | F64: 2000 | G64: 4200 | H64: 249917.22 | I64: =VLOOKUP(B64,'EOS Storage'!$A$5:$F$28,6) -> 111 | J64: 0 | K64: 111000 | L64: 0 | M64: 0 | N64: 0 | O64: 0 | P64: 28700 | Q64: =Tisdale!B56 -> 15580.16 | R64: =P64+Tisdale!B56 -> 44280.16 | S64: 40080.16 | T64: =intrp(Tisdale!$E$2:$F$14,S64) -> 12800.14545 | U64: 27280.01455 | V64: 44280.16 | W64: =intrp(Tisdale!$E$2:$F$14,V64) -> 16577.35696 | X64: 27702.80304
A65: 2000-02-25 | B65: 2000 | C65: =Historical!E63 -> 2200 | D65: 2200 | E65: =Historical!F63 -> 2000 | F65: 2000 | G65: 4200 | H65: 258247.794 | I65: =VLOOKUP(B65,'EOS Storage'!$A$5:$F$28,6) -> 111 | J65: 0 | K65: 111000 | L65: 0 | M65: 0 | N65: 0 | O65: 0 | P65: 28700 | Q65: =Tisdale!B57 -> 15604.85 | R65: =P65+Tisdale!B57 -> 44304.85 | S65: 40104.85 | T65: =intrp(Tisdale!$E$2:$F$14,S65) -> 12822.59091 | U65: 27282.25909 | V65: 44304.85 | W65: =intrp(Tisdale!$E$2:$F$14,V65) -> 16599.23418 | X65: 27705.61582
A66: 2000-02-26 | B66: 2000 | C66: =Historical!E64 -> 2200 | D66: 2200 | E66: =Historical!F64 -> 2000 | F66: 2000 | G66: 4200 | H66: 266578.368 | I66: =VLOOKUP(B66,'EOS Storage'!$A$5:$F$28,6) -> 111 | J66: 0 | K66: 111000 | L66: 0 | M66: 0 | N66: 0 | O66: 0 | P66: 28200 | Q66: =Tisdale!B58 -> 15072.61 | R66: =P66+Tisdale!B58 -> 43272.61 | S66: 39072.61 | T66: =intrp(Tisdale!$E$2:$F$14,S66) -> 11884.19091 | U66: 27188.41909 | V66: 43272.61 | W66: =intrp(Tisdale!$E$2:$F$14,V66) -> 15684.59114 | X66: 27588.01886
A67: 2000-02-27 | B67: 2000 | C67: =Historical!E65 -> 2200 | D67: 2200 | E67: =Historical!F65 -> 2000 | F67: 2000 | G67: 4200 | H67: 274908.942 | I67: =VLOOKUP(B67,'EOS Storage'!$A$5:$F$28,6) -> 111 | J67: 0 | K67: 111000 | L67: 0 | M67: 0 | N67: 0 | O67: 0 | P67: 28200 | Q67: =Tisdale!B59 -> 15075.98 | R67: =P67+Tisdale!B59 -> 43275.98 | S67: 39075.98 | T67: =intrp(Tisdale!$E$2:$F$14,S67) -> 11887.25455 | U67: 27188.72545 | V67: 43275.98 | W67: =intrp(Tisdale!$E$2:$F$14,V67) -> 15687.57722 | X67: 27588.40278
A68: 2000-02-28 | B68: 2000 | C68: =Historical!E66 -> 2200 | D68: 2200 | E68: =Historical!F66 -> 2000 | F68: 2000 | G68: 4200 | H68: 283239.516 | I68: =VLOOKUP(B68,'EOS Storage'!$A$5:$F$28,6) -> 111 | J68: 0 | K68: 111000 | L68: 0 | M68: 0 | N68: 0 | O68: 0 | P68: 28800 | Q68: =Tisdale!B60 -> 15721.87 | R68: =P68+Tisdale!B60 -> 44521.87 | S68: 40321.87 | T68: =intrp(Tisdale!$E$2:$F$14,S68) -> 13019.88182 | U68: 27301.98818 | V68: 44521.87 | W68: =intrp(Tisdale!$E$2:$F$14,V68) -> 16791.53038 | X68: 27730.33962
A69: 2000-02-29 | B69: 2000 | C69: =Historical!E67 -> 2200 | D69: 2200 | E69: =Historical!F67 -> 2000 | F69: 2000 | G69: 4200 | H69: 291570.09 | I69: =VLOOKUP(B69,'EOS Storage'!$A$5:$F$28,6) -> 111 | J69: 0 | K69: 111000 | L69: 0 | M69: 0 | N69: 0 | O69: 0 | P69: 29000 | Q69: =Tisdale!B61 -> 15904.65 | R69: =P69+Tisdale!B61 -> 44904.65 | S69: 40704.65 | T69: =intrp(Tisdale!$E$2:$F$14,S69) -> 13367.86364 | U69: 27336.78636 | V69: 44904.65 | W69: =intrp(Tisdale!$E$2:$F$14,V69) -> 17130.70253 | X69: 27773.94747
A70: 2000-03-01 | B70: 2000 | C70: =Historical!E68 -> 2200 | D70: 2200 | E70: =Historical!F68 -> 2000 | F70: 2000 | G70: 4200 | H70: 299900.664 | I70: =VLOOKUP(B70,'EOS Storage'!$A$5:$F$28,6) -> 111 | J70: 0 | K70: 111000 | L70: 0 | M70: 0 | N70: 0 | O70: 0 | P70: 28800 | Q70: =Tisdale!B62 -> 15724.32 | R70: =P70+Tisdale!B62 -> 44524.32 | S70: 40324.32 | T70: =intrp(Tisdale!$E$2:$F$14,S70) -> 13022.10909 | U70: 27302.21091 | V70: 44524.32 | W70: =intrp(Tisdale!$E$2:$F$14,V70) -> 16793.70127 | X70: 27730.61873
A71: 2000-03-02 | B71: 2000 | C71: =Historical!E69 -> 2200 | D71: 2200 | E71: =Historical!F69 -> 2000 | F71: 2000 | G71: 4200 | H71: 308231.238 | I71: =VLOOKUP(B71,'EOS Storage'!$A$5:$F$28,6) -> 111 | J71: 0 | K71: 111000 | L71: 0 | M71: 0 | N71: 0 | O71: 0 | P71: 28800 | Q71: =Tisdale!B63 -> 15725.3 | R71: =P71+Tisdale!B63 -> 44525.3 | S71: 40325.3 | T71: =intrp(Tisdale!$E$2:$F$14,S71) -> 13023 | U71: 27302.3 | V71: 44525.3 | W71: =intrp(Tisdale!$E$2:$F$14,V71) -> 16794.56962 | X71: 27730.73038
A72: 2000-03-03 | B72: 2000 | C72: =Historical!E70 -> 2200 | D72: 2200 | E72: =Historical!F70 -> 2000 | F72: 2000 | G72: 4200 | H72: 316561.812 | I72: =VLOOKUP(B72,'EOS Storage'!$A$5:$F$28,6) -> 111 | J72: 0 | K72: 111000 | L72: 0 | M72: 0 | N72: 0 | O72: 0 | P72: 28700 | Q72: =Tisdale!B64 -> 15627.94 | R72: =P72+Tisdale!B64 -> 44327.94 | S72: 40127.94 | T72: =intrp(Tisdale!$E$2:$F$14,S72) -> 12843.58182 | U72: 27284.35818 | V72: 44327.94 | W72: =intrp(Tisdale!$E$2:$F$14,V72) -> 16619.69367 | X72: 27708.24633
A73: 2000-03-04 | B73: 2000 | C73: =Historical!E71 -> 2200 | D73: 2200 | E73: =Historical!F71 -> 2000 | F73: 2000 | G73: 4200 | H73: 324892.386 | I73: =VLOOKUP(B73,'EOS Storage'!$A$5:$F$28,6) -> 111 | J73: 0 | K73: 111000 | L73: 0 | M73: 0 | N73: 0 | O73: 0 | P73: 28500 | Q73: =Tisdale!B65 -> 15500.8 | R73: =P73+Tisdale!B65 -> 44000.8 | S73: 39800.8 | T73: =intrp(Tisdale!$E$2:$F$14,S73) -> 12546.18182 | U73: 27254.61818 | V73: 44000.8 | W73: =intrp(Tisdale!$E$2:$F$14,V73) -> 16329.82278 | X73: 27670.97722
A74: 2000-03-05 | B74: 2000 | C74: =Historical!E72 -> 2200 | D74: 2200 | E74: =Historical!F72 -> 2000 | F74: 2000 | G74: =C74+E74 -> 4200 | H74: 333222.96 | I74: =VLOOKUP(B74,'EOS Storage'!$A$5:$F$28,6) -> 111 | J74: 0 | K74: 111000 | L74: =IF(J74<C74,MIN($L$1,J74),C74) -> 0 | M74: 0 | N74: 0 | O74: 0 | P74: 28500 | Q74: =Tisdale!B66 -> 15417.62 | R74: =P74+Tisdale!B66 -> 43917.62 | S74: 39717.62 | T74: =intrp(Tisdale!$E$2:$F$14,S74) -> 12470.56364 | U74: 27247.05636 | V74: 43917.62 | W74: =intrp(Tisdale!$E$2:$F$14,V74) -> 16256.11899 | X74: 27661.50101
A75: 2000-03-06 | B75: =IF(MONTH(A75)>9,YEAR(A75)+1,YEAR(A75)) -> 2000 | C75: =Historical!E73 -> 2200 | D75: 2200 | E75: =Historical!F73 -> 2000 | F75: 2000 | G75: 4200 | H75: 341553.534 | I75: =VLOOKUP(B75,'EOS Storage'!$A$5:$F$28,6) -> 111 | J75: =IF(B75=B74,IF(K74<I75*1000,MIN(G75,(I75*1000-K74)/1.98347),0),G75) -> 0 | K75: 111000 | L75: 0 | M75: 0 | N75: =J75-L75 -> 0 | O75: 0 | P75: 28900 | Q75: =Tisdale!B67 -> 15813.95 | R75: =P75+Tisdale!B67 -> 44713.95 | S75: 40513.95 | T75: =intrp(Tisdale!$E$2:$F$14,S75) -> 13194.5 | U75: 27319.45 | V75: 44713.95 | W75: =intrp(Tisdale!$E$2:$F$14,V75) -> 16961.72785 | X75: 27752.22215
A76: 2000-03-07 | B76: 2000 | C76: =Historical!E74 -> 2200 | D76: 2200 | E76: =Historical!F74 -> 2000 | F76: 2000 | G76: 4200 | H76: =IF(B76=B75,G76*1.98347+H75,G76*1.98347) -> 349884.108 | I76: =VLOOKUP(B76,'EOS Storage'!$A$5:$F$28,6) -> 111 | J76: 0 | K76: =K75+J76*1.98347 -> 111000 | L76: 0 | M76: 0 | N76: 0 | O76: 0 | P76: 29200 | Q76: =Tisdale!B68 -> 16159.67 | R76: =P76+Tisdale!B68 -> 45359.67 | S76: 41159.67 | T76: =intrp(Tisdale!$E$2:$F$14,S76) -> 13781.51818 | U76: 27378.15182 | V76: 45359.67 | W76: =intrp(Tisdale!$E$2:$F$14,V76) -> 17533.88481 | X76: 27825.78519
A77: 2000-03-08 | B77: 2000 | C77: =Historical!E75 -> 2200 | D77: 2200 | E77: =Historical!F75 -> 2000 | F77: 2000 | G77: 4200 | H77: 358214.682 | I77: =VLOOKUP(B77,'EOS Storage'!$A$5:$F$28,6) -> 111 | J77: 0 | K77: 111000 | L77: 0 | M77: 0 | N77: 0 | O77: 0 | P77: 28700 | Q77: =Tisdale!B69 -> 15703.64 | R77: =P77+Tisdale!B69 -> 44403.64 | S77: 40203.64 | T77: =intrp(Tisdale!$E$2:$F$14,S77) -> 12912.4 | U77: 27291.24 | V77: 44403.64 | W77: =intrp(Tisdale!$E$2:$F$14,V77) -> 16686.76962 | X77: 27716.87038
A78: 2000-03-09 | B78: 2000 | C78: =Historical!E76 -> 2200 | D78: 2200 | E78: =Historical!F76 -> 2000 | F78: 2000 | G78: 4200 | H78: 366545.256 | I78: =VLOOKUP(B78,'EOS Storage'!$A$5:$F$28,6) -> 111 | J78: 0 | K78: 111000 | L78: 0 | M78: 0 | N78: 0 | O78: 0 | P78: 28400 | Q78: =Tisdale!B70 -> 15346.4 | R78: =P78+Tisdale!B70 -> 43746.4 | S78: =R78-D78-F78 -> 39546.4 | T78: =intrp(Tisdale!$E$2:$F$14,S78) -> 12314.90909 | U78: =S78-T78 -> 27231.49091 | V78: =R78-M78-O78 -> 43746.4 | W78: =intrp(Tisdale!$E$2:$F$14,V78) -> 16104.40506 | X78: =V78-W78 -> 27641.99494
A79: 2000-03-10 | B79: 2000 | C79: =Historical!E77 -> 2200 | D79: =AVERAGE(C75:C79) -> 2200 | E79: =Historical!F77 -> 2000 | F79: =AVERAGE(E75:E79) -> 2000 | G79: 4200 | H79: 374875.83 | I79: =VLOOKUP(B79,'EOS Storage'!$A$5:$F$28,6) -> 111 | J79: 0 | K79: 111000 | L79: 0 | M79: =AVERAGE(L75:L79) -> 0 | N79: 0 | O79: =AVERAGE(N75:N79) -> 0 | P79: 28500 | Q79: =Tisdale!B71 -> 15393.76 | R79: =P79+Tisdale!B71 -> 43893.76 | S79: 39693.76 | T79: =intrp(Tisdale!$E$2:$F$14,S79) -> 12448.87273 | U79: 27244.88727 | V79: 43893.76 | W79: =intrp(Tisdale!$E$2:$F$14,V79) -> 16234.97722 | X79: 27658.78278
A80: 2000-03-11 | B80: 2000 | C80: =Historical!E78 -> 2200 | D80: 2200 | E80: =Historical!F78 -> 2000 | F80: 2000 | G80: 4200 | H80: 383206.404 | I80: =VLOOKUP(B80,'EOS Storage'!$A$5:$F$28,6) -> 111 | J80: 0 | K80: 111000 | L80: 0 | M80: 0 | N80: 0 | O80: 0 | P80: 28500 | Q80: =Tisdale!B72 -> 15370.6 | R80: =P80+Tisdale!B72 -> 43870.6 | S80: 39670.6 | T80: =intrp(Tisdale!$E$2:$F$14,S80) -> 12427.81818 | U80: 27242.78182 | V80: 43870.6 | W80: =intrp(Tisdale!$E$2:$F$14,V80) -> 16214.4557 | X80: 27656.1443
A81: 2000-03-12 | B81: 2000 | C81: =Historical!E79 -> 2200 | D81: 2200 | E81: =Historical!F79 -> 2000 | F81: 2000 | G81: 4200 | H81: 391536.978 | I81: =VLOOKUP(B81,'EOS Storage'!$A$5:$F$28,6) -> 111 | J81: 0 | K81: 111000 | L81: 0 | M81: 0 | N81: 0 | O81: 0 | P81: 28100 | Q81: =Tisdale!B73 -> 14930.98 | R81: =P81+Tisdale!B73 -> 43030.98 | S81: 38830.98 | T81: =intrp(Tisdale!$E$2:$F$14,S81) -> 11664.52727 | U81: 27166.45273 | V81: 43030.98 | W81: =intrp(Tisdale!$E$2:$F$14,V81) -> 15470.48861 | X81: 27560.49139
A82: 2000-03-13 | B82: 2000 | C82: =Historical!E80 -> 2200 | D82: 2200 | E82: =Historical!F80 -> 2000 | F82: 2000 | G82: 4200 | H82: 399867.552 | I82: =VLOOKUP(B82,'EOS Storage'!$A$5:$F$28,6) -> 111 | J82: 0 | K82: 111000 | L82: 0 | M82: 0 | N82: 0 | O82: 0 | P82: 27500 | Q82: =Tisdale!B74 -> 14288.83 | R82: =P82+Tisdale!B74 -> 41788.83 | S82: 37588.83 | T82: =intrp(Tisdale!$E$2:$F$14,S82) -> 10535.3 | U82: 27053.53 | V82: 41788.83 | W82: =intrp(Tisdale!$E$2:$F$14,V82) -> 14353.48182 | X82: 27435.34818
A83: 2000-03-14 | B83: 2000 | C83: =Historical!E81 -> 2200 | D83: 2200 | E83: =Historical!F81 -> 2000 | F83: 2000 | G83: 4200 | H83: 408198.126 | I83: =VLOOKUP(B83,'EOS Storage'!$A$5:$F$28,6) -> 111 | J83: 0 | K83: 111000 | L83: 0 | M83: 0 | N83: 0 | O83: 0 | P83: 26900 | Q83: =Tisdale!B75 -> 13602.11 | R83: =P83+Tisdale!B75 -> 40502.11 | S83: 36302.11 | T83: =intrp(Tisdale!$E$2:$F$14,S83) -> 9441.688 | U83: 26860.422 | V83: 40502.11 | W83: =intrp(Tisdale!$E$2:$F$14,V83) -> 13183.73636 | X83: 27318.37364
A84: 2000-03-15 | B84: 2000 | C84: =Historical!E82 -> 2200 | D84: 2200 | E84: =Historical!F82 -> 2000 | F84: 2000 | G84: 4200 | H84: 416528.7 | I84: =VLOOKUP(B84,'EOS Storage'!$A$5:$F$28,6) -> 111 | J84: 0 | K84: 111000 | L84: 0 | M84: 0 | N84: 0 | O84: 0 | P84: 26400 | Q84: =Tisdale!B76 -> 12346.2 | R84: =P84+Tisdale!B76 -> 38746.2 | S84: 34546.2 | T84: =intrp(Tisdale!$E$2:$F$14,S84) -> 8036.96 | U84: 26509.24 | V84: 38746.2 | W84: =intrp(Tisdale!$E$2:$F$14,V84) -> 11587.45455 | X84: 27158.74545
A85: 2000-03-16 | B85: 2000 | C85: =Historical!E83 -> 2200 | D85: 2200 | E85: =Historical!F83 -> 2000 | F85: 2000 | G85: 4200 | H85: 424859.274 | I85: =VLOOKUP(B85,'EOS Storage'!$A$5:$F$28,6) -> 111 | J85: 0 | K85: 111000 | L85: 0 | M85: 0 | N85: 0 | O85: 0 | P85: 25800 | Q85: =Tisdale!B77 -> 8807.18 | R85: =P85+Tisdale!B77 -> 34607.18 | S85: 30407.18 | T85: =intrp(Tisdale!$E$2:$F$14,S85) -> 4672.65 | U85: 25734.53 | V85: 34607.18 | W85: =intrp(Tisdale!$E$2:$F$14,V85) -> 8085.744 | X85: 26521.436
A86: 2000-03-17 | B86: 2000 | C86: =Historical!E84 -> 2200 | D86: 2200 | E86: =Historical!F84 -> 2000 | F86: 2000 | G86: 4200 | H86: 433189.848 | I86: =VLOOKUP(B86,'EOS Storage'!$A$5:$F$28,6) -> 111 | J86: 0 | K86: 111000 | L86: 0 | M86: 0 | N86: 0 | O86: 0 | P86: 24700 | Q86: =Tisdale!B78 -> 4156.69 | R86: =P86+Tisdale!B78 -> 28856.69 | S86: 24656.69 | T86: =intrp(Tisdale!$E$2:$F$14,S86) -> 856.8074074 | U86: 23799.88259 | V86: 28856.69 | W86: =intrp(Tisdale!$E$2:$F$14,V86) -> 3628.345 | X86: 25228.345
A87: 2000-03-18 | B87: 2000 | C87: =Historical!E85 -> 2200 | D87: 2200 | E87: =Historical!F85 -> 2000 | F87: 2000 | G87: 4200 | H87: 441520.422 | I87: =VLOOKUP(B87,'EOS Storage'!$A$5:$F$28,6) -> 111 | J87: 0 | K87: 111000 | L87: 0 | M87: 0 | N87: 0 | O87: 0 | P87: 23600 | Q87: =Tisdale!B79 -> 1424.91 | R87: =P87+Tisdale!B79 -> 25024.91 | S87: 20824.91 | T87: =intrp(Tisdale!$E$2:$F$14,S87) -> 0 | U87: 20824.91 | V87: 25024.91 | W87: =intrp(Tisdale!$E$2:$F$14,V87) -> 1129.562963 | X87: 23895.34704
A88: 2000-03-19 | B88: 2000 | C88: =Historical!E86 -> 2200 | D88: 2200 | E88: =Historical!F86 -> 2000 | F88: 2000 | G88: 4200 | H88: 449850.996 | I88: =VLOOKUP(B88,'EOS Storage'!$A$5:$F$28,6) -> 111 | J88: 0 | K88: 111000 | L88: 0 | M88: 0 | N88: 0 | O88: 0 | P88: 22400 | Q88: =Tisdale!B80 -> 192.45 | R88: =P88+Tisdale!B80 -> 22592.45 | S88: 18392.45 | T88: =intrp(Tisdale!$E$2:$F$14,S88) -> 0 | U88: 18392.45 | V88: 22592.45 | W88: =intrp(Tisdale!$E$2:$F$14,V88) -> 0 | X88: 22592.45
A89: 2000-03-20 | B89: 2000 | C89: =Historical!E87 -> 2200 | D89: 2200 | E89: =Historical!F87 -> 2000 | F89: 2000 | G89: 4200 | H89: 458181.57 | I89: =VLOOKUP(B89,'EOS Storage'!$A$5:$F$28,6) -> 111 | J89: 0 | K89: 111000 | L89: 0 | M89: 0 | N89: 0 | O89: 0 | P89: 20600 | Q89: =Tisdale!B81 -> 0 | R89: =P89+Tisdale!B81 -> 20600 | S89: 16400 | T89: =intrp(Tisdale!$E$2:$F$14,S89) -> 0 | U89: 16400 | V89: 20600 | W89: =intrp(Tisdale!$E$2:$F$14,V89) -> 0 | X89: 20600
A90: 2000-03-21 | B90: 2000 | C90: =Historical!E88 -> 2200 | D90: 2200 | E90: =Historical!F88 -> 2000 | F90: 2000 | G90: 4200 | H90: 466512.144 | I90: =VLOOKUP(B90,'EOS Storage'!$A$5:$F$28,6) -> 111 | J90: 0 | K90: 111000 | L90: 0 | M90: 0 | N90: 0 | O90: 0 | P90: 19800 | Q90: =Tisdale!B82 -> 0 | R90: =P90+Tisdale!B82 -> 19800 | S90: 15600 | T90: =intrp(Tisdale!$E$2:$F$14,S90) -> 0 | U90: 15600 | V90: 19800 | W90: =intrp(Tisdale!$E$2:$F$14,V90) -> 0 | X90: 19800
A91: 2000-03-22 | B91: 2000 | C91: =Historical!E89 -> 2200 | D91: 2200 | E91: =Historical!F89 -> 2000 | F91: 2000 | G91: 4200 | H91: 474842.718 | I91: =VLOOKUP(B91,'EOS Storage'!$A$5:$F$28,6) -> 111 | J91: 0 | K91: 111000 | L91: 0 | M91: 0 | N91: 0 | O91: 0 | P91: 19000 | Q91: =Tisdale!B83 -> 0 | R91: =P91+Tisdale!B83 -> 19000 | S91: 14800 | T91: =intrp(Tisdale!$E$2:$F$14,S91) -> 0 | U91: 14800 | V91: 19000 | W91: =intrp(Tisdale!$E$2:$F$14,V91) -> 0 | X91: 19000
A92: 2000-03-23 | B92: 2000 | C92: =Historical!E90 -> 2200 | D92: 2200 | E92: =Historical!F90 -> 2000 | F92: 2000 | G92: 4200 | H92: 483173.292 | I92: =VLOOKUP(B92,'EOS Storage'!$A$5:$F$28,6) -> 111 | J92: 0 | K92: 111000 | L92: 0 | M92: 0 | N92: 0 | O92: 0 | P92: 18100 | Q92: =Tisdale!B84 -> 0 | R92: =P92+Tisdale!B84 -> 18100 | S92: 13900 | T92: =intrp(Tisdale!$E$2:$F$14,S92) -> 0 | U92: 13900 | V92: 18100 | W92: =intrp(Tisdale!$E$2:$F$14,V92) -> 0 | X92: 18100
A93: 2000-03-24 | B93: 2000 | C93: =Historical!E91 -> 2200 | D93: 2200 | E93: =Historical!F91 -> 2000 | F93: 2000 | G93: 4200 | H93: 491503.866 | I93: =VLOOKUP(B93,'EOS Storage'!$A$5:$F$28,6) -> 111 | J93: 0 | K93: 111000 | L93: 0 | M93: 0 | N93: 0 | O93: 0 | P93: 17000 | Q93: =Tisdale!B85 -> 0 | R93: =P93+Tisdale!B85 -> 17000 | S93: 12800 | T93: =intrp(Tisdale!$E$2:$F$14,S93) -> 0 | U93: 12800 | V93: 17000 | W93: =intrp(Tisdale!$E$2:$F$14,V93) -> 0 | X93: 17000
A94: 2000-03-25 | B94: 2000 | C94: =Historical!E92 -> 2200 | D94: 2200 | E94: =Historical!F92 -> 2000 | F94: 2000 | G94: 4200 | H94: 499834.44 | I94: =VLOOKUP(B94,'EOS Storage'!$A$5:$F$28,6) -> 111 | J94: 0 | K94: 111000 | L94: 0 | M94: 0 | N94: 0 | O94: 0 | P94: 16000 | Q94: =Tisdale!B86 -> 0 | R94: =P94+Tisdale!B86 -> 16000 | S94: 11800 | T94: =intrp(Tisdale!$E$2:$F$14,S94) -> 0 | U94: 11800 | V94: 16000 | W94: =intrp(Tisdale!$E$2:$F$14,V94) -> 0 | X94: 16000
A95: 2000-03-26 | B95: 2000 | C95: =Historical!E93 -> 2200 | D95: 2200 | E95: =Historical!F93 -> 2000 | F95: 2000 | G95: 4200 | H95: 508165.014 | I95: =VLOOKUP(B95,'EOS Storage'!$A$5:$F$28,6) -> 111 | J95: 0 | K95: 111000 | L95: 0 | M95: 0 | N95: 0 | O95: 0 | P95: 15100 | Q95: =Tisdale!B87 -> 0 | R95: =P95+Tisdale!B87 -> 15100 | S95: 10900 | T95: =intrp(Tisdale!$E$2:$F$14,S95) -> 0 | U95: 10900 | V95: 15100 | W95: =intrp(Tisdale!$E$2:$F$14,V95) -> 0 | X95: 15100
A96: 2000-03-27 | B96: 2000 | C96: =Historical!E94 -> 2200 | D96: 2200 | E96: =Historical!F94 -> 1600 | F96: 1920 | G96: 3800 | H96: 515702.2 | I96: =VLOOKUP(B96,'EOS Storage'!$A$5:$F$28,6) -> 111 | J96: 0 | K96: 111000 | L96: 0 | M96: 0 | N96: 0 | O96: 0 | P96: 14500 | Q96: =Tisdale!B88 -> 0 | R96: =P96+Tisdale!B88 -> 14500 | S96: 10380 | T96: =intrp(Tisdale!$E$2:$F$14,S96) -> 0 | U96: 10380 | V96: 14500 | W96: =intrp(Tisdale!$E$2:$F$14,V96) -> 0 | X96: 14500
A97: 2000-03-28 | B97: 2000 | C97: =Historical!E95 -> 2200 | D97: 2200 | E97: =Historical!F95 -> 1100 | F97: 1740 | G97: 3300 | H97: 522247.651 | I97: =VLOOKUP(B97,'EOS Storage'!$A$5:$F$28,6) -> 111 | J97: 0 | K97: 111000 | L97: 0 | M97: 0 | N97: 0 | O97: 0 | P97: 14000 | Q97: =Tisdale!B89 -> 0 | R97: =P97+Tisdale!B89 -> 14000 | S97: 10060 | T97: =intrp(Tisdale!$E$2:$F$14,S97) -> 0 | U97: 10060 | V97: 14000 | W97: =intrp(Tisdale!$E$2:$F$14,V97) -> 0 | X97: 14000
A98: 2000-03-29 | B98: 2000 | C98: =Historical!E96 -> 2200 | D98: 2200 | E98: =Historical!F96 -> 800 | F98: 1500 | G98: 3000 | H98: 528198.061 | I98: =VLOOKUP(B98,'EOS Storage'!$A$5:$F$28,6) -> 111 | J98: 0 | K98: 111000 | L98: 0 | M98: 0 | N98: 0 | O98: 0 | P98: 13700 | Q98: =Tisdale!B90 -> 0 | R98: =P98+Tisdale!B90 -> 13700 | S98: 10000 | T98: =intrp(Tisdale!$E$2:$F$14,S98) -> 0 | U98: 10000 | V98: 13700 | W98: =intrp(Tisdale!$E$2:$F$14,V98) -> 0 | X98: 13700
A99: 2000-03-30 | B99: 2000 | C99: =Historical!E97 -> 2200 | D99: 2200 | E99: =Historical!F97 -> 400 | F99: 1180 | G99: 2600 | H99: 533355.083 | I99: =VLOOKUP(B99,'EOS Storage'!$A$5:$F$28,6) -> 111 | J99: 0 | K99: 111000 | L99: 0 | M99: 0 | N99: 0 | O99: 0 | P99: 13300 | Q99: =Tisdale!B91 -> 0 | R99: =P99+Tisdale!B91 -> 13300 | S99: 9920 | T99: =intrp(Tisdale!$E$2:$F$14,S99) -> 0 | U99: 9920 | V99: 13300 | W99: =intrp(Tisdale!$E$2:$F$14,V99) -> 0 | X99: 13300
A100: 2000-03-31 | B100: 2000 | C100: =Historical!E98 -> 2000 | D100: 2160 | E100: =Historical!F98 -> 0 | F100: 780 | G100: 2000 | H100: 537322.023 | I100: =VLOOKUP(B100,'EOS Storage'!$A$5:$F$28,6) -> 111 | J100: 0 | K100: 111000 | L100: 0 | M100: 0 | N100: 0 | O100: 0 | P100: 12700 | Q100: =Tisdale!B92 -> 0 | R100: =P100+Tisdale!B92 -> 12700 | S100: 9760 | T100: =intrp(Tisdale!$E$2:$F$14,S100) -> 0 | U100: 9760 | V100: 12700 | W100: =intrp(Tisdale!$E$2:$F$14,V100) -> 0 | X100: 12700
A101: 2000-04-01 | B101: 2000 | C101: =Historical!E99 -> 1600 | D101: 2040 | E101: =Historical!F99 -> 0 | F101: 460 | G101: 1600 | H101: 540495.575 | I101: =VLOOKUP(B101,'EOS Storage'!$A$5:$F$28,6) -> 111 | J101: 0 | K101: 111000 | L101: 0 | M101: 0 | N101: 0 | O101: 0 | P101: 12300 | Q101: =Tisdale!B93 -> 0 | R101: =P101+Tisdale!B93 -> 12300 | S101: 9800 | T101: =intrp(Tisdale!$E$2:$F$14,S101) -> 0 | U101: 9800 | V101: 12300 | W101: =intrp(Tisdale!$E$2:$F$14,V101) -> 0 | X101: 12300
A102: 2000-04-02 | B102: 2000 | C102: =Historical!E100 -> 1000 | D102: 1800 | E102: =Historical!F100 -> 0 | F102: 240 | G102: 1000 | H102: 542479.045 | I102: =VLOOKUP(B102,'EOS Storage'!$A$5:$F$28,6) -> 111 | J102: 0 | K102: 111000 | L102: 0 | M102: 0 | N102: 0 | O102: 0 | P102: 11700 | Q102: =Tisdale!B94 -> 0 | R102: =P102+Tisdale!B94 -> 11700 | S102: 9660 | T102: =intrp(Tisdale!$E$2:$F$14,S102) -> 0 | U102: 9660 | V102: 11700 | W102: =intrp(Tisdale!$E$2:$F$14,V102) -> 0 | X102: 11700
A103: 2000-04-03 | B103: 2000 | C103: =Historical!E101 -> 600 | D103: 1480 | E103: =Historical!F101 -> 0 | F103: 80 | G103: 600 | H103: 543669.127 | I103: =VLOOKUP(B103,'EOS Storage'!$A$5:$F$28,6) -> 111 | J103: 0 | K103: 111000 | L103: 0 | M103: 0 | N103: 0 | O103: 0 | P103: 11300 | Q103: =Tisdale!B95 -> 0 | R103: =P103+Tisdale!B95 -> 11300 | S103: 9740 | T103: =intrp(Tisdale!$E$2:$F$14,S103) -> 0 | U103: 9740 | V103: 11300 | W103: =intrp(Tisdale!$E$2:$F$14,V103) -> 0 | X103: 11300
A104: 2000-04-04 | B104: 2000 | C104: =Historical!E102 -> 300 | D104: 1100 | E104: =Historical!F102 -> 0 | F104: 0 | G104: 300 | H104: 544264.168 | I104: =VLOOKUP(B104,'EOS Storage'!$A$5:$F$28,6) -> 111 | J104: 0 | K104: 111000 | L104: 0 | M104: 0 | N104: 0 | O104: 0 | P104: 11000 | Q104: =Tisdale!B96 -> 0 | R104: =P104+Tisdale!B96 -> 11000 | S104: 9900 | T104: =intrp(Tisdale!$E$2:$F$14,S104) -> 0 | U104: 9900 | V104: 11000 | W104: =intrp(Tisdale!$E$2:$F$14,V104) -> 0 | X104: 11000
A105: 2000-04-05 | B105: 2000 | C105: =Historical!E103 -> 100 | D105: 720 | E105: =Historical!F103 -> 0 | F105: 0 | G105: 100 | H105: 544462.515 | I105: =VLOOKUP(B105,'EOS Storage'!$A$5:$F$28,6) -> 111 | J105: 0 | K105: 111000 | L105: 0 | M105: 0 | N105: 0 | O105: 0 | P105: 10800 | Q105: =Tisdale!B97 -> 0 | R105: =P105+Tisdale!B97 -> 10800 | S105: 10080 | T105: =intrp(Tisdale!$E$2:$F$14,S105) -> 0 | U105: 10080 | V105: 10800 | W105: =intrp(Tisdale!$E$2:$F$14,V105) -> 0 | X105: 10800
A106: 2000-04-06 | B106: 2000 | C106: =Historical!E104 -> 0 | D106: 400 | E106: =Historical!F104 -> 0 | F106: 0 | G106: 0 | H106: 544462.515 | I106: =VLOOKUP(B106,'EOS Storage'!$A$5:$F$28,6) -> 111 | J106: 0 | K106: 111000 | L106: 0 | M106: 0 | N106: 0 | O106: 0 | P106: 10700 | Q106: =Tisdale!B98 -> 0 | R106: =P106+Tisdale!B98 -> 10700 | S106: 10300 | T106: =intrp(Tisdale!$E$2:$F$14,S106) -> 0 | U106: 10300 | V106: 10700 | W106: =intrp(Tisdale!$E$2:$F$14,V106) -> 0 | X106: 10700
A107: 2000-04-07 | B107: 2000 | C107: =Historical!E105 -> 0 | D107: 200 | E107: =Historical!F105 -> 0 | F107: 0 | G107: 0 | H107: 544462.515 | I107: =VLOOKUP(B107,'EOS Storage'!$A$5:$F$28,6) -> 111 | J107: 0 | K107: 111000 | L107: 0 | M107: 0 | N107: 0 | O107: 0 | P107: 10500 | Q107: =Tisdale!B99 -> 0 | R107: =P107+Tisdale!B99 -> 10500 | S107: 10300 | T107: =intrp(Tisdale!$E$2:$F$14,S107) -> 0 | U107: 10300 | V107: 10500 | W107: =intrp(Tisdale!$E$2:$F$14,V107) -> 0 | X107: 10500
A108: 2000-04-08 | B108: 2000 | C108: =Historical!E106 -> 0 | D108: 80 | E108: =Historical!F106 -> 0 | F108: 0 | G108: 0 | H108: 544462.515 | I108: =VLOOKUP(B108,'EOS Storage'!$A$5:$F$28,6) -> 111 | J108: 0 | K108: 111000 | L108: 0 | M108: 0 | N108: 0 | O108: 0 | P108: 10200 | Q108: =Tisdale!B100 -> 0 | R108: =P108+Tisdale!B100 -> 10200 | S108: 10120 | T108: =intrp(Tisdale!$E$2:$F$14,S108) -> 0 | U108: 10120 | V108: 10200 | W108: =intrp(Tisdale!$E$2:$F$14,V108) -> 0 | X108: 10200
A109: 2000-04-09 | B109: 2000 | C109: =Historical!E107 -> 0 | D109: 20 | E109: =Historical!F107 -> 0 | F109: 0 | G109: 0 | H109: 544462.515 | I109: =VLOOKUP(B109,'EOS Storage'!$A$5:$F$28,6) -> 111 | J109: 0 | K109: 111000 | L109: 0 | M109: 0 | N109: 0 | O109: 0 | P109: 9990 | Q109: =Tisdale!B101 -> 0 | R109: =P109+Tisdale!B101 -> 9990 | S109: 9970 | T109: =intrp(Tisdale!$E$2:$F$14,S109) -> 0 | U109: 9970 | V109: 9990 | W109: =intrp(Tisdale!$E$2:$F$14,V109) -> 0 | X109: 9990
A110: 2000-04-10 | B110: 2000 | C110: =Historical!E108 -> 0 | D110: 0 | E110: =Historical!F108 -> 0 | F110: 0 | G110: 0 | H110: 544462.515 | I110: =VLOOKUP(B110,'EOS Storage'!$A$5:$F$28,6) -> 111 | J110: 0 | K110: 111000 | L110: 0 | M110: 0 | N110: 0 | O110: 0 | P110: 10500 | Q110: =Tisdale!B102 -> 0 | R110: =P110+Tisdale!B102 -> 10500 | S110: 10500 | T110: =intrp(Tisdale!$E$2:$F$14,S110) -> 0 | U110: 10500 | V110: 10500 | W110: =intrp(Tisdale!$E$2:$F$14,V110) -> 0 | X110: 10500
A111: 2000-04-11 | B111: 2000 | C111: =Historical!E109 -> 400 | D111: 80 | E111: =Historical!F109 -> 0 | F111: 0 | G111: 400 | H111: 545255.903 | I111: =VLOOKUP(B111,'EOS Storage'!$A$5:$F$28,6) -> 111 | J111: 0 | K111: 111000 | L111: 0 | M111: 0 | N111: 0 | O111: 0 | P111: 11100 | Q111: =Tisdale!B103 -> 0 | R111: =P111+Tisdale!B103 -> 11100 | S111: 11020 | T111: =intrp(Tisdale!$E$2:$F$14,S111) -> 0 | U111: 11020 | V111: 11100 | W111: =intrp(Tisdale!$E$2:$F$14,V111) -> 0 | X111: 11100
A112: 2000-04-12 | B112: 2000 | C112: =Historical!E110 -> 500 | D112: 180 | E112: =Historical!F110 -> 0 | F112: 0 | G112: 500 | H112: 546247.638 | I112: =VLOOKUP(B112,'EOS Storage'!$A$5:$F$28,6) -> 111 | J112: 0 | K112: 111000 | L112: 0 | M112: 0 | N112: 0 | O112: 0 | P112: 11200 | Q112: =Tisdale!B104 -> 0 | R112: =P112+Tisdale!B104 -> 11200 | S112: 11020 | T112: =intrp(Tisdale!$E$2:$F$14,S112) -> 0 | U112: 11020 | V112: 11200 | W112: =intrp(Tisdale!$E$2:$F$14,V112) -> 0 | X112: 11200
A113: 2000-04-13 | B113: 2000 | C113: =Historical!E111 -> 500 | D113: 280 | E113: =Historical!F111 -> 0 | F113: 0 | G113: 500 | H113: 547239.373 | I113: =VLOOKUP(B113,'EOS Storage'!$A$5:$F$28,6) -> 111 | J113: 0 | K113: 111000 | L113: 0 | M113: 0 | N113: 0 | O113: 0 | P113: 11200 | Q113: =Tisdale!B105 -> 0 | R113: =P113+Tisdale!B105 -> 11200 | S113: 10920 | T113: =intrp(Tisdale!$E$2:$F$14,S113) -> 0 | U113: 10920 | V113: 11200 | W113: =intrp(Tisdale!$E$2:$F$14,V113) -> 0 | X113: 11200
A114: 2000-04-14 | B114: 2000 | C114: =Historical!E112 -> 600 | D114: 400 | E114: =Historical!F112 -> 0 | F114: 0 | G114: 600 | H114: 548429.455 | I114: =VLOOKUP(B114,'EOS Storage'!$A$5:$F$28,6) -> 111 | J114: 0 | K114: 111000 | L114: 0 | M114: 0 | N114: 0 | O114: 0 | P114: 11300 | Q114: =Tisdale!B106 -> 0 | R114: =P114+Tisdale!B106 -> 11300 | S114: 10900 | T114: =intrp(Tisdale!$E$2:$F$14,S114) -> 0 | U114: 10900 | V114: 11300 | W114: =intrp(Tisdale!$E$2:$F$14,V114) -> 0 | X114: 11300
A115: 2000-04-15 | B115: 2000 | C115: =Historical!E113 -> 1200 | D115: 640 | E115: =Historical!F113 -> 0 | F115: 0 | G115: 1200 | H115: 550809.619 | I115: =VLOOKUP(B115,'EOS Storage'!$A$5:$F$28,6) -> 111 | J115: 0 | K115: 111000 | L115: 0 | M115: 0 | N115: 0 | O115: 0 | P115: 11900 | Q115: =Tisdale!B107 -> 0 | R115: =P115+Tisdale!B107 -> 11900 | S115: 11260 | T115: =intrp(Tisdale!$E$2:$F$14,S115) -> 0 | U115: 11260 | V115: 11900 | W115: =intrp(Tisdale!$E$2:$F$14,V115) -> 0 | X115: 11900
A116: 2000-04-16 | B116: 2000 | C116: =Historical!E114 -> 1000 | D116: 760 | E116: =Historical!F114 -> 0 | F116: 0 | G116: 1000 | H116: 552793.089 | I116: =VLOOKUP(B116,'EOS Storage'!$A$5:$F$28,6) -> 111 | J116: 0 | K116: 111000 | L116: 0 | M116: 0 | N116: 0 | O116: 0 | P116: 11700 | Q116: =Tisdale!B108 -> 0 | R116: =P116+Tisdale!B108 -> 11700 | S116: 10940 | T116: =intrp(Tisdale!$E$2:$F$14,S116) -> 0 | U116: 10940 | V116: 11700 | W116: =intrp(Tisdale!$E$2:$F$14,V116) -> 0 | X116: 11700
A117: 2000-04-17 | B117: 2000 | C117: =Historical!E115 -> 900 | D117: 840 | E117: =Historical!F115 -> 0 | F117: 0 | G117: 900 | H117: 554578.212 | I117: =VLOOKUP(B117,'EOS Storage'!$A$5:$F$28,6) -> 111 | J117: 0 | K117: 111000 | L117: 0 | M117: 0 | N117: 0 | O117: 0 | P117: 11600 | Q117: =Tisdale!B109 -> 0 | R117: =P117+Tisdale!B109 -> 11600 | S117: 10760 | T117: =intrp(Tisdale!$E$2:$F$14,S117) -> 0 | U117: 10760 | V117: 11600 | W117: =intrp(Tisdale!$E$2:$F$14,V117) -> 0 | X117: 11600
A118: 2000-04-18 | B118: 2000 | C118: =Historical!E116 -> 2200 | D118: 1180 | E118: =Historical!F116 -> 1000 | F118: 200 | G118: 3200 | H118: 560925.316 | I118: =VLOOKUP(B118,'EOS Storage'!$A$5:$F$28,6) -> 111 | J118: 0 | K118: 111000 | L118: 0 | M118: 0 | N118: 0 | O118: 0 | P118: 13900 | Q118: =Tisdale!B110 -> 0 | R118: =P118+Tisdale!B110 -> 13900 | S118: 12520 | T118: =intrp(Tisdale!$E$2:$F$14,S118) -> 0 | U118: 12520 | V118: 13900 | W118: =intrp(Tisdale!$E$2:$F$14,V118) -> 0 | X118: 13900
A119: 2000-04-19 | B119: 2000 | C119: =Historical!E117 -> 2200 | D119: 1500 | E119: =Historical!F117 -> 2000 | F119: 600 | G119: 4200 | H119: 569255.89 | I119: =VLOOKUP(B119,'EOS Storage'!$A$5:$F$28,6) -> 111 | J119: 0 | K119: 111000 | L119: 0 | M119: 0 | N119: 0 | O119: 0 | P119: 18900 | Q119: =Tisdale!B111 -> 0 | R119: =P119+Tisdale!B111 -> 18900 | S119: 16800 | T119: =intrp(Tisdale!$E$2:$F$14,S119) -> 0 | U119: 16800 | V119: 18900 | W119: =intrp(Tisdale!$E$2:$F$14,V119) -> 0 | X119: 18900
A120: 2000-04-20 | B120: 2000 | C120: =Historical!E118 -> 2200 | D120: 1700 | E120: =Historical!F118 -> 2000 | F120: 1000 | G120: 4200 | H120: 577586.464 | I120: =VLOOKUP(B120,'EOS Storage'!$A$5:$F$28,6) -> 111 | J120: 0 | K120: 111000 | L120: 0 | M120: 0 | N120: 0 | O120: 0 | P120: 18400 | Q120: =Tisdale!B112 -> 0 | R120: =P120+Tisdale!B112 -> 18400 | S120: 15700 | T120: =intrp(Tisdale!$E$2:$F$14,S120) -> 0 | U120: 15700 | V120: 18400 | W120: =intrp(Tisdale!$E$2:$F$14,V120) -> 0 | X120: 18400
A121: 2000-04-21 | B121: 2000 | C121: =Historical!E119 -> 2200 | D121: 1940 | E121: =Historical!F119 -> 2000 | F121: 1400 | G121: 4200 | H121: 585917.038 | I121: =VLOOKUP(B121,'EOS Storage'!$A$5:$F$28,6) -> 111 | J121: 0 | K121: 111000 | L121: 0 | M121: 0 | N121: 0 | O121: 0 | P121: 16300 | Q121: =Tisdale!B113 -> 0 | R121: =P121+Tisdale!B113 -> 16300 | S121: 12960 | T121: =intrp(Tisdale!$E$2:$F$14,S121) -> 0 | U121: 12960 | V121: 16300 | W121: =intrp(Tisdale!$E$2:$F$14,V121) -> 0 | X121: 16300
A122: 2000-04-22 | B122: 2000 | C122: =Historical!E120 -> 2200 | D122: 2200 | E122: =Historical!F120 -> 1800 | F122: 1760 | G122: 4000 | H122: 593850.918 | I122: =VLOOKUP(B122,'EOS Storage'!$A$5:$F$28,6) -> 111 | J122: 0 | K122: 111000 | L122: 0 | M122: 0 | N122: 0 | O122: 0 | P122: 14700 | Q122: =Tisdale!B114 -> 0 | R122: =P122+Tisdale!B114 -> 14700 | S122: 10740 | T122: =intrp(Tisdale!$E$2:$F$14,S122) -> 0 | U122: 10740 | V122: 14700 | W122: =intrp(Tisdale!$E$2:$F$14,V122) -> 0 | X122: 14700
A123: 2000-04-23 | B123: 2000 | C123: =Historical!E121 -> 2200 | D123: 2200 | E123: =Historical!F121 -> 900 | F123: 1740 | G123: 3100 | H123: 599999.675 | I123: =VLOOKUP(B123,'EOS Storage'!$A$5:$F$28,6) -> 111 | J123: 0 | K123: 111000 | L123: 0 | M123: 0 | N123: 0 | O123: 0 | P123: 13800 | Q123: =Tisdale!B115 -> 0 | R123: =P123+Tisdale!B115 -> 13800 | S123: 9860 | T123: =intrp(Tisdale!$E$2:$F$14,S123) -> 0 | U123: 9860 | V123: 13800 | W123: =intrp(Tisdale!$E$2:$F$14,V123) -> 0 | X123: 13800
A124: 2000-04-24 | B124: 2000 | C124: =Historical!E122 -> 2200 | D124: 2200 | E124: =Historical!F122 -> 400 | F124: 1420 | G124: 2600 | H124: 605156.697 | I124: =VLOOKUP(B124,'EOS Storage'!$A$5:$F$28,6) -> 111 | J124: 0 | K124: 111000 | L124: 0 | M124: 0 | N124: 0 | O124: 0 | P124: 13300 | Q124: =Tisdale!B116 -> 0 | R124: =P124+Tisdale!B116 -> 13300 | S124: 9680 | T124: =intrp(Tisdale!$E$2:$F$14,S124) -> 0 | U124: 9680 | V124: 13300 | W124: =intrp(Tisdale!$E$2:$F$14,V124) -> 0 | X124: 13300
A125: 2000-04-25 | B125: 2000 | C125: =Historical!E123 -> 1900 | D125: 2140 | E125: =Historical!F123 -> 0 | F125: 1020 | G125: 1900 | H125: 608925.29 | I125: =VLOOKUP(B125,'EOS Storage'!$A$5:$F$28,6) -> 111 | J125: 0 | K125: 111000 | L125: 0 | M125: 0 | N125: 0 | O125: 0 | P125: 12600 | Q125: =Tisdale!B117 -> 0 | R125: =P125+Tisdale!B117 -> 12600 | S125: 9440 | T125: =intrp(Tisdale!$E$2:$F$14,S125) -> 0 | U125: 9440 | V125: 12600 | W125: =intrp(Tisdale!$E$2:$F$14,V125) -> 0 | X125: 12600
A126: 2000-04-26 | B126: 2000 | C126: =Historical!E124 -> 1200 | D126: 1940 | E126: =Historical!F124 -> 0 | F126: 620 | G126: 1200 | H126: 611305.454 | I126: =VLOOKUP(B126,'EOS Storage'!$A$5:$F$28,6) -> 111 | J126: 0 | K126: 111000 | L126: 0 | M126: 0 | N126: 0 | O126: 0 | P126: 11900 | Q126: =Tisdale!B118 -> 0 | R126: =P126+Tisdale!B118 -> 11900 | S126: 9340 | T126: =intrp(Tisdale!$E$2:$F$14,S126) -> 0 | U126: 9340 | V126: 11900 | W126: =intrp(Tisdale!$E$2:$F$14,V126) -> 0 | X126: 11900
A127: 2000-04-27 | B127: 2000 | C127: =Historical!E125 -> 300 | D127: 1560 | E127: =Historical!F125 -> 0 | F127: 260 | G127: 300 | H127: 611900.495 | I127: =VLOOKUP(B127,'EOS Storage'!$A$5:$F$28,6) -> 111 | J127: 0 | K127: 111000 | L127: 0 | M127: 0 | N127: 0 | O127: 0 | P127: 11000 | Q127: =Tisdale!B119 -> 0 | R127: =P127+Tisdale!B119 -> 11000 | S127: 9180 | T127: =intrp(Tisdale!$E$2:$F$14,S127) -> 0 | U127: 9180 | V127: 11000 | W127: =intrp(Tisdale!$E$2:$F$14,V127) -> 0 | X127: 11000
A128: 2000-04-28 | B128: 2000 | C128: =Historical!E126 -> 0 | D128: 1120 | E128: =Historical!F126 -> 0 | F128: 80 | G128: 0 | H128: 611900.495 | I128: =VLOOKUP(B128,'EOS Storage'!$A$5:$F$28,6) -> 111 | J128: 0 | K128: 111000 | L128: 0 | M128: 0 | N128: 0 | O128: 0 | P128: 10300 | Q128: =Tisdale!B120 -> 0 | R128: =P128+Tisdale!B120 -> 10300 | S128: 9100 | T128: =intrp(Tisdale!$E$2:$F$14,S128) -> 0 | U128: 9100 | V128: 10300 | W128: =intrp(Tisdale!$E$2:$F$14,V128) -> 0 | X128: 10300
A129: 2000-04-29 | B129: 2000 | C129: =Historical!E127 -> 0 | D129: 680 | E129: =Historical!F127 -> 0 | F129: 0 | G129: 0 | H129: 611900.495 | I129: =VLOOKUP(B129,'EOS Storage'!$A$5:$F$28,6) -> 111 | J129: 0 | K129: 111000 | L129: 0 | M129: 0 | N129: 0 | O129: 0 | P129: 9880 | Q129: =Tisdale!B121 -> 0 | R129: =P129+Tisdale!B121 -> 9880 | S129: 9200 | T129: =intrp(Tisdale!$E$2:$F$14,S129) -> 0 | U129: 9200 | V129: 9880 | W129: =intrp(Tisdale!$E$2:$F$14,V129) -> 0 | X129: 9880
A130: 2000-04-30 | B130: 2000 | C130: =Historical!E128 -> 0 | D130: 300 | E130: =Historical!F128 -> 0 | F130: 0 | G130: 0 | H130: 611900.495 | I130: =VLOOKUP(B130,'EOS Storage'!$A$5:$F$28,6) -> 111 | J130: 0 | K130: 111000 | L130: 0 | M130: 0 | N130: 0 | O130: 0 | P130: 9870 | Q130: =Tisdale!B122 -> 0 | R130: =P130+Tisdale!B122 -> 9870 | S130: 9570 | T130: =intrp(Tisdale!$E$2:$F$14,S130) -> 0 | U130: 9570 | V130: 9870 | W130: =intrp(Tisdale!$E$2:$F$14,V130) -> 0 | X130: 9870
A131: 2000-05-01 | B131: 2000 | C131: =Historical!E129 -> 0 | D131: 60 | E131: =Historical!F129 -> 0 | F131: 0 | G131: 0 | H131: 611900.495 | I131: =VLOOKUP(B131,'EOS Storage'!$A$5:$F$28,6) -> 111 | J131: 0 | K131: 111000 | L131: 0 | M131: 0 | N131: 0 | O131: 0 | P131: 10100 | Q131: =Tisdale!B123 -> 0 | R131: =P131+Tisdale!B123 -> 10100 | S131: 10040 | T131: =intrp(Tisdale!$E$2:$F$14,S131) -> 0 | U131: 10040 | V131: 10100 | W131: =intrp(Tisdale!$E$2:$F$14,V131) -> 0 | X131: 10100
A132: 2000-05-02 | B132: 2000 | C132: =Historical!E130 -> 0 | D132: 0 | E132: =Historical!F130 -> 0 | F132: 0 | G132: 0 | H132: 611900.495 | I132: =VLOOKUP(B132,'EOS Storage'!$A$5:$F$28,6) -> 111 | J132: 0 | K132: 111000 | L132: 0 | M132: 0 | N132: 0 | O132: 0 | P132: 9900 | Q132: =Tisdale!B124 -> 0 | R132: =P132+Tisdale!B124 -> 9900 | S132: 9900 | T132: =intrp(Tisdale!$E$2:$F$14,S132) -> 0 | U132: 9900 | V132: 9900 | W132: =intrp(Tisdale!$E$2:$F$14,V132) -> 0 | X132: 9900
A133: 2000-05-03 | B133: 2000 | C133: =Historical!E131 -> 0 | D133: 0 | E133: =Historical!F131 -> 0 | F133: 0 | G133: 0 | H133: 611900.495 | I133: =VLOOKUP(B133,'EOS Storage'!$A$5:$F$28,6) -> 111 | J133: 0 | K133: 111000 | L133: 0 | M133: 0 | N133: 0 | O133: 0 | P133: 10100 | Q133: =Tisdale!B125 -> 0 | R133: =P133+Tisdale!B125 -> 10100 | S133: 10100 | T133: =intrp(Tisdale!$E$2:$F$14,S133) -> 0 | U133: 10100 | V133: 10100 | W133: =intrp(Tisdale!$E$2:$F$14,V133) -> 0 | X133: 10100
A134: 2000-05-04 | B134: 2000 | C134: =Historical!E132 -> 0 | D134: 0 | E134: =Historical!F132 -> 0 | F134: 0 | G134: 0 | H134: 611900.495 | I134: =VLOOKUP(B134,'EOS Storage'!$A$5:$F$28,6) -> 111 | J134: 0 | K134: 111000 | L134: 0 | M134: 0 | N134: 0 | O134: 0 | P134: 10800 | Q134: =Tisdale!B126 -> 0 | R134: =P134+Tisdale!B126 -> 10800 | S134: 10800 | T134: =intrp(Tisdale!$E$2:$F$14,S134) -> 0 | U134: 10800 | V134: 10800 | W134: =intrp(Tisdale!$E$2:$F$14,V134) -> 0 | X134: 10800
A135: 2000-05-05 | B135: 2000 | C135: =Historical!E133 -> 0 | D135: 0 | E135: =Historical!F133 -> 0 | F135: 0 | G135: 0 | H135: 611900.495 | I135: =VLOOKUP(B135,'EOS Storage'!$A$5:$F$28,6) -> 111 | J135: 0 | K135: 111000 | L135: 0 | M135: 0 | N135: 0 | O135: 0 | P135: 10800 | Q135: =Tisdale!B127 -> 0 | R135: =P135+Tisdale!B127 -> 10800 | S135: 10800 | T135: =intrp(Tisdale!$E$2:$F$14,S135) -> 0 | U135: 10800 | V135: 10800 | W135: =intrp(Tisdale!$E$2:$F$14,V135) -> 0 | X135: 10800
A136: 2000-05-06 | B136: 2000 | C136: =Historical!E134 -> 0 | D136: 0 | E136: =Historical!F134 -> 0 | F136: 0 | G136: 0 | H136: 611900.495 | I136: =VLOOKUP(B136,'EOS Storage'!$A$5:$F$28,6) -> 111 | J136: 0 | K136: 111000 | L136: 0 | M136: 0 | N136: 0 | O136: 0 | P136: 10700 | Q136: =Tisdale!B128 -> 0 | R136: =P136+Tisdale!B128 -> 10700 | S136: 10700 | T136: =intrp(Tisdale!$E$2:$F$14,S136) -> 0 | U136: 10700 | V136: 10700 | W136: =intrp(Tisdale!$E$2:$F$14,V136) -> 0 | X136: 10700
A137: 2000-05-07 | B137: 2000 | C137: =Historical!E135 -> 0 | D137: 0 | E137: =Historical!F135 -> 0 | F137: 0 | G137: 0 | H137: 611900.495 | I137: =VLOOKUP(B137,'EOS Storage'!$A$5:$F$28,6) -> 111 | J137: 0 | K137: 111000 | L137: 0 | M137: 0 | N137: 0 | O137: 0 | P137: 11100 | Q137: =Tisdale!B129 -> 0 | R137: =P137+Tisdale!B129 -> 11100 | S137: 11100 | T137: =intrp(Tisdale!$E$2:$F$14,S137) -> 0 | U137: 11100 | V137: 11100 | W137: =intrp(Tisdale!$E$2:$F$14,V137) -> 0 | X137: 11100
A138: 2000-05-08 | B138: 2000 | C138: =Historical!E136 -> 0 | D138: 0 | E138: =Historical!F136 -> 0 | F138: 0 | G138: =C138+E138 -> 0 | H138: 611900.495 | I138: =VLOOKUP(B138,'EOS Storage'!$A$5:$F$28,6) -> 111 | J138: 0 | K138: 111000 | L138: =IF(J138<C138,MIN($L$1,J138),C138) -> 0 | M138: 0 | N138: 0 | O138: 0 | P138: 11200 | Q138: =Tisdale!B130 -> 0 | R138: =P138+Tisdale!B130 -> 11200 | S138: 11200 | T138: =intrp(Tisdale!$E$2:$F$14,S138) -> 0 | U138: 11200 | V138: 11200 | W138: =intrp(Tisdale!$E$2:$F$14,V138) -> 0 | X138: 11200
A139: 2000-05-09 | B139: =IF(MONTH(A139)>9,YEAR(A139)+1,YEAR(A139)) -> 2000 | C139: =Historical!E137 -> 0 | D139: 0 | E139: =Historical!F137 -> 0 | F139: 0 | G139: 0 | H139: 611900.495 | I139: =VLOOKUP(B139,'EOS Storage'!$A$5:$F$28,6) -> 111 | J139: =IF(B139=B138,IF(K138<I139*1000,MIN(G139,(I139*1000-K138)/1.98347),0),G139) -> 0 | K139: 111000 | L139: 0 | M139: 0 | N139: =J139-L139 -> 0 | O139: 0 | P139: 11200 | Q139: =Tisdale!B131 -> 0 | R139: =P139+Tisdale!B131 -> 11200 | S139: 11200 | T139: =intrp(Tisdale!$E$2:$F$14,S139) -> 0 | U139: 11200 | V139: 11200 | W139: =intrp(Tisdale!$E$2:$F$14,V139) -> 0 | X139: 11200
A140: 2000-05-10 | B140: 2000 | C140: =Historical!E138 -> 0 | D140: 0 | E140: =Historical!F138 -> 0 | F140: 0 | G140: 0 | H140: =IF(B140=B139,G140*1.98347+H139,G140*1.98347) -> 611900.495 | I140: =VLOOKUP(B140,'EOS Storage'!$A$5:$F$28,6) -> 111 | J140: 0 | K140: =K139+J140*1.98347 -> 111000 | L140: 0 | M140: 0 | N140: 0 | O140: 0 | P140: 10900 | Q140: =Tisdale!B132 -> 0 | R140: =P140+Tisdale!B132 -> 10900 | S140: 10900 | T140: =intrp(Tisdale!$E$2:$F$14,S140) -> 0 | U140: 10900 | V140: 10900 | W140: =intrp(Tisdale!$E$2:$F$14,V140) -> 0 | X140: 10900
A141: 2000-05-11 | B141: 2000 | C141: =Historical!E139 -> 0 | D141: 0 | E141: =Historical!F139 -> 0 | F141: 0 | G141: 0 | H141: 611900.495 | I141: =VLOOKUP(B141,'EOS Storage'!$A$5:$F$28,6) -> 111 | J141: 0 | K141: 111000 | L141: 0 | M141: 0 | N141: 0 | O141: 0 | P141: 9790 | Q141: =Tisdale!B133 -> 0 | R141: =P141+Tisdale!B133 -> 9790 | S141: 9790 | T141: =intrp(Tisdale!$E$2:$F$14,S141) -> 0 | U141: 9790 | V141: 9790 | W141: =intrp(Tisdale!$E$2:$F$14,V141) -> 0 | X141: 9790
A142: 2000-05-12 | B142: 2000 | C142: =Historical!E140 -> 0 | D142: 0 | E142: =Historical!F140 -> 0 | F142: 0 | G142: 0 | H142: 611900.495 | I142: =VLOOKUP(B142,'EOS Storage'!$A$5:$F$28,6) -> 111 | J142: 0 | K142: 111000 | L142: 0 | M142: 0 | N142: 0 | O142: 0 | P142: 8970 | Q142: =Tisdale!B134 -> 0 | R142: =P142+Tisdale!B134 -> 8970 | S142: =R142-D142-F142 -> 8970 | T142: =intrp(Tisdale!$E$2:$F$14,S142) -> 0 | U142: =S142-T142 -> 8970 | V142: =R142-M142-O142 -> 8970 | W142: =intrp(Tisdale!$E$2:$F$14,V142) -> 0 | X142: =V142-W142 -> 8970
A143: 2000-05-13 | B143: 2000 | C143: =Historical!E141 -> 0 | D143: =AVERAGE(C139:C143) -> 0 | E143: =Historical!F141 -> 0 | F143: =AVERAGE(E139:E143) -> 0 | G143: 0 | H143: 611900.495 | I143: =VLOOKUP(B143,'EOS Storage'!$A$5:$F$28,6) -> 111 | J143: 0 | K143: 111000 | L143: 0 | M143: =AVERAGE(L139:L143) -> 0 | N143: 0 | O143: =AVERAGE(N139:N143) -> 0 | P143: 8180 | Q143: =Tisdale!B135 -> 0 | R143: =P143+Tisdale!B135 -> 8180 | S143: 8180 | T143: =intrp(Tisdale!$E$2:$F$14,S143) -> 0 | U143: 8180 | V143: 8180 | W143: =intrp(Tisdale!$E$2:$F$14,V143) -> 0 | X143: 8180
A144: 2000-05-14 | B144: 2000 | C144: =Historical!E142 -> 0 | D144: 0 | E144: =Historical!F142 -> 0 | F144: 0 | G144: 0 | H144: 611900.495 | I144: =VLOOKUP(B144,'EOS Storage'!$A$5:$F$28,6) -> 111 | J144: 0 | K144: 111000 | L144: 0 | M144: 0 | N144: 0 | O144: 0 | P144: 7700 | Q144: =Tisdale!B136 -> 0 | R144: =P144+Tisdale!B136 -> 7700 | S144: 7700 | T144: =intrp(Tisdale!$E$2:$F$14,S144) -> 0 | U144: 7700 | V144: 7700 | W144: =intrp(Tisdale!$E$2:$F$14,V144) -> 0 | X144: 7700
A145: 2000-05-15 | B145: 2000 | C145: =Historical!E143 -> 0 | D145: 0 | E145: =Historical!F143 -> 0 | F145: 0 | G145: 0 | H145: 611900.495 | I145: =VLOOKUP(B145,'EOS Storage'!$A$5:$F$28,6) -> 111 | J145: 0 | K145: 111000 | L145: 0 | M145: 0 | N145: 0 | O145: 0 | P145: 7880 | Q145: =Tisdale!B137 -> 0 | R145: =P145+Tisdale!B137 -> 7880 | S145: 7880 | T145: =intrp(Tisdale!$E$2:$F$14,S145) -> 0 | U145: 7880 | V145: 7880 | W145: =intrp(Tisdale!$E$2:$F$14,V145) -> 0 | X145: 7880
A146: 2000-05-16 | B146: 2000 | C146: =Historical!E144 -> 0 | D146: 0 | E146: =Historical!F144 -> 0 | F146: 0 | G146: 0 | H146: 611900.495 | I146: =VLOOKUP(B146,'EOS Storage'!$A$5:$F$28,6) -> 111 | J146: 0 | K146: 111000 | L146: 0 | M146: 0 | N146: 0 | O146: 0 | P146: 8180 | Q146: =Tisdale!B138 -> 0 | R146: =P146+Tisdale!B138 -> 8180 | S146: 8180 | T146: =intrp(Tisdale!$E$2:$F$14,S146) -> 0 | U146: 8180 | V146: 8180 | W146: =intrp(Tisdale!$E$2:$F$14,V146) -> 0 | X146: 8180
A147: 2000-05-17 | B147: 2000 | C147: =Historical!E145 -> 0 | D147: 0 | E147: =Historical!F145 -> 0 | F147: 0 | G147: 0 | H147: 611900.495 | I147: =VLOOKUP(B147,'EOS Storage'!$A$5:$F$28,6) -> 111 | J147: 0 | K147: 111000 | L147: 0 | M147: 0 | N147: 0 | O147: 0 | P147: 9700 | Q147: =Tisdale!B139 -> 0 | R147: =P147+Tisdale!B139 -> 9700 | S147: 9700 | T147: =intrp(Tisdale!$E$2:$F$14,S147) -> 0 | U147: 9700 | V147: 9700 | W147: =intrp(Tisdale!$E$2:$F$14,V147) -> 0 | X147: 9700
A148: 2000-05-18 | B148: 2000 | C148: =Historical!E146 -> 0 | D148: 0 | E148: =Historical!F146 -> 0 | F148: 0 | G148: 0 | H148: 611900.495 | I148: =VLOOKUP(B148,'EOS Storage'!$A$5:$F$28,6) -> 111 | J148: 0 | K148: 111000 | L148: 0 | M148: 0 | N148: 0 | O148: 0 | P148: 9900 | Q148: =Tisdale!B140 -> 0 | R148: =P148+Tisdale!B140 -> 9900 | S148: 9900 | T148: =intrp(Tisdale!$E$2:$F$14,S148) -> 0 | U148: 9900 | V148: 9900 | W148: =intrp(Tisdale!$E$2:$F$14,V148) -> 0 | X148: 9900
A149: 2000-05-19 | B149: 2000 | C149: =Historical!E147 -> 0 | D149: 0 | E149: =Historical!F147 -> 0 | F149: 0 | G149: 0 | H149: 611900.495 | I149: =VLOOKUP(B149,'EOS Storage'!$A$5:$F$28,6) -> 111 | J149: 0 | K149: 111000 | L149: 0 | M149: 0 | N149: 0 | O149: 0 | P149: 9030 | Q149: =Tisdale!B141 -> 0 | R149: =P149+Tisdale!B141 -> 9030 | S149: 9030 | T149: =intrp(Tisdale!$E$2:$F$14,S149) -> 0 | U149: 9030 | V149: 9030 | W149: =intrp(Tisdale!$E$2:$F$14,V149) -> 0 | X149: 9030
A150: 2000-05-20 | B150: 2000 | C150: =Historical!E148 -> 0 | D150: 0 | E150: =Historical!F148 -> 0 | F150: 0 | G150: 0 | H150: 611900.495 | I150: =VLOOKUP(B150,'EOS Storage'!$A$5:$F$28,6) -> 111 | J150: 0 | K150: 111000 | L150: 0 | M150: 0 | N150: 0 | O150: 0 | P150: 8840 | Q150: =Tisdale!B142 -> 0 | R150: =P150+Tisdale!B142 -> 8840 | S150: 8840 | T150: =intrp(Tisdale!$E$2:$F$14,S150) -> 0 | U150: 8840 | V150: 8840 | W150: =intrp(Tisdale!$E$2:$F$14,V150) -> 0 | X150: 8840
A151: 2000-05-21 | B151: 2000 | C151: =Historical!E149 -> 0 | D151: 0 | E151: =Historical!F149 -> 0 | F151: 0 | G151: 0 | H151: 611900.495 | I151: =VLOOKUP(B151,'EOS Storage'!$A$5:$F$28,6) -> 111 | J151: 0 | K151: 111000 | L151: 0 | M151: 0 | N151: 0 | O151: 0 | P151: 9740 | Q151: =Tisdale!B143 -> 0 | R151: =P151+Tisdale!B143 -> 9740 | S151: 9740 | T151: =intrp(Tisdale!$E$2:$F$14,S151) -> 0 | U151: 9740 | V151: 9740 | W151: =intrp(Tisdale!$E$2:$F$14,V151) -> 0 | X151: 9740
A152: 2000-05-22 | B152: 2000 | C152: =Historical!E150 -> 0 | D152: 0 | E152: =Historical!F150 -> 0 | F152: 0 | G152: 0 | H152: 611900.495 | I152: =VLOOKUP(B152,'EOS Storage'!$A$5:$F$28,6) -> 111 | J152: 0 | K152: 111000 | L152: 0 | M152: 0 | N152: 0 | O152: 0 | P152: 10700 | Q152: =Tisdale!B144 -> 0 | R152: =P152+Tisdale!B144 -> 10700 | S152: 10700 | T152: =intrp(Tisdale!$E$2:$F$14,S152) -> 0 | U152: 10700 | V152: 10700 | W152: =intrp(Tisdale!$E$2:$F$14,V152) -> 0 | X152: 10700
A153: 2000-05-23 | B153: 2000 | C153: =Historical!E151 -> 100 | D153: 20 | E153: =Historical!F151 -> 0 | F153: 0 | G153: 100 | H153: 612098.842 | I153: =VLOOKUP(B153,'EOS Storage'!$A$5:$F$28,6) -> 111 | J153: 0 | K153: 111000 | L153: 0 | M153: 0 | N153: 0 | O153: 0 | P153: 10800 | Q153: =Tisdale!B145 -> 0 | R153: =P153+Tisdale!B145 -> 10800 | S153: 10780 | T153: =intrp(Tisdale!$E$2:$F$14,S153) -> 0 | U153: 10780 | V153: 10800 | W153: =intrp(Tisdale!$E$2:$F$14,V153) -> 0 | X153: 10800
A154: 2000-05-24 | B154: 2000 | C154: =Historical!E152 -> 0 | D154: 20 | E154: =Historical!F152 -> 0 | F154: 0 | G154: 0 | H154: 612098.842 | I154: =VLOOKUP(B154,'EOS Storage'!$A$5:$F$28,6) -> 111 | J154: 0 | K154: 111000 | L154: 0 | M154: 0 | N154: 0 | O154: 0 | P154: 10600 | Q154: =Tisdale!B146 -> 0 | R154: =P154+Tisdale!B146 -> 10600 | S154: 10580 | T154: =intrp(Tisdale!$E$2:$F$14,S154) -> 0 | U154: 10580 | V154: 10600 | W154: =intrp(Tisdale!$E$2:$F$14,V154) -> 0 | X154: 10600
A155: 2000-05-25 | B155: 2000 | C155: =Historical!E153 -> 0 | D155: 20 | E155: =Historical!F153 -> 0 | F155: 0 | G155: 0 | H155: 612098.842 | I155: =VLOOKUP(B155,'EOS Storage'!$A$5:$F$28,6) -> 111 | J155: 0 | K155: 111000 | L155: 0 | M155: 0 | N155: 0 | O155: 0 | P155: 10300 | Q155: =Tisdale!B147 -> 0 | R155: =P155+Tisdale!B147 -> 10300 | S155: 10280 | T155: =intrp(Tisdale!$E$2:$F$14,S155) -> 0 | U155: 10280 | V155: 10300 | W155: =intrp(Tisdale!$E$2:$F$14,V155) -> 0 | X155: 10300
A156: 2000-05-26 | B156: 2000 | C156: =Historical!E154 -> 0 | D156: 20 | E156: =Historical!F154 -> 0 | F156: 0 | G156: 0 | H156: 612098.842 | I156: =VLOOKUP(B156,'EOS Storage'!$A$5:$F$28,6) -> 111 | J156: 0 | K156: 111000 | L156: 0 | M156: 0 | N156: 0 | O156: 0 | P156: 10600 | Q156: =Tisdale!B148 -> 0 | R156: =P156+Tisdale!B148 -> 10600 | S156: 10580 | T156: =intrp(Tisdale!$E$2:$F$14,S156) -> 0 | U156: 10580 | V156: 10600 | W156: =intrp(Tisdale!$E$2:$F$14,V156) -> 0 | X156: 10600
A157: 2000-05-27 | B157: 2000 | C157: =Historical!E155 -> 0 | D157: 20 | E157: =Historical!F155 -> 0 | F157: 0 | G157: 0 | H157: 612098.842 | I157: =VLOOKUP(B157,'EOS Storage'!$A$5:$F$28,6) -> 111 | J157: 0 | K157: 111000 | L157: 0 | M157: 0 | N157: 0 | O157: 0 | P157: 9690 | Q157: =Tisdale!B149 -> 0 | R157: =P157+Tisdale!B149 -> 9690 | S157: 9670 | T157: =intrp(Tisdale!$E$2:$F$14,S157) -> 0 | U157: 9670 | V157: 9690 | W157: =intrp(Tisdale!$E$2:$F$14,V157) -> 0 | X157: 9690
A158: 2000-05-28 | B158: 2000 | C158: =Historical!E156 -> 0 | D158: 0 | E158: =Historical!F156 -> 0 | F158: 0 | G158: 0 | H158: 612098.842 | I158: =VLOOKUP(B158,'EOS Storage'!$A$5:$F$28,6) -> 111 | J158: 0 | K158: 111000 | L158: 0 | M158: 0 | N158: 0 | O158: 0 | P158: 9460 | Q158: =Tisdale!B150 -> 0 | R158: =P158+Tisdale!B150 -> 9460 | S158: 9460 | T158: =intrp(Tisdale!$E$2:$F$14,S158) -> 0 | U158: 9460 | V158: 9460 | W158: =intrp(Tisdale!$E$2:$F$14,V158) -> 0 | X158: 9460
A159: 2000-05-29 | B159: 2000 | C159: =Historical!E157 -> 0 | D159: 0 | E159: =Historical!F157 -> 0 | F159: 0 | G159: 0 | H159: 612098.842 | I159: =VLOOKUP(B159,'EOS Storage'!$A$5:$F$28,6) -> 111 | J159: 0 | K159: 111000 | L159: 0 | M159: 0 | N159: 0 | O159: 0 | P159: 9550 | Q159: =Tisdale!B151 -> 0 | R159: =P159+Tisdale!B151 -> 9550 | S159: 9550 | T159: =intrp(Tisdale!$E$2:$F$14,S159) -> 0 | U159: 9550 | V159: 9550 | W159: =intrp(Tisdale!$E$2:$F$14,V159) -> 0 | X159: 9550
A160: 2000-05-30 | B160: 2000 | C160: =Historical!E158 -> 0 | D160: 0 | E160: =Historical!F158 -> 0 | F160: 0 | G160: 0 | H160: 612098.842 | I160: =VLOOKUP(B160,'EOS Storage'!$A$5:$F$28,6) -> 111 | J160: 0 | K160: 111000 | L160: 0 | M160: 0 | N160: 0 | O160: 0 | P160: 9550 | Q160: =Tisdale!B152 -> 0 | R160: =P160+Tisdale!B152 -> 9550 | S160: 9550 | T160: =intrp(Tisdale!$E$2:$F$14,S160) -> 0 | U160: 9550 | V160: 9550 | W160: =intrp(Tisdale!$E$2:$F$14,V160) -> 0 | X160: 9550
A161: 2000-05-31 | B161: 2000 | C161: =Historical!E159 -> 0 | D161: 0 | E161: =Historical!F159 -> 0 | F161: 0 | G161: 0 | H161: 612098.842 | I161: =VLOOKUP(B161,'EOS Storage'!$A$5:$F$28,6) -> 111 | J161: 0 | K161: 111000 | L161: 0 | M161: 0 | N161: 0 | O161: 0 | P161: 9300 | Q161: =Tisdale!B153 -> 0 | R161: =P161+Tisdale!B153 -> 9300 | S161: 9300 | T161: =intrp(Tisdale!$E$2:$F$14,S161) -> 0 | U161: 9300 | V161: 9300 | W161: =intrp(Tisdale!$E$2:$F$14,V161) -> 0 | X161: 9300
A162: 2000-06-01 | B162: 2000 | C162: =Historical!E160 -> 0 | D162: 0 | E162: =Historical!F160 -> 0 | F162: 0 | G162: 0 | H162: 612098.842 | I162: =VLOOKUP(B162,'EOS Storage'!$A$5:$F$28,6) -> 111 | J162: 0 | K162: 111000 | L162: 0 | M162: 0 | N162: 0 | O162: 0 | P162: 9200 | Q162: =Tisdale!B154 -> 0 | R162: =P162+Tisdale!B154 -> 9200 | S162: 9200 | T162: =intrp(Tisdale!$E$2:$F$14,S162) -> 0 | U162: 9200 | V162: 9200 | W162: =intrp(Tisdale!$E$2:$F$14,V162) -> 0 | X162: 9200
A163: 2000-06-02 | B163: 2000 | C163: =Historical!E161 -> 0 | D163: 0 | E163: =Historical!F161 -> 0 | F163: 0 | G163: 0 | H163: 612098.842 | I163: =VLOOKUP(B163,'EOS Storage'!$A$5:$F$28,6) -> 111 | J163: 0 | K163: 111000 | L163: 0 | M163: 0 | N163: 0 | O163: 0 | P163: 8960 | Q163: =Tisdale!B155 -> 0 | R163: =P163+Tisdale!B155 -> 8960 | S163: 8960 | T163: =intrp(Tisdale!$E$2:$F$14,S163) -> 0 | U163: 8960 | V163: 8960 | W163: =intrp(Tisdale!$E$2:$F$14,V163) -> 0 | X163: 8960
A164: 2000-06-03 | B164: 2000 | C164: =Historical!E162 -> 0 | D164: 0 | E164: =Historical!F162 -> 0 | F164: 0 | G164: 0 | H164: 612098.842 | I164: =VLOOKUP(B164,'EOS Storage'!$A$5:$F$28,6) -> 111 | J164: 0 | K164: 111000 | L164: 0 | M164: 0 | N164: 0 | O164: 0 | P164: 8410 | Q164: =Tisdale!B156 -> 0 | R164: =P164+Tisdale!B156 -> 8410 | S164: 8410 | T164: =intrp(Tisdale!$E$2:$F$14,S164) -> 0 | U164: 8410 | V164: 8410 | W164: =intrp(Tisdale!$E$2:$F$14,V164) -> 0 | X164: 8410
A165: 2000-06-04 | B165: 2000 | C165: =Historical!E163 -> 0 | D165: 0 | E165: =Historical!F163 -> 0 | F165: 0 | G165: 0 | H165: 612098.842 | I165: =VLOOKUP(B165,'EOS Storage'!$A$5:$F$28,6) -> 111 | J165: 0 | K165: 111000 | L165: 0 | M165: 0 | N165: 0 | O165: 0 | P165: 8070 | Q165: =Tisdale!B157 -> 0 | R165: =P165+Tisdale!B157 -> 8070 | S165: 8070 | T165: =intrp(Tisdale!$E$2:$F$14,S165) -> 0 | U165: 8070 | V165: 8070 | W165: =intrp(Tisdale!$E$2:$F$14,V165) -> 0 | X165: 8070
A166: 2000-06-05 | B166: 2000 | C166: =Historical!E164 -> 0 | D166: 0 | E166: =Historical!F164 -> 0 | F166: 0 | G166: 0 | H166: 612098.842 | I166: =VLOOKUP(B166,'EOS Storage'!$A$5:$F$28,6) -> 111 | J166: 0 | K166: 111000 | L166: 0 | M166: 0 | N166: 0 | O166: 0 | P166: 7960 | Q166: =Tisdale!B158 -> 0 | R166: =P166+Tisdale!B158 -> 7960 | S166: 7960 | T166: =intrp(Tisdale!$E$2:$F$14,S166) -> 0 | U166: 7960 | V166: 7960 | W166: =intrp(Tisdale!$E$2:$F$14,V166) -> 0 | X166: 7960
A167: 2000-06-06 | B167: 2000 | C167: =Historical!E165 -> 0 | D167: 0 | E167: =Historical!F165 -> 0 | F167: 0 | G167: 0 | H167: 612098.842 | I167: =VLOOKUP(B167,'EOS Storage'!$A$5:$F$28,6) -> 111 | J167: 0 | K167: 111000 | L167: 0 | M167: 0 | N167: 0 | O167: 0 | P167: 7730 | Q167: =Tisdale!B159 -> 0 | R167: =P167+Tisdale!B159 -> 7730 | S167: 7730 | T167: =intrp(Tisdale!$E$2:$F$14,S167) -> 0 | U167: 7730 | V167: 7730 | W167: =intrp(Tisdale!$E$2:$F$14,V167) -> 0 | X167: 7730
A168: 2000-06-07 | B168: 2000 | C168: =Historical!E166 -> 0 | D168: 0 | E168: =Historical!F166 -> 0 | F168: 0 | G168: 0 | H168: 612098.842 | I168: =VLOOKUP(B168,'EOS Storage'!$A$5:$F$28,6) -> 111 | J168: 0 | K168: 111000 | L168: 0 | M168: 0 | N168: 0 | O168: 0 | P168: 7280 | Q168: =Tisdale!B160 -> 0 | R168: =P168+Tisdale!B160 -> 7280 | S168: 7280 | T168: =intrp(Tisdale!$E$2:$F$14,S168) -> 0 | U168: 7280 | V168: 7280 | W168: =intrp(Tisdale!$E$2:$F$14,V168) -> 0 | X168: 7280
A169: 2000-06-08 | B169: 2000 | C169: =Historical!E167 -> 0 | D169: 0 | E169: =Historical!F167 -> 0 | F169: 0 | G169: 0 | H169: 612098.842 | I169: =VLOOKUP(B169,'EOS Storage'!$A$5:$F$28,6) -> 111 | J169: 0 | K169: 111000 | L169: 0 | M169: 0 | N169: 0 | O169: 0 | P169: 7400 | Q169: =Tisdale!B161 -> 0 | R169: =P169+Tisdale!B161 -> 7400 | S169: 7400 | T169: =intrp(Tisdale!$E$2:$F$14,S169) -> 0 | U169: 7400 | V169: 7400 | W169: =intrp(Tisdale!$E$2:$F$14,V169) -> 0 | X169: 7400
A170: 2000-06-09 | B170: 2000 | C170: =Historical!E168 -> 0 | D170: 0 | E170: =Historical!F168 -> 0 | F170: 0 | G170: 0 | H170: 612098.842 | I170: =VLOOKUP(B170,'EOS Storage'!$A$5:$F$28,6) -> 111 | J170: 0 | K170: 111000 | L170: 0 | M170: 0 | N170: 0 | O170: 0 | P170: 7700 | Q170: =Tisdale!B162 -> 0 | R170: =P170+Tisdale!B162 -> 7700 | S170: 7700 | T170: =intrp(Tisdale!$E$2:$F$14,S170) -> 0 | U170: 7700 | V170: 7700 | W170: =intrp(Tisdale!$E$2:$F$14,V170) -> 0 | X170: 7700
A171: 2000-06-10 | B171: 2000 | C171: =Historical!E169 -> 0 | D171: 0 | E171: =Historical!F169 -> 0 | F171: 0 | G171: 0 | H171: 612098.842 | I171: =VLOOKUP(B171,'EOS Storage'!$A$5:$F$28,6) -> 111 | J171: 0 | K171: 111000 | L171: 0 | M171: 0 | N171: 0 | O171: 0 | P171: 7900 | Q171: =Tisdale!B163 -> 0 | R171: =P171+Tisdale!B163 -> 7900 | S171: 7900 | T171: =intrp(Tisdale!$E$2:$F$14,S171) -> 0 | U171: 7900 | V171: 7900 | W171: =intrp(Tisdale!$E$2:$F$14,V171) -> 0 | X171: 7900
A172: 2000-06-11 | B172: 2000 | C172: =Historical!E170 -> 0 | D172: 0 | E172: =Historical!F170 -> 0 | F172: 0 | G172: 0 | H172: 612098.842 | I172: =VLOOKUP(B172,'EOS Storage'!$A$5:$F$28,6) -> 111 | J172: 0 | K172: 111000 | L172: 0 | M172: 0 | N172: 0 | O172: 0 | P172: 8000 | Q172: =Tisdale!B164 -> 0 | R172: =P172+Tisdale!B164 -> 8000 | S172: 8000 | T172: =intrp(Tisdale!$E$2:$F$14,S172) -> 0 | U172: 8000 | V172: 8000 | W172: =intrp(Tisdale!$E$2:$F$14,V172) -> 0 | X172: 8000
A173: 2000-06-12 | B173: 2000 | C173: =Historical!E171 -> 0 | D173: 0 | E173: =Historical!F171 -> 0 | F173: 0 | G173: 0 | H173: 612098.842 | I173: =VLOOKUP(B173,'EOS Storage'!$A$5:$F$28,6) -> 111 | J173: 0 | K173: 111000 | L173: 0 | M173: 0 | N173: 0 | O173: 0 | P173: 8000 | Q173: =Tisdale!B165 -> 0 | R173: =P173+Tisdale!B165 -> 8000 | S173: 8000 | T173: =intrp(Tisdale!$E$2:$F$14,S173) -> 0 | U173: 8000 | V173: 8000 | W173: =intrp(Tisdale!$E$2:$F$14,V173) -> 0 | X173: 8000
A174: 2000-06-13 | B174: 2000 | C174: =Historical!E172 -> 0 | D174: 0 | E174: =Historical!F172 -> 0 | F174: 0 | G174: 0 | H174: 612098.842 | I174: =VLOOKUP(B174,'EOS Storage'!$A$5:$F$28,6) -> 111 | J174: 0 | K174: 111000 | L174: 0 | M174: 0 | N174: 0 | O174: 0 | P174: 8030 | Q174: =Tisdale!B166 -> 0 | R174: =P174+Tisdale!B166 -> 8030 | S174: 8030 | T174: =intrp(Tisdale!$E$2:$F$14,S174) -> 0 | U174: 8030 | V174: 8030 | W174: =intrp(Tisdale!$E$2:$F$14,V174) -> 0 | X174: 8030
A175: 2000-06-14 | B175: 2000 | C175: =Historical!E173 -> 0 | D175: 0 | E175: =Historical!F173 -> 0 | F175: 0 | G175: 0 | H175: 612098.842 | I175: =VLOOKUP(B175,'EOS Storage'!$A$5:$F$28,6) -> 111 | J175: 0 | K175: 111000 | L175: 0 | M175: 0 | N175: 0 | O175: 0 | P175: 8980 | Q175: =Tisdale!B167 -> 0 | R175: =P175+Tisdale!B167 -> 8980 | S175: 8980 | T175: =intrp(Tisdale!$E$2:$F$14,S175) -> 0 | U175: 8980 | V175: 8980 | W175: =intrp(Tisdale!$E$2:$F$14,V175) -> 0 | X175: 8980
A176: 2000-06-15 | B176: 2000 | C176: =Historical!E174 -> 0 | D176: 0 | E176: =Historical!F174 -> 0 | F176: 0 | G176: 0 | H176: 612098.842 | I176: =VLOOKUP(B176,'EOS Storage'!$A$5:$F$28,6) -> 111 | J176: 0 | K176: 111000 | L176: 0 | M176: 0 | N176: 0 | O176: 0 | P176: 9490 | Q176: =Tisdale!B168 -> 0 | R176: =P176+Tisdale!B168 -> 9490 | S176: 9490 | T176: =intrp(Tisdale!$E$2:$F$14,S176) -> 0 | U176: 9490 | V176: 9490 | W176: =intrp(Tisdale!$E$2:$F$14,V176) -> 0 | X176: 9490
A177: 2000-06-16 | B177: 2000 | C177: =Historical!E175 -> 0 | D177: 0 | E177: =Historical!F175 -> 0 | F177: 0 | G177: 0 | H177: 612098.842 | I177: =VLOOKUP(B177,'EOS Storage'!$A$5:$F$28,6) -> 111 | J177: 0 | K177: 111000 | L177: 0 | M177: 0 | N177: 0 | O177: 0 | P177: 9360 | Q177: =Tisdale!B169 -> 0 | R177: =P177+Tisdale!B169 -> 9360 | S177: 9360 | T177: =intrp(Tisdale!$E$2:$F$14,S177) -> 0 | U177: 9360 | V177: 9360 | W177: =intrp(Tisdale!$E$2:$F$14,V177) -> 0 | X177: 9360
A178: 2000-06-17 | B178: 2000 | C178: =Historical!E176 -> 0 | D178: 0 | E178: =Historical!F176 -> 0 | F178: 0 | G178: 0 | H178: 612098.842 | I178: =VLOOKUP(B178,'EOS Storage'!$A$5:$F$28,6) -> 111 | J178: 0 | K178: 111000 | L178: 0 | M178: 0 | N178: 0 | O178: 0 | P178: 9050 | Q178: =Tisdale!B170 -> 0 | R178: =P178+Tisdale!B170 -> 9050 | S178: 9050 | T178: =intrp(Tisdale!$E$2:$F$14,S178) -> 0 | U178: 9050 | V178: 9050 | W178: =intrp(Tisdale!$E$2:$F$14,V178) -> 0 | X178: 9050
A179: 2000-06-18 | B179: 2000 | C179: =Historical!E177 -> 0 | D179: 0 | E179: =Historical!F177 -> 0 | F179: 0 | G179: 0 | H179: 612098.842 | I179: =VLOOKUP(B179,'EOS Storage'!$A$5:$F$28,6) -> 111 | J179: 0 | K179: 111000 | L179: 0 | M179: 0 | N179: 0 | O179: 0 | P179: 8560 | Q179: =Tisdale!B171 -> 0 | R179: =P179+Tisdale!B171 -> 8560 | S179: 8560 | T179: =intrp(Tisdale!$E$2:$F$14,S179) -> 0 | U179: 8560 | V179: 8560 | W179: =intrp(Tisdale!$E$2:$F$14,V179) -> 0 | X179: 8560
A180: 2000-06-19 | B180: 2000 | C180: =Historical!E178 -> 0 | D180: 0 | E180: =Historical!F178 -> 0 | F180: 0 | G180: 0 | H180: 612098.842 | I180: =VLOOKUP(B180,'EOS Storage'!$A$5:$F$28,6) -> 111 | J180: 0 | K180: 111000 | L180: 0 | M180: 0 | N180: 0 | O180: 0 | P180: 8300 | Q180: =Tisdale!B172 -> 0 | R180: =P180+Tisdale!B172 -> 8300 | S180: 8300 | T180: =intrp(Tisdale!$E$2:$F$14,S180) -> 0 | U180: 8300 | V180: 8300 | W180: =intrp(Tisdale!$E$2:$F$14,V180) -> 0 | X180: 8300
A181: 2000-06-20 | B181: 2000 | C181: =Historical!E179 -> 0 | D181: 0 | E181: =Historical!F179 -> 0 | F181: 0 | G181: 0 | H181: 612098.842 | I181: =VLOOKUP(B181,'EOS Storage'!$A$5:$F$28,6) -> 111 | J181: 0 | K181: 111000 | L181: 0 | M181: 0 | N181: 0 | O181: 0 | P181: 8050 | Q181: =Tisdale!B173 -> 0 | R181: =P181+Tisdale!B173 -> 8050 | S181: 8050 | T181: =intrp(Tisdale!$E$2:$F$14,S181) -> 0 | U181: 8050 | V181: 8050 | W181: =intrp(Tisdale!$E$2:$F$14,V181) -> 0 | X181: 8050
A182: 2000-06-21 | B182: 2000 | C182: =Historical!E180 -> 0 | D182: 0 | E182: =Historical!F180 -> 0 | F182: 0 | G182: 0 | H182: 612098.842 | I182: =VLOOKUP(B182,'EOS Storage'!$A$5:$F$28,6) -> 111 | J182: 0 | K182: 111000 | L182: 0 | M182: 0 | N182: 0 | O182: 0 | P182: 7830 | Q182: =Tisdale!B174 -> 0 | R182: =P182+Tisdale!B174 -> 7830 | S182: 7830 | T182: =intrp(Tisdale!$E$2:$F$14,S182) -> 0 | U182: 7830 | V182: 7830 | W182: =intrp(Tisdale!$E$2:$F$14,V182) -> 0 | X182: 7830
A183: 2000-06-22 | B183: 2000 | C183: =Historical!E181 -> 0 | D183: 0 | E183: =Historical!F181 -> 0 | F183: 0 | G183: 0 | H183: 612098.842 | I183: =VLOOKUP(B183,'EOS Storage'!$A$5:$F$28,6) -> 111 | J183: 0 | K183: 111000 | L183: 0 | M183: 0 | N183: 0 | O183: 0 | P183: 8070 | Q183: =Tisdale!B175 -> 0 | R183: =P183+Tisdale!B175 -> 8070 | S183: 8070 | T183: =intrp(Tisdale!$E$2:$F$14,S183) -> 0 | U183: 8070 | V183: 8070 | W183: =intrp(Tisdale!$E$2:$F$14,V183) -> 0 | X183: 8070
A184: 2000-06-23 | B184: 2000 | C184: =Historical!E182 -> 0 | D184: 0 | E184: =Historical!F182 -> 0 | F184: 0 | G184: 0 | H184: 612098.842 | I184: =VLOOKUP(B184,'EOS Storage'!$A$5:$F$28,6) -> 111 | J184: 0 | K184: 111000 | L184: 0 | M184: 0 | N184: 0 | O184: 0 | P184: 7970 | Q184: =Tisdale!B176 -> 0 | R184: =P184+Tisdale!B176 -> 7970 | S184: 7970 | T184: =intrp(Tisdale!$E$2:$F$14,S184) -> 0 | U184: 7970 | V184: 7970 | W184: =intrp(Tisdale!$E$2:$F$14,V184) -> 0 | X184: 7970
A185: 2000-06-24 | B185: 2000 | C185: =Historical!E183 -> 0 | D185: 0 | E185: =Historical!F183 -> 0 | F185: 0 | G185: 0 | H185: 612098.842 | I185: =VLOOKUP(B185,'EOS Storage'!$A$5:$F$28,6) -> 111 | J185: 0 | K185: 111000 | L185: 0 | M185: 0 | N185: 0 | O185: 0 | P185: 7690 | Q185: =Tisdale!B177 -> 0 | R185: =P185+Tisdale!B177 -> 7690 | S185: 7690 | T185: =intrp(Tisdale!$E$2:$F$14,S185) -> 0 | U185: 7690 | V185: 7690 | W185: =intrp(Tisdale!$E$2:$F$14,V185) -> 0 | X185: 7690
A186: 2000-06-25 | B186: 2000 | C186: =Historical!E184 -> 0 | D186: 0 | E186: =Historical!F184 -> 0 | F186: 0 | G186: 0 | H186: 612098.842 | I186: =VLOOKUP(B186,'EOS Storage'!$A$5:$F$28,6) -> 111 | J186: 0 | K186: 111000 | L186: 0 | M186: 0 | N186: 0 | O186: 0 | P186: 7710 | Q186: =Tisdale!B178 -> 0 | R186: =P186+Tisdale!B178 -> 7710 | S186: 7710 | T186: =intrp(Tisdale!$E$2:$F$14,S186) -> 0 | U186: 7710 | V186: 7710 | W186: =intrp(Tisdale!$E$2:$F$14,V186) -> 0 | X186: 7710
A187: 2000-06-26 | B187: 2000 | C187: =Historical!E185 -> 0 | D187: 0 | E187: =Historical!F185 -> 0 | F187: 0 | G187: 0 | H187: 612098.842 | I187: =VLOOKUP(B187,'EOS Storage'!$A$5:$F$28,6) -> 111 | J187: 0 | K187: 111000 | L187: 0 | M187: 0 | N187: 0 | O187: 0 | P187: 7930 | Q187: =Tisdale!B179 -> 0 | R187: =P187+Tisdale!B179 -> 7930 | S187: 7930 | T187: =intrp(Tisdale!$E$2:$F$14,S187) -> 0 | U187: 7930 | V187: 7930 | W187: =intrp(Tisdale!$E$2:$F$14,V187) -> 0 | X187: 7930
A188: 2000-06-27 | B188: 2000 | C188: =Historical!E186 -> 0 | D188: 0 | E188: =Historical!F186 -> 0 | F188: 0 | G188: 0 | H188: 612098.842 | I188: =VLOOKUP(B188,'EOS Storage'!$A$5:$F$28,6) -> 111 | J188: 0 | K188: 111000 | L188: 0 | M188: 0 | N188: 0 | O188: 0 | P188: 8130 | Q188: =Tisdale!B180 -> 0 | R188: =P188+Tisdale!B180 -> 8130 | S188: 8130 | T188: =intrp(Tisdale!$E$2:$F$14,S188) -> 0 | U188: 8130 | V188: 8130 | W188: =intrp(Tisdale!$E$2:$F$14,V188) -> 0 | X188: 8130
A189: 2000-06-28 | B189: 2000 | C189: =Historical!E187 -> 0 | D189: 0 | E189: =Historical!F187 -> 0 | F189: 0 | G189: 0 | H189: 612098.842 | I189: =VLOOKUP(B189,'EOS Storage'!$A$5:$F$28,6) -> 111 | J189: 0 | K189: 111000 | L189: 0 | M189: 0 | N189: 0 | O189: 0 | P189: 8200 | Q189: =Tisdale!B181 -> 0 | R189: =P189+Tisdale!B181 -> 8200 | S189: 8200 | T189: =intrp(Tisdale!$E$2:$F$14,S189) -> 0 | U189: 8200 | V189: 8200 | W189: =intrp(Tisdale!$E$2:$F$14,V189) -> 0 | X189: 8200
A190: 2000-06-29 | B190: 2000 | C190: =Historical!E188 -> 0 | D190: 0 | E190: =Historical!F188 -> 0 | F190: 0 | G190: 0 | H190: 612098.842 | I190: =VLOOKUP(B190,'EOS Storage'!$A$5:$F$28,6) -> 111 | J190: 0 | K190: 111000 | L190: 0 | M190: 0 | N190: 0 | O190: 0 | P190: 8410 | Q190: =Tisdale!B182 -> 0 | R190: =P190+Tisdale!B182 -> 8410 | S190: 8410 | T190: =intrp(Tisdale!$E$2:$F$14,S190) -> 0 | U190: 8410 | V190: 8410 | W190: =intrp(Tisdale!$E$2:$F$14,V190) -> 0 | X190: 8410
A191: 2000-06-30 | B191: 2000 | C191: =Historical!E189 -> 0 | D191: 0 | E191: =Historical!F189 -> 0 | F191: 0 | G191: 0 | H191: 612098.842 | I191: =VLOOKUP(B191,'EOS Storage'!$A$5:$F$28,6) -> 111 | J191: 0 | K191: 111000 | L191: 0 | M191: 0 | N191: 0 | O191: 0 | P191: 8580 | Q191: =Tisdale!B183 -> 0 | R191: =P191+Tisdale!B183 -> 8580 | S191: 8580 | T191: =intrp(Tisdale!$E$2:$F$14,S191) -> 0 | U191: 8580 | V191: 8580 | W191: =intrp(Tisdale!$E$2:$F$14,V191) -> 0 | X191: 8580
A192: 2000-07-01 | B192: 2000 | C192: =Historical!E190 -> 0 | D192: 0 | E192: =Historical!F190 -> 0 | F192: 0 | G192: 0 | H192: 612098.842 | I192: =VLOOKUP(B192,'EOS Storage'!$A$5:$F$28,6) -> 111 | J192: 0 | K192: 111000 | L192: 0 | M192: 0 | N192: 0 | O192: 0 | P192: 8760 | Q192: =Tisdale!B184 -> 0 | R192: =P192+Tisdale!B184 -> 8760 | S192: 8760 | T192: =intrp(Tisdale!$E$2:$F$14,S192) -> 0 | U192: 8760 | V192: 8760 | W192: =intrp(Tisdale!$E$2:$F$14,V192) -> 0 | X192: 8760
A193: 2000-07-02 | B193: 2000 | C193: =Historical!E191 -> 0 | D193: 0 | E193: =Historical!F191 -> 0 | F193: 0 | G193: 0 | H193: 612098.842 | I193: =VLOOKUP(B193,'EOS Storage'!$A$5:$F$28,6) -> 111 | J193: 0 | K193: 111000 | L193: 0 | M193: 0 | N193: 0 | O193: 0 | P193: 8700 | Q193: =Tisdale!B185 -> 0 | R193: =P193+Tisdale!B185 -> 8700 | S193: 8700 | T193: =intrp(Tisdale!$E$2:$F$14,S193) -> 0 | U193: 8700 | V193: 8700 | W193: =intrp(Tisdale!$E$2:$F$14,V193) -> 0 | X193: 8700
A194: 2000-07-03 | B194: 2000 | C194: =Historical!E192 -> 0 | D194: 0 | E194: =Historical!F192 -> 0 | F194: 0 | G194: 0 | H194: 612098.842 | I194: =VLOOKUP(B194,'EOS Storage'!$A$5:$F$28,6) -> 111 | J194: 0 | K194: 111000 | L194: 0 | M194: 0 | N194: 0 | O194: 0 | P194: 8700 | Q194: =Tisdale!B186 -> 0 | R194: =P194+Tisdale!B186 -> 8700 | S194: 8700 | T194: =intrp(Tisdale!$E$2:$F$14,S194) -> 0 | U194: 8700 | V194: 8700 | W194: =intrp(Tisdale!$E$2:$F$14,V194) -> 0 | X194: 8700
A195: 2000-07-04 | B195: 2000 | C195: =Historical!E193 -> 0 | D195: 0 | E195: =Historical!F193 -> 0 | F195: 0 | G195: 0 | H195: 612098.842 | I195: =VLOOKUP(B195,'EOS Storage'!$A$5:$F$28,6) -> 111 | J195: 0 | K195: 111000 | L195: 0 | M195: 0 | N195: 0 | O195: 0 | P195: 8930 | Q195: =Tisdale!B187 -> 0 | R195: =P195+Tisdale!B187 -> 8930 | S195: 8930 | T195: =intrp(Tisdale!$E$2:$F$14,S195) -> 0 | U195: 8930 | V195: 8930 | W195: =intrp(Tisdale!$E$2:$F$14,V195) -> 0 | X195: 8930
A196: 2000-07-05 | B196: 2000 | C196: =Historical!E194 -> 0 | D196: 0 | E196: =Historical!F194 -> 0 | F196: 0 | G196: 0 | H196: 612098.842 | I196: =VLOOKUP(B196,'EOS Storage'!$A$5:$F$28,6) -> 111 | J196: 0 | K196: 111000 | L196: 0 | M196: 0 | N196: 0 | O196: 0 | P196: 9080 | Q196: =Tisdale!B188 -> 0 | R196: =P196+Tisdale!B188 -> 9080 | S196: 9080 | T196: =intrp(Tisdale!$E$2:$F$14,S196) -> 0 | U196: 9080 | V196: 9080 | W196: =intrp(Tisdale!$E$2:$F$14,V196) -> 0 | X196: 9080
A197: 2000-07-06 | B197: 2000 | C197: =Historical!E195 -> 0 | D197: 0 | E197: =Historical!F195 -> 0 | F197: 0 | G197: 0 | H197: 612098.842 | I197: =VLOOKUP(B197,'EOS Storage'!$A$5:$F$28,6) -> 111 | J197: 0 | K197: 111000 | L197: 0 | M197: 0 | N197: 0 | O197: 0 | P197: 9660 | Q197: =Tisdale!B189 -> 0 | R197: =P197+Tisdale!B189 -> 9660 | S197: 9660 | T197: =intrp(Tisdale!$E$2:$F$14,S197) -> 0 | U197: 9660 | V197: 9660 | W197: =intrp(Tisdale!$E$2:$F$14,V197) -> 0 | X197: 9660
A198: 2000-07-07 | B198: 2000 | C198: =Historical!E196 -> 0 | D198: 0 | E198: =Historical!F196 -> 0 | F198: 0 | G198: 0 | H198: 612098.842 | I198: =VLOOKUP(B198,'EOS Storage'!$A$5:$F$28,6) -> 111 | J198: 0 | K198: 111000 | L198: 0 | M198: 0 | N198: 0 | O198: 0 | P198: 9770 | Q198: =Tisdale!B190 -> 0 | R198: =P198+Tisdale!B190 -> 9770 | S198: 9770 | T198: =intrp(Tisdale!$E$2:$F$14,S198) -> 0 | U198: 9770 | V198: 9770 | W198: =intrp(Tisdale!$E$2:$F$14,V198) -> 0 | X198: 9770
A199: 2000-07-08 | B199: 2000 | C199: =Historical!E197 -> 0 | D199: 0 | E199: =Historical!F197 -> 0 | F199: 0 | G199: 0 | H199: 612098.842 | I199: =VLOOKUP(B199,'EOS Storage'!$A$5:$F$28,6) -> 111 | J199: 0 | K199: 111000 | L199: 0 | M199: 0 | N199: 0 | O199: 0 | P199: 9730 | Q199: =Tisdale!B191 -> 0 | R199: =P199+Tisdale!B191 -> 9730 | S199: 9730 | T199: =intrp(Tisdale!$E$2:$F$14,S199) -> 0 | U199: 9730 | V199: 9730 | W199: =intrp(Tisdale!$E$2:$F$14,V199) -> 0 | X199: 9730
A200: 2000-07-09 | B200: 2000 | C200: =Historical!E198 -> 0 | D200: 0 | E200: =Historical!F198 -> 0 | F200: 0 | G200: 0 | H200: 612098.842 | I200: =VLOOKUP(B200,'EOS Storage'!$A$5:$F$28,6) -> 111 | J200: 0 | K200: 111000 | L200: 0 | M200: 0 | N200: 0 | O200: 0 | P200: 9800 | Q200: =Tisdale!B192 -> 0 | R200: =P200+Tisdale!B192 -> 9800 | S200: 9800 | T200: =intrp(Tisdale!$E$2:$F$14,S200) -> 0 | U200: 9800 | V200: 9800 | W200: =intrp(Tisdale!$E$2:$F$14,V200) -> 0 | X200: 9800
A201: 2000-07-10 | B201: 2000 | C201: =Historical!E199 -> 0 | D201: 0 | E201: =Historical!F199 -> 0 | F201: 0 | G201: 0 | H201: 612098.842 | I201: =VLOOKUP(B201,'EOS Storage'!$A$5:$F$28,6) -> 111 | J201: 0 | K201: 111000 | L201: 0 | M201: 0 | N201: 0 | O201: 0 | P201: 9860 | Q201: =Tisdale!B193 -> 0 | R201: =P201+Tisdale!B193 -> 9860 | S201: 9860 | T201: =intrp(Tisdale!$E$2:$F$14,S201) -> 0 | U201: 9860 | V201: 9860 | W201: =intrp(Tisdale!$E$2:$F$14,V201) -> 0 | X201: 9860
... 2049 more rows

Sheet Wilkins Graph (No FV)

Sheet Wilkins Analysis (with FV)
K1: Diversion Capacity: | L1: 2200 | N1: 2000
K2: Travel Time: | L2: 3 | N2: 2
B3: Min | C3: =MIN(C10:C7953) -> 0 | D3: =MIN(D10:D7953) -> 0 | E3: 0 | F3: 0 | G3: 0 | I3: 108.3484716 | J3: 0 | K3: 0 | L3: 0 | M3: 0 | N3: 0 | O3: 0 | P3: 2890 | R3: =MIN(R10:R7953) -> 2890 | S3: 2890 | T3: 0 | U3: 2890 | V3: 2890 | W3: 0 | X3: 2890
B4: Max | C4: =MAX(C10:C7953) -> 2200 | D4: =MAX(D10:D7953) -> 2200 | E4: 2000 | F4: 2000 | G4: 4200 | I4: 1440 | J4: 4200 | K4: 1113199.121 | L4: 2200 | M4: 2200 | N4: 2000 | O4: 2000 | P4: 31600 | R4: =MAX(R10:R7953) -> 60988.17 | S4: 56788.17 | T4: 27942.48372 | U4: 28845.68628 | V4: 56788.17 | W4: 27942.48372 | X4: 28845.68628
B5: Avg | C5: =AVERAGE(C10:C7953) -> 229.521475 | D5: =AVERAGE(D10:D7953) -> 229.637103 | E5: 170.6987822 | F5: 170.7847765 | G5: 400.2202572 | I5: 770.7184886 | J5: 310.7010453 | K5: 136160.7505 | L5: 178.6188437 | M5: 178.708828 | N5: 132.0822017 | O5: 132.1487418 | P5: 9257.484894 | R5: =AVERAGE(R10:R7953) -> 10183.08066 | S5: 9783.912992 | T5: 667.7920213 | U5: 9116.12097 | V5: 9873.466023 | W5: 717.9486941 | X5: 9155.517329
A7: Date | B7: Water Year | C7: Historical WAA No FV | I7: Liminted Based on Storage | L7: Trailing Average for Attenuation | P7: Downstream Flows
C8: TCC Diversion | D8: 5-Day TCC | E8: GCID Diversion | F8: 5-Day GCID | G8: Combined Diversion | H8: Cumulative Diversion | I8: Max. Annual Diversion | J8: Limited Combined Diversion | K8: Cumulative Diversion | L8: Limited TCC Diversion | M8: 5-Day TCC | N8: Limited GCID Diversion | O8: 5-Day GCID | P8: Wilkins Slough 11390500 | Q8: Historical Tisdale Spill | R8: Historical Tisdale Est. | S8: Est. Sac River @ Tisdale Flow | T8: Est. Tisdale Spill | U8: Wilkins LESS Original WAA | V8: Est. Sac River @ Tisdale Flow | W8: Est. Tisdale Spill | X8: Wilkins LESS Limited WAA | AD8: Water Year | AE8: Potential Diversions | AF8: Potential Diversions Limited WAA
C9: CFS | E9: CFS | G9: CFS | H9: AF | I9: TAF | J9: CFS | K9: AF | L9: CFS | M9: CFS | N9: CFS | O9: CFS | P9: CFS | Q9: CFS | R9: CFS | S9: CFS | T9: CFS | U9: CFS | V9: CFS | W9: CFS | X9: CFS | AE9: AF | AF9: AF
A10: 2000-01-01 | B10: =IF(MONTH(A10)>9,YEAR(A10)+1,YEAR(A10)) -> 2000 | C10: =Historical!B8 -> 0 | E10: =Historical!C8 -> 0 | G10: =C10+E10 -> 0 | H10: =G10*1.98347 -> 0 | I10: =VLOOKUP(B10,'EOS Storage'!$H$5:$M$28,6) -> 111 | J10: =G10 -> 0 | K10: =G10*1.98347 -> 0 | L10: =IF(J10<C10,MIN($L$1,J10),C10) -> 0 | N10: =J10-L10 -> 0 | P10: 7020 | Q10: =Tisdale!B2 -> 0 | R10: =P10+Tisdale!B2 -> 7020 | AD10: 2000 | AE10: =SUMIF($B$10:$B$7953,$AD10,$G$10:$G$7953)*1.98347/1000 -> 482.5889256 | AF10: =SUMIF($B$10:$B$7953,$AD10,$J$10:$J$7953)*1.98347/1000 -> 111
A11: 2000-01-02 | B11: =IF(MONTH(A11)>9,YEAR(A11)+1,YEAR(A11)) -> 2000 | C11: =Historical!B9 -> 0 | E11: =Historical!C9 -> 0 | G11: 0 | H11: =IF(B11=B10,G11*1.98347+H10,G11*1.98347) -> 0 | I11: =VLOOKUP(B11,'EOS Storage'!$H$5:$M$28,6) -> 111 | J11: =IF(B11=B10,IF(K10<I11*1000,MIN(G11,(I11*1000-K10)/1.98347),0),G11) -> 0 | K11: =K10+J11*1.98347 -> 0 | L11: 0 | N11: =J11-L11 -> 0 | P11: 7030 | Q11: =Tisdale!B3 -> 0 | R11: =P11+Tisdale!B3 -> 7030 | AD11: 2001 | AE11: =SUMIF($B$10:$B$7953,$AD11,$G$10:$G$7953)*1.98347/1000 -> 43.27394214 | AF11: =SUMIF($B$10:$B$7953,$AD11,$J$10:$J$7953)*1.98347/1000 -> 43.27394214
A12: 2000-01-03 | B12: 2000 | C12: =Historical!B10 -> 0 | E12: =Historical!C10 -> 0 | G12: 0 | H12: =IF(B12=B11,G12*1.98347+H11,G12*1.98347) -> 0 | I12: =VLOOKUP(B12,'EOS Storage'!$H$5:$M$28,6) -> 111 | J12: 0 | K12: =K11+J12*1.98347 -> 0 | L12: 0 | N12: 0 | P12: 6940 | Q12: =Tisdale!B4 -> 0 | R12: =P12+Tisdale!B4 -> 6940 | AD12: 2002 | AE12: 177.591686 | AF12: 177.591686
A13: 2000-01-04 | B13: 2000 | C13: =Historical!B11 -> 0 | E13: =Historical!C11 -> 0 | G13: 0 | H13: 0 | I13: =VLOOKUP(B13,'EOS Storage'!$H$5:$M$28,6) -> 111 | J13: 0 | K13: 0 | L13: 0 | N13: 0 | P13: 6850 | Q13: =Tisdale!B5 -> 0 | R13: =P13+Tisdale!B5 -> 6850 | S13: =R13-D13-F13 -> 6850 | T13: =intrp(Tisdale!$E$2:$F$14,S13) -> 0 | U13: =S13-T13 -> 6850 | V13: =R13-M13-O13 -> 6850 | W13: =intrp(Tisdale!$E$2:$F$14,V13) -> 0 | X13: =V13-W13 -> 6850 | AD13: 2003 | AE13: 546.9770114 | AF13: 546.9770114
A14: 2000-01-05 | B14: 2000 | C14: =Historical!B12 -> 0 | D14: =AVERAGE(C10:C14) -> 0 | E14: =Historical!C12 -> 0 | F14: =AVERAGE(E10:E14) -> 0 | G14: 0 | H14: 0 | I14: =VLOOKUP(B14,'EOS Storage'!$H$5:$M$28,6) -> 111 | J14: 0 | K14: 0 | L14: 0 | M14: =AVERAGE(L10:L14) -> 0 | N14: 0 | O14: =AVERAGE(N10:N14) -> 0 | P14: 6820 | Q14: =Tisdale!B6 -> 0 | R14: =P14+Tisdale!B6 -> 6820 | S14: =R14-D14-F14 -> 6820 | T14: =intrp(Tisdale!$E$2:$F$14,S14) -> 0 | U14: =S14-T14 -> 6820 | V14: =R14-M14-O14 -> 6820 | W14: =intrp(Tisdale!$E$2:$F$14,V14) -> 0 | X14: =V14-W14 -> 6820 | AD14: 2004 | AE14: 467.6169466 | AF14: 467.6169466
A15: 2000-01-06 | B15: 2000 | C15: =Historical!B13 -> 0 | D15: =AVERAGE(C11:C15) -> 0 | E15: =Historical!C13 -> 0 | F15: =AVERAGE(E11:E15) -> 0 | G15: 0 | H15: 0 | I15: =VLOOKUP(B15,'EOS Storage'!$H$5:$M$28,6) -> 111 | J15: 0 | K15: 0 | L15: 0 | M15: =AVERAGE(L11:L15) -> 0 | N15: 0 | O15: =AVERAGE(N11:N15) -> 0 | P15: 6700 | Q15: =Tisdale!B7 -> 0 | R15: =P15+Tisdale!B7 -> 6700 | S15: 6700 | T15: =intrp(Tisdale!$E$2:$F$14,S15) -> 0 | U15: 6700 | V15: 6700 | W15: =intrp(Tisdale!$E$2:$F$14,V15) -> 0 | X15: 6700 | AD15: 2005 | AE15: 272.7761245 | AF15: 272.7761245
A16: 2000-01-07 | B16: 2000 | C16: =Historical!B14 -> 0 | D16: 0 | E16: =Historical!C14 -> 0 | F16: 0 | G16: 0 | H16: 0 | I16: =VLOOKUP(B16,'EOS Storage'!$H$5:$M$28,6) -> 111 | J16: 0 | K16: 0 | L16: 0 | M16: 0 | N16: 0 | O16: 0 | P16: 6580 | Q16: =Tisdale!B8 -> 0 | R16: =P16+Tisdale!B8 -> 6580 | S16: 6580 | T16: =intrp(Tisdale!$E$2:$F$14,S16) -> 0 | U16: 6580 | V16: 6580 | W16: =intrp(Tisdale!$E$2:$F$14,V16) -> 0 | X16: 6580 | AD16: 2006 | AE16: 1235.60672 | AF16: 226.3090324
A17: 2000-01-08 | B17: 2000 | C17: =Historical!B15 -> 0 | D17: 0 | E17: =Historical!C15 -> 0 | F17: 0 | G17: 0 | H17: 0 | I17: =VLOOKUP(B17,'EOS Storage'!$H$5:$M$28,6) -> 111 | J17: 0 | K17: 0 | L17: 0 | M17: 0 | N17: 0 | O17: 0 | P17: 6430 | Q17: =Tisdale!B9 -> 0 | R17: =P17+Tisdale!B9 -> 6430 | S17: 6430 | T17: =intrp(Tisdale!$E$2:$F$14,S17) -> 0 | U17: 6430 | V17: 6430 | W17: =intrp(Tisdale!$E$2:$F$14,V17) -> 0 | X17: 6430 | AD17: 2007 | AE17: 0 | AF17: 0
A18: 2000-01-09 | B18: 2000 | C18: =Historical!B16 -> 0 | D18: 0 | E18: =Historical!C16 -> 0 | F18: 0 | G18: 0 | H18: 0 | I18: =VLOOKUP(B18,'EOS Storage'!$H$5:$M$28,6) -> 111 | J18: 0 | K18: 0 | L18: 0 | M18: 0 | N18: 0 | O18: 0 | P18: 6290 | Q18: =Tisdale!B10 -> 0 | R18: =P18+Tisdale!B10 -> 6290 | S18: 6290 | T18: =intrp(Tisdale!$E$2:$F$14,S18) -> 0 | U18: 6290 | V18: 6290 | W18: =intrp(Tisdale!$E$2:$F$14,V18) -> 0 | X18: 6290 | AD18: 2008 | AE18: 7.528574325 | AF18: 7.528574325
A19: 2000-01-10 | B19: 2000 | C19: =Historical!B17 -> 0 | D19: 0 | E19: =Historical!C17 -> 0 | F19: 0 | G19: 0 | H19: 0 | I19: =VLOOKUP(B19,'EOS Storage'!$H$5:$M$28,6) -> 111 | J19: 0 | K19: 0 | L19: 0 | M19: 0 | N19: 0 | O19: 0 | P19: 6290 | Q19: =Tisdale!B11 -> 0 | R19: =P19+Tisdale!B11 -> 6290 | S19: 6290 | T19: =intrp(Tisdale!$E$2:$F$14,S19) -> 0 | U19: 6290 | V19: 6290 | W19: =intrp(Tisdale!$E$2:$F$14,V19) -> 0 | X19: 6290 | AD19: 2009 | AE19: 40.55101851 | AF19: 40.55101851 | AI19: 108
A20: 2000-01-11 | B20: 2000 | C20: =Historical!B18 -> 0 | D20: 0 | E20: =Historical!C18 -> 0 | F20: 0 | G20: 0 | H20: 0 | I20: =VLOOKUP(B20,'EOS Storage'!$H$5:$M$28,6) -> 111 | J20: 0 | K20: 0 | L20: 0 | M20: 0 | N20: 0 | O20: 0 | P20: 6350 | Q20: =Tisdale!B12 -> 0 | R20: =P20+Tisdale!B12 -> 6350 | S20: 6350 | T20: =intrp(Tisdale!$E$2:$F$14,S20) -> 0 | U20: 6350 | V20: 6350 | W20: =intrp(Tisdale!$E$2:$F$14,V20) -> 0 | X20: 6350 | AD20: 2010 | AE20: 92.17866752 | AF20: 92.17866752 | AI20: 257
A21: 2000-01-12 | B21: 2000 | C21: =Historical!B19 -> 0 | D21: 0 | E21: =Historical!C19 -> 0 | F21: 0 | G21: 0 | H21: 0 | I21: =VLOOKUP(B21,'EOS Storage'!$H$5:$M$28,6) -> 111 | J21: 0 | K21: 0 | L21: 0 | M21: 0 | N21: 0 | O21: 0 | P21: 6600 | Q21: =Tisdale!B13 -> 0 | R21: =P21+Tisdale!B13 -> 6600 | S21: 6600 | T21: =intrp(Tisdale!$E$2:$F$14,S21) -> 0 | U21: 6600 | V21: 6600 | W21: =intrp(Tisdale!$E$2:$F$14,V21) -> 0 | X21: 6600 | AD21: 2011 | AE21: 747.1306736 | AF21: 747.1306736 | AI21: 666
A22: 2000-01-13 | B22: 2000 | C22: =Historical!B20 -> 0 | D22: 0 | E22: =Historical!C20 -> 0 | F22: 0 | G22: 0 | H22: 0 | I22: =VLOOKUP(B22,'EOS Storage'!$H$5:$M$28,6) -> 111 | J22: 0 | K22: 0 | L22: 0 | M22: 0 | N22: 0 | O22: 0 | P22: 8000 | Q22: =Tisdale!B14 -> 0 | R22: =P22+Tisdale!B14 -> 8000 | S22: 8000 | T22: =intrp(Tisdale!$E$2:$F$14,S22) -> 0 | U22: 8000 | V22: 8000 | W22: =intrp(Tisdale!$E$2:$F$14,V22) -> 0 | X22: 8000 | AD22: 2012 | AE22: 5.484428492 | AF22: 5.484428492 | AI22: 31
A23: 2000-01-14 | B23: 2000 | C23: =Historical!B21 -> 0 | D23: 0 | E23: =Historical!C21 -> 0 | F23: 0 | G23: 0 | H23: 0 | I23: =VLOOKUP(B23,'EOS Storage'!$H$5:$M$28,6) -> 111 | J23: 0 | K23: 0 | L23: 0 | M23: 0 | N23: 0 | O23: 0 | P23: 8140 | Q23: =Tisdale!B15 -> 0 | R23: =P23+Tisdale!B15 -> 8140 | S23: 8140 | T23: =intrp(Tisdale!$E$2:$F$14,S23) -> 0 | U23: 8140 | V23: 8140 | W23: =intrp(Tisdale!$E$2:$F$14,V23) -> 0 | X23: 8140 | AD23: 2013 | AE23: 99.33969474 | AF23: 99.33969474 | AI23: 150
A24: 2000-01-15 | B24: 2000 | C24: =Historical!B22 -> 0 | D24: 0 | E24: =Historical!C22 -> 0 | F24: 0 | G24: 0 | H24: 0 | I24: =VLOOKUP(B24,'EOS Storage'!$H$5:$M$28,6) -> 111 | J24: 0 | K24: 0 | L24: 0 | M24: 0 | N24: 0 | O24: 0 | P24: 8000 | Q24: =Tisdale!B16 -> 0 | R24: =P24+Tisdale!B16 -> 8000 | S24: 8000 | T24: =intrp(Tisdale!$E$2:$F$14,S24) -> 0 | U24: 8000 | V24: 8000 | W24: =intrp(Tisdale!$E$2:$F$14,V24) -> 0 | X24: 8000 | AD24: 2014 | AE24: 0 | AF24: 0 | AI24: 0
A25: 2000-01-16 | B25: 2000 | C25: =Historical!B23 -> 0 | D25: 0 | E25: =Historical!C23 -> 0 | F25: 0 | G25: 0 | H25: 0 | I25: =VLOOKUP(B25,'EOS Storage'!$H$5:$M$28,6) -> 111 | J25: 0 | K25: 0 | L25: 0 | M25: 0 | N25: 0 | O25: 0 | P25: 10300 | Q25: =Tisdale!B17 -> 0 | R25: =P25+Tisdale!B17 -> 10300 | S25: 10300 | T25: =intrp(Tisdale!$E$2:$F$14,S25) -> 0 | U25: 10300 | V25: 10300 | W25: =intrp(Tisdale!$E$2:$F$14,V25) -> 0 | X25: 10300 | AD25: 2015 | AE25: 95.0635665 | AF25: 95.0635665 | AI25: 18
A26: 2000-01-17 | B26: 2000 | C26: =Historical!B24 -> 0 | D26: 0 | E26: =Historical!C24 -> 0 | F26: 0 | G26: 0 | H26: 0 | I26: =VLOOKUP(B26,'EOS Storage'!$H$5:$M$28,6) -> 111 | J26: 0 | K26: 0 | L26: 0 | M26: 0 | N26: 0 | O26: 0 | P26: 15000 | Q26: =Tisdale!B18 -> 14822.6 | R26: =P26+Tisdale!B18 -> 29822.6 | S26: 29822.6 | T26: =intrp(Tisdale!$E$2:$F$14,S26) -> 4185.5 | U26: 25637.1 | V26: 29822.6 | W26: =intrp(Tisdale!$E$2:$F$14,V26) -> 4185.5 | X26: 25637.1 | AD26: 2016 | AE26: 219.4186194 | AF26: 219.4186194 | AI26: 265
A27: 2000-01-18 | B27: 2000 | C27: =Historical!B25 -> 0 | D27: 0 | E27: =Historical!C25 -> 0 | F27: 0 | G27: 0 | H27: 0 | I27: =VLOOKUP(B27,'EOS Storage'!$H$5:$M$28,6) -> 111 | J27: 0 | K27: 0 | L27: 0 | M27: 0 | N27: 0 | O27: 0 | P27: 14500 | Q27: =Tisdale!B19 -> 14568 | R27: =P27+Tisdale!B19 -> 29068 | S27: 29068 | T27: =intrp(Tisdale!$E$2:$F$14,S27) -> 3734 | U27: 25334 | V27: 29068 | W27: =intrp(Tisdale!$E$2:$F$14,V27) -> 3734 | X27: 25334 | AD27: 2017 | AE27: 1113.199121 | AF27: 1113.199121 | AI27: 1002
A28: 2000-01-19 | B28: 2000 | C28: =Historical!B26 -> 0 | D28: 0 | E28: =Historical!C26 -> 0 | F28: 0 | G28: 0 | H28: 0 | I28: =VLOOKUP(B28,'EOS Storage'!$H$5:$M$28,6) -> 111 | J28: 0 | K28: 0 | L28: 0 | M28: 0 | N28: 0 | O28: 0 | P28: 12400 | Q28: =Tisdale!B20 -> 0 | R28: =P28+Tisdale!B20 -> 12400 | S28: 12400 | T28: =intrp(Tisdale!$E$2:$F$14,S28) -> 0 | U28: 12400 | V28: 12400 | W28: =intrp(Tisdale!$E$2:$F$14,V28) -> 0 | X28: 12400 | AD28: 2018 | AE28: 1.937188528 | AF28: 1.937188528 | AI28: 34
A29: 2000-01-20 | B29: 2000 | C29: =Historical!B27 -> 0 | D29: 0 | E29: =Historical!C27 -> 0 | F29: 0 | G29: 0 | H29: 0 | I29: =VLOOKUP(B29,'EOS Storage'!$H$5:$M$28,6) -> 111 | J29: 0 | K29: 0 | L29: 0 | M29: 0 | N29: 0 | O29: 0 | P29: 13400 | Q29: =Tisdale!B21 -> 0 | R29: =P29+Tisdale!B21 -> 13400 | S29: 13400 | T29: =intrp(Tisdale!$E$2:$F$14,S29) -> 0 | U29: 13400 | V29: 13400 | W29: =intrp(Tisdale!$E$2:$F$14,V29) -> 0 | X29: 13400 | AD29: 2019 | AE29: 657.8818864 | AF29: 628.2424166
A30: 2000-01-21 | B30: 2000 | C30: =Historical!B28 -> 0 | D30: 0 | E30: =Historical!C28 -> 0 | F30: 0 | G30: 0 | H30: 0 | I30: =VLOOKUP(B30,'EOS Storage'!$H$5:$M$28,6) -> 111 | J30: 0 | K30: 0 | L30: 0 | M30: 0 | N30: 0 | O30: 0 | P30: 19100 | Q30: =Tisdale!B22 -> 0 | R30: =P30+Tisdale!B22 -> 19100 | S30: 19100 | T30: =intrp(Tisdale!$E$2:$F$14,S30) -> 0 | U30: 19100 | V30: 19100 | W30: =intrp(Tisdale!$E$2:$F$14,V30) -> 0 | X30: 19100 | AD30: 2020 | AE30: 0 | AF30: 0
A31: 2000-01-22 | B31: 2000 | C31: =Historical!B29 -> 0 | D31: 0 | E31: =Historical!C29 -> 0 | F31: 0 | G31: 0 | H31: 0 | I31: =VLOOKUP(B31,'EOS Storage'!$H$5:$M$28,6) -> 111 | J31: 0 | K31: 0 | L31: 0 | M31: 0 | N31: 0 | O31: 0 | P31: 17500 | Q31: =Tisdale!B23 -> 0 | R31: =P31+Tisdale!B23 -> 17500 | S31: 17500 | T31: =intrp(Tisdale!$E$2:$F$14,S31) -> 0 | U31: 17500 | V31: 17500 | W31: =intrp(Tisdale!$E$2:$F$14,V31) -> 0 | X31: 17500 | AD31: 2021 | AE31: 0 | AF31: 0
A32: 2000-01-23 | B32: 2000 | C32: =Historical!B30 -> 0 | D32: 0 | E32: =Historical!C30 -> 0 | F32: 0 | G32: 0 | H32: 0 | I32: =VLOOKUP(B32,'EOS Storage'!$H$5:$M$28,6) -> 111 | J32: 0 | K32: 0 | L32: 0 | M32: 0 | N32: 0 | O32: 0 | P32: 14500 | Q32: =Tisdale!B24 -> 0 | R32: =P32+Tisdale!B24 -> 14500 | S32: 14500 | T32: =intrp(Tisdale!$E$2:$F$14,S32) -> 0 | U32: 14500 | V32: 14500 | W32: =intrp(Tisdale!$E$2:$F$14,V32) -> 0 | X32: 14500
A33: 2000-01-24 | B33: 2000 | C33: =Historical!B31 -> 0 | D33: 0 | E33: =Historical!C31 -> 0 | F33: 0 | G33: 0 | H33: 0 | I33: =VLOOKUP(B33,'EOS Storage'!$H$5:$M$28,6) -> 111 | J33: 0 | K33: 0 | L33: 0 | M33: 0 | N33: 0 | O33: 0 | P33: 14700 | Q33: =Tisdale!B25 -> 0 | R33: =P33+Tisdale!B25 -> 14700 | S33: 14700 | T33: =intrp(Tisdale!$E$2:$F$14,S33) -> 0 | U33: 14700 | V33: 14700 | W33: =intrp(Tisdale!$E$2:$F$14,V33) -> 0 | X33: 14700
A34: 2000-01-25 | B34: 2000 | C34: =Historical!B32 -> 0 | D34: 0 | E34: =Historical!C32 -> 0 | F34: 0 | G34: 0 | H34: 0 | I34: =VLOOKUP(B34,'EOS Storage'!$H$5:$M$28,6) -> 111 | J34: 0 | K34: 0 | L34: 0 | M34: 0 | N34: 0 | O34: 0 | P34: 20800 | Q34: =Tisdale!B26 -> 622.4 | R34: =P34+Tisdale!B26 -> 21422.4 | S34: 21422.4 | T34: =intrp(Tisdale!$E$2:$F$14,S34) -> 0 | U34: 21422.4 | V34: 21422.4 | W34: =intrp(Tisdale!$E$2:$F$14,V34) -> 0 | X34: 21422.4
A35: 2000-01-26 | B35: 2000 | C35: =Historical!B33 -> 541.1239532 | D35: 108.2247906 | E35: =Historical!C33 -> 0 | F35: 0 | G35: 541.1239532 | H35: 1073.303127 | I35: =VLOOKUP(B35,'EOS Storage'!$H$5:$M$28,6) -> 111 | J35: 541.1239532 | K35: 1073.303127 | L35: 541.1239532 | M35: 108.2247906 | N35: 0 | O35: 0 | P35: 23600 | Q35: =Tisdale!B27 -> 1356.41 | R35: =P35+Tisdale!B27 -> 24956.41 | S35: 24848.18521 | T35: =intrp(Tisdale!$E$2:$F$14,S35) -> 998.6557106 | U35: 23849.5295 | V35: 24848.18521 | W35: =intrp(Tisdale!$E$2:$F$14,V35) -> 998.6557106 | X35: 23849.5295
A36: 2000-01-27 | B36: 2000 | C36: =Historical!B34 -> 2147.685207 | D36: 537.761832 | E36: =Historical!C34 -> 0 | F36: 0 | G36: 2147.685207 | H36: 5333.172304 | I36: =VLOOKUP(B36,'EOS Storage'!$H$5:$M$28,6) -> 111 | J36: 2147.685207 | K36: 5333.172304 | L36: 2147.685207 | M36: 537.761832 | N36: 0 | O36: 0 | P36: 23300 | Q36: =Tisdale!B28 -> 820.66 | R36: =P36+Tisdale!B28 -> 24120.66 | S36: 23582.89817 | T36: =intrp(Tisdale!$E$2:$F$14,S36) -> 61.40605039 | U36: 23521.49212 | V36: 23582.89817 | W36: =intrp(Tisdale!$E$2:$F$14,V36) -> 61.40605039 | X36: 23521.49212
A37: 2000-01-28 | B37: 2000 | C37: =Historical!B35 -> 2200 | D37: 977.761832 | E37: =Historical!C35 -> 1384.527799 | F37: 276.9055599 | G37: 3584.527799 | H37: 12442.97566 | I37: =VLOOKUP(B37,'EOS Storage'!$H$5:$M$28,6) -> 111 | J37: 3584.527799 | K37: 12442.97566 | L37: 2200 | M37: 977.761832 | N37: 1384.527799 | O37: 276.9055599 | P37: 22100 | Q37: =Tisdale!B29 -> 137.77 | R37: =P37+Tisdale!B29 -> 22237.77 | S37: 20983.10261 | T37: =intrp(Tisdale!$E$2:$F$14,S37) -> 0 | U37: 20983.10261 | V37: 20983.10261 | W37: =intrp(Tisdale!$E$2:$F$14,V37) -> 0 | X37: 20983.10261
A38: 2000-01-29 | B38: 2000 | C38: =Historical!B36 -> 2200 | D38: 1417.761832 | E38: =Historical!C36 -> 2000 | F38: 676.9055599 | G38: 4200 | H38: 20773.54966 | I38: =VLOOKUP(B38,'EOS Storage'!$H$5:$M$28,6) -> 111 | J38: 4200 | K38: 20773.54966 | L38: 2200 | M38: 1417.761832 | N38: 2000 | O38: 676.9055599 | P38: 20300 | Q38: =Tisdale!B30 -> 0 | R38: =P38+Tisdale!B30 -> 20300 | S38: 18205.33261 | T38: =intrp(Tisdale!$E$2:$F$14,S38) -> 0 | U38: 18205.33261 | V38: 18205.33261 | W38: =intrp(Tisdale!$E$2:$F$14,V38) -> 0 | X38: 18205.33261
A39: 2000-01-30 | B39: 2000 | C39: =Historical!B37 -> 2200 | D39: 1857.761832 | E39: =Historical!C37 -> 2000 | F39: 1076.90556 | G39: 4200 | H39: 29104.12366 | I39: =VLOOKUP(B39,'EOS Storage'!$H$5:$M$28,6) -> 111 | J39: 4200 | K39: 29104.12366 | L39: 2200 | M39: 1857.761832 | N39: 2000 | O39: 1076.90556 | P39: 20400 | Q39: =Tisdale!B31 -> 0 | R39: =P39+Tisdale!B31 -> 20400 | S39: 17465.33261 | T39: =intrp(Tisdale!$E$2:$F$14,S39) -> 0 | U39: 17465.33261 | V39: 17465.33261 | W39: =intrp(Tisdale!$E$2:$F$14,V39) -> 0 | X39: 17465.33261
A40: 2000-01-31 | B40: 2000 | C40: =Historical!B38 -> 2200 | D40: 2189.537041 | E40: =Historical!C38 -> 2000 | F40: 1476.90556 | G40: 4200 | H40: 37434.69766 | I40: =VLOOKUP(B40,'EOS Storage'!$H$5:$M$28,6) -> 111 | J40: 4200 | K40: 37434.69766 | L40: 2200 | M40: 2189.537041 | N40: 2000 | O40: 1476.90556 | P40: 23300 | Q40: =Tisdale!B32 -> 2005.42 | R40: =P40+Tisdale!B32 -> 25305.42 | S40: 21638.9774 | T40: =intrp(Tisdale!$E$2:$F$14,S40) -> 0 | U40: 21638.9774 | V40: 21638.9774 | W40: =intrp(Tisdale!$E$2:$F$14,V40) -> 0 | X40: 21638.9774
A41: 2000-02-01 | B41: 2000 | C41: =Historical!B39 -> 228.8994304 | D41: 1805.779886 | E41: =Historical!C39 -> 0 | F41: 1476.90556 | G41: 228.8994304 | H41: 37888.71281 | I41: =VLOOKUP(B41,'EOS Storage'!$H$5:$M$28,6) -> 111 | J41: 228.8994304 | K41: 37888.71281 | L41: 228.8994304 | M41: 1805.779886 | N41: 0 | O41: 1476.90556 | P41: 25300 | Q41: =Tisdale!B33 -> 6429.82 | R41: =P41+Tisdale!B33 -> 31729.82 | S41: 28447.13455 | T41: =intrp(Tisdale!$E$2:$F$14,S41) -> 3423.567277 | U41: 25023.56728 | V41: 28447.13455 | W41: =intrp(Tisdale!$E$2:$F$14,V41) -> 3423.567277 | X41: 25023.56728
A42: 2000-02-02 | B42: 2000 | C42: =Historical!B40 -> 1820.161335 | D42: 1729.812153 | E42: =Historical!C40 -> 0 | F42: 1200 | G42: 1820.161335 | H42: 41498.94822 | I42: =VLOOKUP(B42,'EOS Storage'!$H$5:$M$28,6) -> 111 | J42: 1820.161335 | K42: 41498.94822 | L42: 1820.161335 | M42: 1729.812153 | N42: 0 | O42: 1200 | P42: 24600 | Q42: =Tisdale!B34 -> 3754.31 | R42: =P42+Tisdale!B34 -> 28354.31 | S42: 25424.49785 | T42: =intrp(Tisdale!$E$2:$F$14,S42) -> 1425.553961 | U42: 23998.94389 | V42: 25424.49785 | W42: =intrp(Tisdale!$E$2:$F$14,V42) -> 1425.553961 | X42: 23998.94389
A43: 2000-02-03 | B43: 2000 | C43: =Historical!B41 -> 2200 | D43: 1729.812153 | E43: =Historical!C41 -> 1182.613716 | F43: 1036.522743 | G43: 3382.613716 | H43: 48208.26104 | I43: =VLOOKUP(B43,'EOS Storage'!$H$5:$M$28,6) -> 111 | J43: 3382.613716 | K43: 48208.26104 | L43: 2200 | M43: 1729.812153 | N43: 1182.613716 | O43: 1036.522743 | P43: 23600 | Q43: =Tisdale!B35 -> 1388.27 | R43: =P43+Tisdale!B35 -> 24988.27 | S43: 22221.9351 | T43: =intrp(Tisdale!$E$2:$F$14,S43) -> 0 | U43: 22221.9351 | V43: 22221.9351 | W43: =intrp(Tisdale!$E$2:$F$14,V43) -> 0 | X43: 22221.9351
A44: 2000-02-04 | B44: 2000 | C44: =Historical!B42 -> 2200 | D44: 1729.812153 | E44: =Historical!C42 -> 2000 | F44: 1036.522743 | G44: 4200 | H44: 56538.83504 | I44: =VLOOKUP(B44,'EOS Storage'!$H$5:$M$28,6) -> 111 | J44: 4200 | K44: 56538.83504 | L44: 2200 | M44: 1729.812153 | N44: 2000 | O44: 1036.522743 | P44: 22400 | Q44: =Tisdale!B36 -> 132.97 | R44: =P44+Tisdale!B36 -> 22532.97 | S44: 19766.6351 | T44: =intrp(Tisdale!$E$2:$F$14,S44) -> 0 | U44: 19766.6351 | V44: 19766.6351 | W44: =intrp(Tisdale!$E$2:$F$14,V44) -> 0 | X44: 19766.6351
A45: 2000-02-05 | B45: 2000 | C45: =Historical!B43 -> 2200 | D45: 1729.812153 | E45: =Historical!C43 -> 2000 | F45: 1036.522743 | G45: 4200 | H45: 64869.40904 | I45: =VLOOKUP(B45,'EOS Storage'!$H$5:$M$28,6) -> 111 | J45: 4200 | K45: 64869.40904 | L45: 2200 | M45: 1729.812153 | N45: 2000 | O45: 1036.522743 | P45: 22700 | Q45: =Tisdale!B37 -> 221.67 | R45: =P45+Tisdale!B37 -> 22921.67 | S45: 20155.3351 | T45: =intrp(Tisdale!$E$2:$F$14,S45) -> 0 | U45: 20155.3351 | V45: 20155.3351 | W45: =intrp(Tisdale!$E$2:$F$14,V45) -> 0 | X45: 20155.3351
A46: 2000-02-06 | B46: 2000 | C46: =Historical!B44 -> 2200 | D46: 2124.032267 | E46: =Historical!C44 -> 2000 | F46: 1436.522743 | G46: 4200 | H46: 73199.98304 | I46: =VLOOKUP(B46,'EOS Storage'!$H$5:$M$28,6) -> 111 | J46: 4200 | K46: 73199.98304 | L46: 2200 | M46: 2124.032267 | N46: 2000 | O46: 1436.522743 | P46: 22700 | Q46: =Tisdale!B38 -> 270.14 | R46: =P46+Tisdale!B38 -> 22970.14 | S46: 19409.58499 | T46: =intrp(Tisdale!$E$2:$F$14,S46) -> 0 | U46: 19409.58499 | V46: 19409.58499 | W46: =intrp(Tisdale!$E$2:$F$14,V46) -> 0 | X46: 19409.58499
A47: 2000-02-07 | B47: 2000 | C47: =Historical!B45 -> 2200 | D47: 2200 | E47: =Historical!C45 -> 2000 | F47: 1836.522743 | G47: 4200 | H47: 81530.55704 | I47: =VLOOKUP(B47,'EOS Storage'!$H$5:$M$28,6) -> 111 | J47: 4200 | K47: 81530.55704 | L47: 2200 | M47: 2200 | N47: 2000 | O47: 1836.522743 | P47: 23600 | Q47: =Tisdale!B39 -> 1243.89 | R47: =P47+Tisdale!B39 -> 24843.89 | S47: 20807.36726 | T47: =intrp(Tisdale!$E$2:$F$14,S47) -> 0 | U47: 20807.36726 | V47: 20807.36726 | W47: =intrp(Tisdale!$E$2:$F$14,V47) -> 0 | X47: 20807.36726
A48: 2000-02-08 | B48: 2000 | C48: =Historical!B46 -> 2200 | D48: 2200 | E48: =Historical!C46 -> 2000 | F48: 2000 | G48: 4200 | H48: 89861.13104 | I48: =VLOOKUP(B48,'EOS Storage'!$H$5:$M$28,6) -> 111 | J48: 4200 | K48: 89861.13104 | L48: 2200 | M48: 2200 | N48: 2000 | O48: 2000 | P48: 22000 | Q48: =Tisdale!B40 -> 224.16 | R48: =P48+Tisdale!B40 -> 22224.16 | S48: 18024.16 | T48: =intrp(Tisdale!$E$2:$F$14,S48) -> 0 | U48: 18024.16 | V48: 18024.16 | W48: =intrp(Tisdale!$E$2:$F$14,V48) -> 0 | X48: 18024.16
A49: 2000-02-09 | B49: 2000 | C49: =Historical!B47 -> 2200 | D49: 2200 | E49: =Historical!C47 -> 2000 | F49: 2000 | G49: 4200 | H49: 98191.70504 | I49: =VLOOKUP(B49,'EOS Storage'!$H$5:$M$28,6) -> 111 | J49: 4200 | K49: 98191.70504 | L49: 2200 | M49: 2200 | N49: 2000 | O49: 2000 | P49: 19700 | Q49: =Tisdale!B41 -> 0 | R49: =P49+Tisdale!B41 -> 19700 | S49: 15500 | T49: =intrp(Tisdale!$E$2:$F$14,S49) -> 0 | U49: 15500 | V49: 15500 | W49: =intrp(Tisdale!$E$2:$F$14,V49) -> 0 | X49: 15500
A50: 2000-02-10 | B50: 2000 | C50: =Historical!B48 -> 2200 | D50: 2200 | E50: =Historical!C48 -> 2000 | F50: 2000 | G50: 4200 | H50: 106522.279 | I50: =VLOOKUP(B50,'EOS Storage'!$H$5:$M$28,6) -> 111 | J50: 4200 | K50: 106522.279 | L50: 2200 | M50: 2200 | N50: 2000 | O50: 2000 | P50: 18600 | Q50: =Tisdale!B42 -> 0 | R50: =P50+Tisdale!B42 -> 18600 | S50: 14400 | T50: =intrp(Tisdale!$E$2:$F$14,S50) -> 0 | U50: 14400 | V50: 14400 | W50: =intrp(Tisdale!$E$2:$F$14,V50) -> 0 | X50: 14400
A51: 2000-02-11 | B51: 2000 | C51: =Historical!B49 -> 2200 | D51: 2200 | E51: =Historical!C49 -> 2000 | F51: 2000 | G51: 4200 | H51: 114852.853 | I51: =VLOOKUP(B51,'EOS Storage'!$H$5:$M$28,6) -> 111 | J51: 2257.518872 | K51: 111000 | L51: 2200 | M51: 2200 | N51: 57.51887201 | O51: 1611.503774 | P51: 21300 | Q51: =Tisdale!B43 -> 1027.12 | R51: =P51+Tisdale!B43 -> 22327.12 | S51: 18127.12 | T51: =intrp(Tisdale!$E$2:$F$14,S51) -> 0 | U51: 18127.12 | V51: 18515.61623 | W51: =intrp(Tisdale!$E$2:$F$14,V51) -> 0 | X51: 18515.61623
A52: 2000-02-12 | B52: 2000 | C52: =Historical!B50 -> 2200 | D52: 2200 | E52: =Historical!C50 -> 2000 | F52: 2000 | G52: 4200 | H52: 123183.427 | I52: =VLOOKUP(B52,'EOS Storage'!$H$5:$M$28,6) -> 111 | J52: 0 | K52: 111000 | L52: 0 | M52: 1760 | N52: 0 | O52: 1211.503774 | P52: 25400 | Q52: =Tisdale!B44 -> 6947.54 | R52: =P52+Tisdale!B44 -> 32347.54 | S52: 28147.54 | T52: =intrp(Tisdale!$E$2:$F$14,S52) -> 3273.77 | U52: 24873.77 | V52: 29376.03623 | W52: =intrp(Tisdale!$E$2:$F$14,V52) -> 3888.018113 | X52: 25488.01811
A53: 2000-02-13 | B53: 2000 | C53: =Historical!B51 -> 2200 | D53: 2200 | E53: =Historical!C51 -> 2000 | F53: 2000 | G53: 4200 | H53: 131514.001 | I53: =VLOOKUP(B53,'EOS Storage'!$H$5:$M$28,6) -> 111 | J53: 0 | K53: 111000 | L53: 0 | M53: 1320 | N53: 0 | O53: 811.5037744 | P53: 27200 | Q53: =Tisdale!B45 -> 13992.46 | R53: =P53+Tisdale!B45 -> 41192.46 | S53: 36992.46 | T53: =intrp(Tisdale!$E$2:$F$14,S53) -> 9993.968 | U53: 26998.492 | V53: 39060.95623 | W53: =intrp(Tisdale!$E$2:$F$14,V53) -> 11873.59657 | X53: 27187.35966
A54: 2000-02-14 | B54: 2000 | C54: =Historical!B52 -> 2200 | D54: 2200 | E54: =Historical!C52 -> 2000 | F54: 2000 | G54: 4200 | H54: 139844.575 | I54: =VLOOKUP(B54,'EOS Storage'!$H$5:$M$28,6) -> 111 | J54: 0 | K54: 111000 | L54: 0 | M54: 880 | N54: 0 | O54: 411.5037744 | P54: 27900 | Q54: =Tisdale!B46 -> 14721.86 | R54: =P54+Tisdale!B46 -> 42621.86 | S54: 38421.86 | T54: =intrp(Tisdale!$E$2:$F$14,S54) -> 11292.6 | U54: 27129.26 | V54: 41330.35623 | W54: =intrp(Tisdale!$E$2:$F$14,V54) -> 13936.68748 | X54: 27393.66875
A55: 2000-02-15 | B55: 2000 | C55: =Historical!B53 -> 2200 | D55: 2200 | E55: =Historical!C53 -> 2000 | F55: 2000 | G55: 4200 | H55: 148175.149 | I55: =VLOOKUP(B55,'EOS Storage'!$H$5:$M$28,6) -> 111 | J55: 0 | K55: 111000 | L55: 0 | M55: 440 | N55: 0 | O55: 11.5037744 | P55: 29000 | Q55: =Tisdale!B47 -> 16028.54 | R55: =P55+Tisdale!B47 -> 45028.54 | S55: 40828.54 | T55: =intrp(Tisdale!$E$2:$F$14,S55) -> 13480.49091 | U55: 27348.04909 | V55: 44577.03623 | W55: =intrp(Tisdale!$E$2:$F$14,V55) -> 16840.41185 | X55: 27736.62438
A56: 2000-02-16 | B56: 2000 | C56: =Historical!B54 -> 2200 | D56: 2200 | E56: =Historical!C54 -> 2000 | F56: 2000 | G56: 4200 | H56: 156505.723 | I56: =VLOOKUP(B56,'EOS Storage'!$H$5:$M$28,6) -> 111 | J56: 0 | K56: 111000 | L56: 0 | M56: 0 | N56: 0 | O56: 0 | P56: 29200 | Q56: =Tisdale!B48 -> 16242.71 | R56: =P56+Tisdale!B48 -> 45442.71 | S56: 41242.71 | T56: =intrp(Tisdale!$E$2:$F$14,S56) -> 13857.00909 | U56: 27385.70091 | V56: 45442.71 | W56: =intrp(Tisdale!$E$2:$F$14,V56) -> 17607.46456 | X56: 27835.24544
A57: 2000-02-17 | B57: 2000 | C57: =Historical!B55 -> 2200 | D57: 2200 | E57: =Historical!C55 -> 2000 | F57: 2000 | G57: 4200 | H57: 164836.297 | I57: =VLOOKUP(B57,'EOS Storage'!$H$5:$M$28,6) -> 111 | J57: 0 | K57: 111000 | L57: 0 | M57: 0 | N57: 0 | O57: 0 | P57: 28700 | Q57: =Tisdale!B49 -> 15680.26 | R57: =P57+Tisdale!B49 -> 44380.26 | S57: 40180.26 | T57: =intrp(Tisdale!$E$2:$F$14,S57) -> 12891.14545 | U57: 27289.11455 | V57: 44380.26 | W57: =intrp(Tisdale!$E$2:$F$14,V57) -> 16666.05316 | X57: 27714.20684
A58: 2000-02-18 | B58: 2000 | C58: =Historical!B56 -> 2200 | D58: 2200 | E58: =Historical!C56 -> 2000 | F58: 2000 | G58: 4200 | H58: 173166.871 | I58: =VLOOKUP(B58,'EOS Storage'!$H$5:$M$28,6) -> 111 | J58: 0 | K58: 111000 | L58: 0 | M58: 0 | N58: 0 | O58: 0 | P58: 28300 | Q58: =Tisdale!B50 -> 15219.43 | R58: =P58+Tisdale!B50 -> 43519.43 | S58: 39319.43 | T58: =intrp(Tisdale!$E$2:$F$14,S58) -> 12108.57273 | U58: 27210.85727 | V58: 43519.43 | W58: =intrp(Tisdale!$E$2:$F$14,V58) -> 15903.29241 | X58: 27616.13759
A59: 2000-02-19 | B59: 2000 | C59: =Historical!B57 -> 2200 | D59: 2200 | E59: =Historical!C57 -> 2000 | F59: 2000 | G59: 4200 | H59: 181497.445 | I59: =VLOOKUP(B59,'EOS Storage'!$H$5:$M$28,6) -> 111 | J59: 0 | K59: 111000 | L59: 0 | M59: 0 | N59: 0 | O59: 0 | P59: 28000 | Q59: =Tisdale!B51 -> 14823.16 | R59: =P59+Tisdale!B51 -> 42823.16 | S59: 38623.16 | T59: =intrp(Tisdale!$E$2:$F$14,S59) -> 11475.6 | U59: 27147.56 | V59: 42823.16 | W59: =intrp(Tisdale!$E$2:$F$14,V59) -> 15286.3443 | X59: 27536.8157
A60: 2000-02-20 | B60: 2000 | C60: =Historical!B58 -> 2200 | D60: 2200 | E60: =Historical!C58 -> 2000 | F60: 2000 | G60: 4200 | H60: 189828.019 | I60: =VLOOKUP(B60,'EOS Storage'!$H$5:$M$28,6) -> 111 | J60: 0 | K60: 111000 | L60: 0 | M60: 0 | N60: 0 | O60: 0 | P60: 27700 | Q60: =Tisdale!B52 -> 14531.4 | R60: =P60+Tisdale!B52 -> 42231.4 | S60: 38031.4 | T60: =intrp(Tisdale!$E$2:$F$14,S60) -> 10937.63636 | U60: 27093.76364 | V60: 42231.4 | W60: =intrp(Tisdale!$E$2:$F$14,V60) -> 14755.81818 | X60: 27475.58182
A61: 2000-02-21 | B61: 2000 | C61: =Historical!B59 -> 2200 | D61: 2200 | E61: =Historical!C59 -> 2000 | F61: 2000 | G61: 4200 | H61: 198158.593 | I61: =VLOOKUP(B61,'EOS Storage'!$H$5:$M$28,6) -> 111 | J61: 0 | K61: 111000 | L61: 0 | M61: 0 | N61: 0 | O61: 0 | P61: 27500 | Q61: =Tisdale!B53 -> 14285.76 | R61: =P61+Tisdale!B53 -> 41785.76 | S61: 37585.76 | T61: =intrp(Tisdale!$E$2:$F$14,S61) -> 10532.50909 | U61: 27053.25091 | V61: 41785.76 | W61: =intrp(Tisdale!$E$2:$F$14,V61) -> 14350.69091 | X61: 27435.06909
A62: 2000-02-22 | B62: 2000 | C62: =Historical!B60 -> 2200 | D62: 2200 | E62: =Historical!C60 -> 2000 | F62: 2000 | G62: 4200 | H62: 206489.167 | I62: =VLOOKUP(B62,'EOS Storage'!$H$5:$M$28,6) -> 111 | J62: 0 | K62: 111000 | L62: 0 | M62: 0 | N62: 0 | O62: 0 | P62: 27600 | Q62: =Tisdale!B54 -> 14362.72 | R62: =P62+Tisdale!B54 -> 41962.72 | S62: 37762.72 | T62: =intrp(Tisdale!$E$2:$F$14,S62) -> 10693.38182 | U62: 27069.33818 | V62: 41962.72 | W62: =intrp(Tisdale!$E$2:$F$14,V62) -> 14511.56364 | X62: 27451.15636
A63: 2000-02-23 | B63: 2000 | C63: =Historical!B61 -> 2200 | D63: 2200 | E63: =Historical!C61 -> 2000 | F63: 2000 | G63: 4200 | H63: 214819.741 | I63: =VLOOKUP(B63,'EOS Storage'!$H$5:$M$28,6) -> 111 | J63: 0 | K63: 111000 | L63: 0 | M63: 0 | N63: 0 | O63: 0 | P63: 27800 | Q63: =Tisdale!B55 -> 14685.29 | R63: =P63+Tisdale!B55 -> 42485.29 | S63: 38285.29 | T63: =intrp(Tisdale!$E$2:$F$14,S63) -> 11168.44545 | U63: 27116.84455 | V63: 42485.29 | W63: =intrp(Tisdale!$E$2:$F$14,V63) -> 14986.62727 | X63: 27498.66273
A64: 2000-02-24 | B64: 2000 | C64: =Historical!B62 -> 2200 | D64: 2200 | E64: =Historical!C62 -> 2000 | F64: 2000 | G64: 4200 | H64: 223150.315 | I64: =VLOOKUP(B64,'EOS Storage'!$H$5:$M$28,6) -> 111 | J64: 0 | K64: 111000 | L64: 0 | M64: 0 | N64: 0 | O64: 0 | P64: 28700 | Q64: =Tisdale!B56 -> 15580.16 | R64: =P64+Tisdale!B56 -> 44280.16 | S64: 40080.16 | T64: =intrp(Tisdale!$E$2:$F$14,S64) -> 12800.14545 | U64: 27280.01455 | V64: 44280.16 | W64: =intrp(Tisdale!$E$2:$F$14,V64) -> 16577.35696 | X64: 27702.80304
A65: 2000-02-25 | B65: 2000 | C65: =Historical!B63 -> 2200 | D65: 2200 | E65: =Historical!C63 -> 2000 | F65: 2000 | G65: 4200 | H65: 231480.889 | I65: =VLOOKUP(B65,'EOS Storage'!$H$5:$M$28,6) -> 111 | J65: 0 | K65: 111000 | L65: 0 | M65: 0 | N65: 0 | O65: 0 | P65: 28700 | Q65: =Tisdale!B57 -> 15604.85 | R65: =P65+Tisdale!B57 -> 44304.85 | S65: 40104.85 | T65: =intrp(Tisdale!$E$2:$F$14,S65) -> 12822.59091 | U65: 27282.25909 | V65: 44304.85 | W65: =intrp(Tisdale!$E$2:$F$14,V65) -> 16599.23418 | X65: 27705.61582
A66: 2000-02-26 | B66: 2000 | C66: =Historical!B64 -> 2200 | D66: 2200 | E66: =Historical!C64 -> 2000 | F66: 2000 | G66: 4200 | H66: 239811.463 | I66: =VLOOKUP(B66,'EOS Storage'!$H$5:$M$28,6) -> 111 | J66: 0 | K66: 111000 | L66: 0 | M66: 0 | N66: 0 | O66: 0 | P66: 28200 | Q66: =Tisdale!B58 -> 15072.61 | R66: =P66+Tisdale!B58 -> 43272.61 | S66: 39072.61 | T66: =intrp(Tisdale!$E$2:$F$14,S66) -> 11884.19091 | U66: 27188.41909 | V66: 43272.61 | W66: =intrp(Tisdale!$E$2:$F$14,V66) -> 15684.59114 | X66: 27588.01886
A67: 2000-02-27 | B67: 2000 | C67: =Historical!B65 -> 2200 | D67: 2200 | E67: =Historical!C65 -> 2000 | F67: 2000 | G67: 4200 | H67: 248142.037 | I67: =VLOOKUP(B67,'EOS Storage'!$H$5:$M$28,6) -> 111 | J67: 0 | K67: 111000 | L67: 0 | M67: 0 | N67: 0 | O67: 0 | P67: 28200 | Q67: =Tisdale!B59 -> 15075.98 | R67: =P67+Tisdale!B59 -> 43275.98 | S67: 39075.98 | T67: =intrp(Tisdale!$E$2:$F$14,S67) -> 11887.25455 | U67: 27188.72545 | V67: 43275.98 | W67: =intrp(Tisdale!$E$2:$F$14,V67) -> 15687.57722 | X67: 27588.40278
A68: 2000-02-28 | B68: 2000 | C68: =Historical!B66 -> 2200 | D68: 2200 | E68: =Historical!C66 -> 2000 | F68: 2000 | G68: 4200 | H68: 256472.611 | I68: =VLOOKUP(B68,'EOS Storage'!$H$5:$M$28,6) -> 111 | J68: 0 | K68: 111000 | L68: 0 | M68: 0 | N68: 0 | O68: 0 | P68: 28800 | Q68: =Tisdale!B60 -> 15721.87 | R68: =P68+Tisdale!B60 -> 44521.87 | S68: 40321.87 | T68: =intrp(Tisdale!$E$2:$F$14,S68) -> 13019.88182 | U68: 27301.98818 | V68: 44521.87 | W68: =intrp(Tisdale!$E$2:$F$14,V68) -> 16791.53038 | X68: 27730.33962
A69: 2000-02-29 | B69: 2000 | C69: =Historical!B67 -> 2200 | D69: 2200 | E69: =Historical!C67 -> 2000 | F69: 2000 | G69: 4200 | H69: 264803.185 | I69: =VLOOKUP(B69,'EOS Storage'!$H$5:$M$28,6) -> 111 | J69: 0 | K69: 111000 | L69: 0 | M69: 0 | N69: 0 | O69: 0 | P69: 29000 | Q69: =Tisdale!B61 -> 15904.65 | R69: =P69+Tisdale!B61 -> 44904.65 | S69: 40704.65 | T69: =intrp(Tisdale!$E$2:$F$14,S69) -> 13367.86364 | U69: 27336.78636 | V69: 44904.65 | W69: =intrp(Tisdale!$E$2:$F$14,V69) -> 17130.70253 | X69: 27773.94747
A70: 2000-03-01 | B70: 2000 | C70: =Historical!B68 -> 2200 | D70: 2200 | E70: =Historical!C68 -> 2000 | F70: 2000 | G70: 4200 | H70: 273133.759 | I70: =VLOOKUP(B70,'EOS Storage'!$H$5:$M$28,6) -> 111 | J70: 0 | K70: 111000 | L70: 0 | M70: 0 | N70: 0 | O70: 0 | P70: 28800 | Q70: =Tisdale!B62 -> 15724.32 | R70: =P70+Tisdale!B62 -> 44524.32 | S70: 40324.32 | T70: =intrp(Tisdale!$E$2:$F$14,S70) -> 13022.10909 | U70: 27302.21091 | V70: 44524.32 | W70: =intrp(Tisdale!$E$2:$F$14,V70) -> 16793.70127 | X70: 27730.61873
A71: 2000-03-02 | B71: 2000 | C71: =Historical!B69 -> 2200 | D71: 2200 | E71: =Historical!C69 -> 2000 | F71: 2000 | G71: 4200 | H71: 281464.333 | I71: =VLOOKUP(B71,'EOS Storage'!$H$5:$M$28,6) -> 111 | J71: 0 | K71: 111000 | L71: 0 | M71: 0 | N71: 0 | O71: 0 | P71: 28800 | Q71: =Tisdale!B63 -> 15725.3 | R71: =P71+Tisdale!B63 -> 44525.3 | S71: 40325.3 | T71: =intrp(Tisdale!$E$2:$F$14,S71) -> 13023 | U71: 27302.3 | V71: 44525.3 | W71: =intrp(Tisdale!$E$2:$F$14,V71) -> 16794.56962 | X71: 27730.73038
A72: 2000-03-03 | B72: 2000 | C72: =Historical!B70 -> 2200 | D72: 2200 | E72: =Historical!C70 -> 2000 | F72: 2000 | G72: 4200 | H72: 289794.907 | I72: =VLOOKUP(B72,'EOS Storage'!$H$5:$M$28,6) -> 111 | J72: 0 | K72: 111000 | L72: 0 | M72: 0 | N72: 0 | O72: 0 | P72: 28700 | Q72: =Tisdale!B64 -> 15627.94 | R72: =P72+Tisdale!B64 -> 44327.94 | S72: 40127.94 | T72: =intrp(Tisdale!$E$2:$F$14,S72) -> 12843.58182 | U72: 27284.35818 | V72: 44327.94 | W72: =intrp(Tisdale!$E$2:$F$14,V72) -> 16619.69367 | X72: 27708.24633
A73: 2000-03-04 | B73: 2000 | C73: =Historical!B71 -> 2200 | D73: 2200 | E73: =Historical!C71 -> 2000 | F73: 2000 | G73: 4200 | H73: 298125.481 | I73: =VLOOKUP(B73,'EOS Storage'!$H$5:$M$28,6) -> 111 | J73: 0 | K73: 111000 | L73: 0 | M73: 0 | N73: 0 | O73: 0 | P73: 28500 | Q73: =Tisdale!B65 -> 15500.8 | R73: =P73+Tisdale!B65 -> 44000.8 | S73: 39800.8 | T73: =intrp(Tisdale!$E$2:$F$14,S73) -> 12546.18182 | U73: 27254.61818 | V73: 44000.8 | W73: =intrp(Tisdale!$E$2:$F$14,V73) -> 16329.82278 | X73: 27670.97722
A74: 2000-03-05 | B74: 2000 | C74: =Historical!B72 -> 2200 | D74: 2200 | E74: =Historical!C72 -> 2000 | F74: 2000 | G74: =C74+E74 -> 4200 | H74: 306456.055 | I74: =VLOOKUP(B74,'EOS Storage'!$H$5:$M$28,6) -> 111 | J74: 0 | K74: 111000 | L74: =IF(J74<C74,MIN($L$1,J74),C74) -> 0 | M74: 0 | N74: 0 | O74: 0 | P74: 28500 | Q74: =Tisdale!B66 -> 15417.62 | R74: =P74+Tisdale!B66 -> 43917.62 | S74: 39717.62 | T74: =intrp(Tisdale!$E$2:$F$14,S74) -> 12470.56364 | U74: 27247.05636 | V74: 43917.62 | W74: =intrp(Tisdale!$E$2:$F$14,V74) -> 16256.11899 | X74: 27661.50101
A75: 2000-03-06 | B75: =IF(MONTH(A75)>9,YEAR(A75)+1,YEAR(A75)) -> 2000 | C75: =Historical!B73 -> 2200 | D75: 2200 | E75: =Historical!C73 -> 2000 | F75: 2000 | G75: 4200 | H75: 314786.629 | I75: =VLOOKUP(B75,'EOS Storage'!$H$5:$M$28,6) -> 111 | J75: =IF(B75=B74,IF(K74<I75*1000,MIN(G75,(I75*1000-K74)/1.98347),0),G75) -> 0 | K75: 111000 | L75: 0 | M75: 0 | N75: =J75-L75 -> 0 | O75: 0 | P75: 28900 | Q75: =Tisdale!B67 -> 15813.95 | R75: =P75+Tisdale!B67 -> 44713.95 | S75: 40513.95 | T75: =intrp(Tisdale!$E$2:$F$14,S75) -> 13194.5 | U75: 27319.45 | V75: 44713.95 | W75: =intrp(Tisdale!$E$2:$F$14,V75) -> 16961.72785 | X75: 27752.22215
A76: 2000-03-07 | B76: 2000 | C76: =Historical!B74 -> 2200 | D76: 2200 | E76: =Historical!C74 -> 2000 | F76: 2000 | G76: 4200 | H76: =IF(B76=B75,G76*1.98347+H75,G76*1.98347) -> 323117.203 | I76: =VLOOKUP(B76,'EOS Storage'!$H$5:$M$28,6) -> 111 | J76: 0 | K76: =K75+J76*1.98347 -> 111000 | L76: 0 | M76: 0 | N76: 0 | O76: 0 | P76: 29200 | Q76: =Tisdale!B68 -> 16159.67 | R76: =P76+Tisdale!B68 -> 45359.67 | S76: 41159.67 | T76: =intrp(Tisdale!$E$2:$F$14,S76) -> 13781.51818 | U76: 27378.15182 | V76: 45359.67 | W76: =intrp(Tisdale!$E$2:$F$14,V76) -> 17533.88481 | X76: 27825.78519
A77: 2000-03-08 | B77: 2000 | C77: =Historical!B75 -> 2200 | D77: 2200 | E77: =Historical!C75 -> 2000 | F77: 2000 | G77: 4200 | H77: 331447.777 | I77: =VLOOKUP(B77,'EOS Storage'!$H$5:$M$28,6) -> 111 | J77: 0 | K77: 111000 | L77: 0 | M77: 0 | N77: 0 | O77: 0 | P77: 28700 | Q77: =Tisdale!B69 -> 15703.64 | R77: =P77+Tisdale!B69 -> 44403.64 | S77: 40203.64 | T77: =intrp(Tisdale!$E$2:$F$14,S77) -> 12912.4 | U77: 27291.24 | V77: 44403.64 | W77: =intrp(Tisdale!$E$2:$F$14,V77) -> 16686.76962 | X77: 27716.87038
A78: 2000-03-09 | B78: 2000 | C78: =Historical!B76 -> 2200 | D78: 2200 | E78: =Historical!C76 -> 2000 | F78: 2000 | G78: 4200 | H78: 339778.351 | I78: =VLOOKUP(B78,'EOS Storage'!$H$5:$M$28,6) -> 111 | J78: 0 | K78: 111000 | L78: 0 | M78: 0 | N78: 0 | O78: 0 | P78: 28400 | Q78: =Tisdale!B70 -> 15346.4 | R78: =P78+Tisdale!B70 -> 43746.4 | S78: =R78-D78-F78 -> 39546.4 | T78: =intrp(Tisdale!$E$2:$F$14,S78) -> 12314.90909 | U78: =S78-T78 -> 27231.49091 | V78: =R78-M78-O78 -> 43746.4 | W78: =intrp(Tisdale!$E$2:$F$14,V78) -> 16104.40506 | X78: =V78-W78 -> 27641.99494
A79: 2000-03-10 | B79: 2000 | C79: =Historical!B77 -> 2200 | D79: =AVERAGE(C75:C79) -> 2200 | E79: =Historical!C77 -> 2000 | F79: =AVERAGE(E75:E79) -> 2000 | G79: 4200 | H79: 348108.925 | I79: =VLOOKUP(B79,'EOS Storage'!$H$5:$M$28,6) -> 111 | J79: 0 | K79: 111000 | L79: 0 | M79: =AVERAGE(L75:L79) -> 0 | N79: 0 | O79: =AVERAGE(N75:N79) -> 0 | P79: 28500 | Q79: =Tisdale!B71 -> 15393.76 | R79: =P79+Tisdale!B71 -> 43893.76 | S79: 39693.76 | T79: =intrp(Tisdale!$E$2:$F$14,S79) -> 12448.87273 | U79: 27244.88727 | V79: 43893.76 | W79: =intrp(Tisdale!$E$2:$F$14,V79) -> 16234.97722 | X79: 27658.78278
A80: 2000-03-11 | B80: 2000 | C80: =Historical!B78 -> 2200 | D80: 2200 | E80: =Historical!C78 -> 2000 | F80: 2000 | G80: 4200 | H80: 356439.499 | I80: =VLOOKUP(B80,'EOS Storage'!$H$5:$M$28,6) -> 111 | J80: 0 | K80: 111000 | L80: 0 | M80: 0 | N80: 0 | O80: 0 | P80: 28500 | Q80: =Tisdale!B72 -> 15370.6 | R80: =P80+Tisdale!B72 -> 43870.6 | S80: 39670.6 | T80: =intrp(Tisdale!$E$2:$F$14,S80) -> 12427.81818 | U80: 27242.78182 | V80: 43870.6 | W80: =intrp(Tisdale!$E$2:$F$14,V80) -> 16214.4557 | X80: 27656.1443
A81: 2000-03-12 | B81: 2000 | C81: =Historical!B79 -> 2200 | D81: 2200 | E81: =Historical!C79 -> 2000 | F81: 2000 | G81: 4200 | H81: 364770.073 | I81: =VLOOKUP(B81,'EOS Storage'!$H$5:$M$28,6) -> 111 | J81: 0 | K81: 111000 | L81: 0 | M81: 0 | N81: 0 | O81: 0 | P81: 28100 | Q81: =Tisdale!B73 -> 14930.98 | R81: =P81+Tisdale!B73 -> 43030.98 | S81: 38830.98 | T81: =intrp(Tisdale!$E$2:$F$14,S81) -> 11664.52727 | U81: 27166.45273 | V81: 43030.98 | W81: =intrp(Tisdale!$E$2:$F$14,V81) -> 15470.48861 | X81: 27560.49139
A82: 2000-03-13 | B82: 2000 | C82: =Historical!B80 -> 2200 | D82: 2200 | E82: =Historical!C80 -> 2000 | F82: 2000 | G82: 4200 | H82: 373100.647 | I82: =VLOOKUP(B82,'EOS Storage'!$H$5:$M$28,6) -> 111 | J82: 0 | K82: 111000 | L82: 0 | M82: 0 | N82: 0 | O82: 0 | P82: 27500 | Q82: =Tisdale!B74 -> 14288.83 | R82: =P82+Tisdale!B74 -> 41788.83 | S82: 37588.83 | T82: =intrp(Tisdale!$E$2:$F$14,S82) -> 10535.3 | U82: 27053.53 | V82: 41788.83 | W82: =intrp(Tisdale!$E$2:$F$14,V82) -> 14353.48182 | X82: 27435.34818
A83: 2000-03-14 | B83: 2000 | C83: =Historical!B81 -> 2200 | D83: 2200 | E83: =Historical!C81 -> 2000 | F83: 2000 | G83: 4200 | H83: 381431.221 | I83: =VLOOKUP(B83,'EOS Storage'!$H$5:$M$28,6) -> 111 | J83: 0 | K83: 111000 | L83: 0 | M83: 0 | N83: 0 | O83: 0 | P83: 26900 | Q83: =Tisdale!B75 -> 13602.11 | R83: =P83+Tisdale!B75 -> 40502.11 | S83: 36302.11 | T83: =intrp(Tisdale!$E$2:$F$14,S83) -> 9441.688 | U83: 26860.422 | V83: 40502.11 | W83: =intrp(Tisdale!$E$2:$F$14,V83) -> 13183.73636 | X83: 27318.37364
A84: 2000-03-15 | B84: 2000 | C84: =Historical!B82 -> 2200 | D84: 2200 | E84: =Historical!C82 -> 2000 | F84: 2000 | G84: 4200 | H84: 389761.795 | I84: =VLOOKUP(B84,'EOS Storage'!$H$5:$M$28,6) -> 111 | J84: 0 | K84: 111000 | L84: 0 | M84: 0 | N84: 0 | O84: 0 | P84: 26400 | Q84: =Tisdale!B76 -> 12346.2 | R84: =P84+Tisdale!B76 -> 38746.2 | S84: 34546.2 | T84: =intrp(Tisdale!$E$2:$F$14,S84) -> 8036.96 | U84: 26509.24 | V84: 38746.2 | W84: =intrp(Tisdale!$E$2:$F$14,V84) -> 11587.45455 | X84: 27158.74545
A85: 2000-03-16 | B85: 2000 | C85: =Historical!B83 -> 2200 | D85: 2200 | E85: =Historical!C83 -> 2000 | F85: 2000 | G85: 4200 | H85: 398092.369 | I85: =VLOOKUP(B85,'EOS Storage'!$H$5:$M$28,6) -> 111 | J85: 0 | K85: 111000 | L85: 0 | M85: 0 | N85: 0 | O85: 0 | P85: 25800 | Q85: =Tisdale!B77 -> 8807.18 | R85: =P85+Tisdale!B77 -> 34607.18 | S85: 30407.18 | T85: =intrp(Tisdale!$E$2:$F$14,S85) -> 4672.65 | U85: 25734.53 | V85: 34607.18 | W85: =intrp(Tisdale!$E$2:$F$14,V85) -> 8085.744 | X85: 26521.436
A86: 2000-03-17 | B86: 2000 | C86: =Historical!B84 -> 2200 | D86: 2200 | E86: =Historical!C84 -> 2000 | F86: 2000 | G86: 4200 | H86: 406422.943 | I86: =VLOOKUP(B86,'EOS Storage'!$H$5:$M$28,6) -> 111 | J86: 0 | K86: 111000 | L86: 0 | M86: 0 | N86: 0 | O86: 0 | P86: 24700 | Q86: =Tisdale!B78 -> 4156.69 | R86: =P86+Tisdale!B78 -> 28856.69 | S86: 24656.69 | T86: =intrp(Tisdale!$E$2:$F$14,S86) -> 856.8074074 | U86: 23799.88259 | V86: 28856.69 | W86: =intrp(Tisdale!$E$2:$F$14,V86) -> 3628.345 | X86: 25228.345
A87: 2000-03-18 | B87: 2000 | C87: =Historical!B85 -> 2200 | D87: 2200 | E87: =Historical!C85 -> 2000 | F87: 2000 | G87: 4200 | H87: 414753.517 | I87: =VLOOKUP(B87,'EOS Storage'!$H$5:$M$28,6) -> 111 | J87: 0 | K87: 111000 | L87: 0 | M87: 0 | N87: 0 | O87: 0 | P87: 23600 | Q87: =Tisdale!B79 -> 1424.91 | R87: =P87+Tisdale!B79 -> 25024.91 | S87: 20824.91 | T87: =intrp(Tisdale!$E$2:$F$14,S87) -> 0 | U87: 20824.91 | V87: 25024.91 | W87: =intrp(Tisdale!$E$2:$F$14,V87) -> 1129.562963 | X87: 23895.34704
A88: 2000-03-19 | B88: 2000 | C88: =Historical!B86 -> 2200 | D88: 2200 | E88: =Historical!C86 -> 2000 | F88: 2000 | G88: 4200 | H88: 423084.091 | I88: =VLOOKUP(B88,'EOS Storage'!$H$5:$M$28,6) -> 111 | J88: 0 | K88: 111000 | L88: 0 | M88: 0 | N88: 0 | O88: 0 | P88: 22400 | Q88: =Tisdale!B80 -> 192.45 | R88: =P88+Tisdale!B80 -> 22592.45 | S88: 18392.45 | T88: =intrp(Tisdale!$E$2:$F$14,S88) -> 0 | U88: 18392.45 | V88: 22592.45 | W88: =intrp(Tisdale!$E$2:$F$14,V88) -> 0 | X88: 22592.45
A89: 2000-03-20 | B89: 2000 | C89: =Historical!B87 -> 2200 | D89: 2200 | E89: =Historical!C87 -> 2000 | F89: 2000 | G89: 4200 | H89: 431414.665 | I89: =VLOOKUP(B89,'EOS Storage'!$H$5:$M$28,6) -> 111 | J89: 0 | K89: 111000 | L89: 0 | M89: 0 | N89: 0 | O89: 0 | P89: 20600 | Q89: =Tisdale!B81 -> 0 | R89: =P89+Tisdale!B81 -> 20600 | S89: 16400 | T89: =intrp(Tisdale!$E$2:$F$14,S89) -> 0 | U89: 16400 | V89: 20600 | W89: =intrp(Tisdale!$E$2:$F$14,V89) -> 0 | X89: 20600
A90: 2000-03-21 | B90: 2000 | C90: =Historical!B88 -> 2200 | D90: 2200 | E90: =Historical!C88 -> 2000 | F90: 2000 | G90: 4200 | H90: 439745.239 | I90: =VLOOKUP(B90,'EOS Storage'!$H$5:$M$28,6) -> 111 | J90: 0 | K90: 111000 | L90: 0 | M90: 0 | N90: 0 | O90: 0 | P90: 19800 | Q90: =Tisdale!B82 -> 0 | R90: =P90+Tisdale!B82 -> 19800 | S90: 15600 | T90: =intrp(Tisdale!$E$2:$F$14,S90) -> 0 | U90: 15600 | V90: 19800 | W90: =intrp(Tisdale!$E$2:$F$14,V90) -> 0 | X90: 19800
A91: 2000-03-22 | B91: 2000 | C91: =Historical!B89 -> 2200 | D91: 2200 | E91: =Historical!C89 -> 1859.229676 | F91: 1971.845935 | G91: 4059.229676 | H91: 447796.5993 | I91: =VLOOKUP(B91,'EOS Storage'!$H$5:$M$28,6) -> 111 | J91: 0 | K91: 111000 | L91: 0 | M91: 0 | N91: 0 | O91: 0 | P91: 19000 | Q91: =Tisdale!B83 -> 0 | R91: =P91+Tisdale!B83 -> 19000 | S91: 14828.15406 | T91: =intrp(Tisdale!$E$2:$F$14,S91) -> 0 | U91: 14828.15406 | V91: 19000 | W91: =intrp(Tisdale!$E$2:$F$14,V91) -> 0 | X91: 19000
A92: 2000-03-23 | B92: 2000 | C92: =Historical!B90 -> 2200 | D92: 2200 | E92: =Historical!C90 -> 459.229676 | F92: 1663.69187 | G92: 2659.229676 | H92: 453071.1016 | I92: =VLOOKUP(B92,'EOS Storage'!$H$5:$M$28,6) -> 111 | J92: 0 | K92: 111000 | L92: 0 | M92: 0 | N92: 0 | O92: 0 | P92: 18100 | Q92: =Tisdale!B84 -> 0 | R92: =P92+Tisdale!B84 -> 18100 | S92: 14236.30813 | T92: =intrp(Tisdale!$E$2:$F$14,S92) -> 0 | U92: 14236.30813 | V92: 18100 | W92: =intrp(Tisdale!$E$2:$F$14,V92) -> 0 | X92: 18100
A93: 2000-03-24 | B93: 2000 | C93: =Historical!B91 -> 1559.229676 | D93: 2071.845935 | E93: =Historical!C91 -> 0 | F93: 1263.69187 | G93: 1559.229676 | H93: 456163.7869 | I93: =VLOOKUP(B93,'EOS Storage'!$H$5:$M$28,6) -> 111 | J93: 0 | K93: 111000 | L93: 0 | M93: 0 | N93: 0 | O93: 0 | P93: 17000 | Q93: =Tisdale!B85 -> 0 | R93: =P93+Tisdale!B85 -> 17000 | S93: 13664.46219 | T93: =intrp(Tisdale!$E$2:$F$14,S93) -> 0 | U93: 13664.46219 | V93: 17000 | W93: =intrp(Tisdale!$E$2:$F$14,V93) -> 0 | X93: 17000
A94: 2000-03-25 | B94: 2000 | C94: =Historical!B92 -> 1059.229676 | D94: 1843.69187 | E94: =Historical!C92 -> 0 | F94: 863.6918704 | G94: 1059.229676 | H94: 458264.7372 | I94: =VLOOKUP(B94,'EOS Storage'!$H$5:$M$28,6) -> 111 | J94: 0 | K94: 111000 | L94: 0 | M94: 0 | N94: 0 | O94: 0 | P94: 16000 | Q94: =Tisdale!B86 -> 0 | R94: =P94+Tisdale!B86 -> 16000 | S94: 13292.61626 | T94: =intrp(Tisdale!$E$2:$F$14,S94) -> 0 | U94: 13292.61626 | V94: 16000 | W94: =intrp(Tisdale!$E$2:$F$14,V94) -> 0 | X94: 16000
A95: 2000-03-26 | B95: 2000 | C95: =Historical!B93 -> 659.229676 | D95: 1535.537806 | E95: =Historical!C93 -> 0 | F95: 463.6918704 | G95: 659.229676 | H95: 459572.2995 | I95: =VLOOKUP(B95,'EOS Storage'!$H$5:$M$28,6) -> 111 | J95: 0 | K95: 111000 | L95: 0 | M95: 0 | N95: 0 | O95: 0 | P95: 15100 | Q95: =Tisdale!B87 -> 0 | R95: =P95+Tisdale!B87 -> 15100 | S95: 13100.77032 | T95: =intrp(Tisdale!$E$2:$F$14,S95) -> 0 | U95: 13100.77032 | V95: 15100 | W95: =intrp(Tisdale!$E$2:$F$14,V95) -> 0 | X95: 15100
A96: 2000-03-27 | B96: 2000 | C96: =Historical!B94 -> 559.229676 | D96: 1207.383741 | E96: =Historical!C94 -> 0 | F96: 91.8459352 | G96: 559.229676 | H96: 460681.5148 | I96: =VLOOKUP(B96,'EOS Storage'!$H$5:$M$28,6) -> 111 | J96: 0 | K96: 111000 | L96: 0 | M96: 0 | N96: 0 | O96: 0 | P96: 14500 | Q96: =Tisdale!B88 -> 0 | R96: =P96+Tisdale!B88 -> 14500 | S96: 13200.77032 | T96: =intrp(Tisdale!$E$2:$F$14,S96) -> 0 | U96: 13200.77032 | V96: 14500 | W96: =intrp(Tisdale!$E$2:$F$14,V96) -> 0 | X96: 14500
A97: 2000-03-28 | B97: 2000 | C97: =Historical!B95 -> 479.229676 | D97: 863.229676 | E97: =Historical!C95 -> 0 | F97: 0 | G97: 479.229676 | H97: 461632.0524 | I97: =VLOOKUP(B97,'EOS Storage'!$H$5:$M$28,6) -> 111 | J97: 0 | K97: 111000 | L97: 0 | M97: 0 | N97: 0 | O97: 0 | P97: 14000 | Q97: =Tisdale!B89 -> 0 | R97: =P97+Tisdale!B89 -> 14000 | S97: 13136.77032 | T97: =intrp(Tisdale!$E$2:$F$14,S97) -> 0 | U97: 13136.77032 | V97: 14000 | W97: =intrp(Tisdale!$E$2:$F$14,V97) -> 0 | X97: 14000
A98: 2000-03-29 | B98: 2000 | C98: =Historical!B96 -> 159.229676 | D98: 583.229676 | E98: =Historical!C96 -> 0 | F98: 0 | G98: 159.229676 | H98: 461947.8797 | I98: =VLOOKUP(B98,'EOS Storage'!$H$5:$M$28,6) -> 111 | J98: 0 | K98: 111000 | L98: 0 | M98: 0 | N98: 0 | O98: 0 | P98: 13700 | Q98: =Tisdale!B90 -> 0 | R98: =P98+Tisdale!B90 -> 13700 | S98: 13116.77032 | T98: =intrp(Tisdale!$E$2:$F$14,S98) -> 0 | U98: 13116.77032 | V98: 13700 | W98: =intrp(Tisdale!$E$2:$F$14,V98) -> 0 | X98: 13700
A99: 2000-03-30 | B99: 2000 | C99: =Historical!B97 -> 0 | D99: 371.3837408 | E99: =Historical!C97 -> 0 | F99: 0 | G99: 0 | H99: 461947.8797 | I99: =VLOOKUP(B99,'EOS Storage'!$H$5:$M$28,6) -> 111 | J99: 0 | K99: 111000 | L99: 0 | M99: 0 | N99: 0 | O99: 0 | P99: 13300 | Q99: =Tisdale!B91 -> 0 | R99: =P99+Tisdale!B91 -> 13300 | S99: 12928.61626 | T99: =intrp(Tisdale!$E$2:$F$14,S99) -> 0 | U99: 12928.61626 | V99: 13300 | W99: =intrp(Tisdale!$E$2:$F$14,V99) -> 0 | X99: 13300
A100: 2000-03-31 | B100: 2000 | C100: =Historical!B98 -> 0 | D100: 239.5378056 | E100: =Historical!C98 -> 0 | F100: 0 | G100: 0 | H100: 461947.8797 | I100: =VLOOKUP(B100,'EOS Storage'!$H$5:$M$28,6) -> 111 | J100: 0 | K100: 111000 | L100: 0 | M100: 0 | N100: 0 | O100: 0 | P100: 12700 | Q100: =Tisdale!B92 -> 0 | R100: =P100+Tisdale!B92 -> 12700 | S100: 12460.46219 | T100: =intrp(Tisdale!$E$2:$F$14,S100) -> 0 | U100: 12460.46219 | V100: 12700 | W100: =intrp(Tisdale!$E$2:$F$14,V100) -> 0 | X100: 12700
A101: 2000-04-01 | B101: 2000 | C101: =Historical!B99 -> 0 | D101: 127.6918704 | E101: =Historical!C99 -> 0 | F101: 0 | G101: 0 | H101: 461947.8797 | I101: =VLOOKUP(B101,'EOS Storage'!$H$5:$M$28,6) -> 111 | J101: 0 | K101: 111000 | L101: 0 | M101: 0 | N101: 0 | O101: 0 | P101: 12300 | Q101: =Tisdale!B93 -> 0 | R101: =P101+Tisdale!B93 -> 12300 | S101: 12172.30813 | T101: =intrp(Tisdale!$E$2:$F$14,S101) -> 0 | U101: 12172.30813 | V101: 12300 | W101: =intrp(Tisdale!$E$2:$F$14,V101) -> 0 | X101: 12300
A102: 2000-04-02 | B102: 2000 | C102: =Historical!B100 -> 0 | D102: 31.8459352 | E102: =Historical!C100 -> 0 | F102: 0 | G102: 0 | H102: 461947.8797 | I102: =VLOOKUP(B102,'EOS Storage'!$H$5:$M$28,6) -> 111 | J102: 0 | K102: 111000 | L102: 0 | M102: 0 | N102: 0 | O102: 0 | P102: 11700 | Q102: =Tisdale!B94 -> 0 | R102: =P102+Tisdale!B94 -> 11700 | S102: 11668.15406 | T102: =intrp(Tisdale!$E$2:$F$14,S102) -> 0 | U102: 11668.15406 | V102: 11700 | W102: =intrp(Tisdale!$E$2:$F$14,V102) -> 0 | X102: 11700
A103: 2000-04-03 | B103: 2000 | C103: =Historical!B101 -> 0 | D103: 0 | E103: =Historical!C101 -> 0 | F103: 0 | G103: 0 | H103: 461947.8797 | I103: =VLOOKUP(B103,'EOS Storage'!$H$5:$M$28,6) -> 111 | J103: 0 | K103: 111000 | L103: 0 | M103: 0 | N103: 0 | O103: 0 | P103: 11300 | Q103: =Tisdale!B95 -> 0 | R103: =P103+Tisdale!B95 -> 11300 | S103: 11300 | T103: =intrp(Tisdale!$E$2:$F$14,S103) -> 0 | U103: 11300 | V103: 11300 | W103: =intrp(Tisdale!$E$2:$F$14,V103) -> 0 | X103: 11300
A104: 2000-04-04 | B104: 2000 | C104: =Historical!B102 -> 0 | D104: 0 | E104: =Historical!C102 -> 0 | F104: 0 | G104: 0 | H104: 461947.8797 | I104: =VLOOKUP(B104,'EOS Storage'!$H$5:$M$28,6) -> 111 | J104: 0 | K104: 111000 | L104: 0 | M104: 0 | N104: 0 | O104: 0 | P104: 11000 | Q104: =Tisdale!B96 -> 0 | R104: =P104+Tisdale!B96 -> 11000 | S104: 11000 | T104: =intrp(Tisdale!$E$2:$F$14,S104) -> 0 | U104: 11000 | V104: 11000 | W104: =intrp(Tisdale!$E$2:$F$14,V104) -> 0 | X104: 11000
A105: 2000-04-05 | B105: 2000 | C105: =Historical!B103 -> 0 | D105: 0 | E105: =Historical!C103 -> 0 | F105: 0 | G105: 0 | H105: 461947.8797 | I105: =VLOOKUP(B105,'EOS Storage'!$H$5:$M$28,6) -> 111 | J105: 0 | K105: 111000 | L105: 0 | M105: 0 | N105: 0 | O105: 0 | P105: 10800 | Q105: =Tisdale!B97 -> 0 | R105: =P105+Tisdale!B97 -> 10800 | S105: 10800 | T105: =intrp(Tisdale!$E$2:$F$14,S105) -> 0 | U105: 10800 | V105: 10800 | W105: =intrp(Tisdale!$E$2:$F$14,V105) -> 0 | X105: 10800
A106: 2000-04-06 | B106: 2000 | C106: =Historical!B104 -> 0 | D106: 0 | E106: =Historical!C104 -> 0 | F106: 0 | G106: 0 | H106: 461947.8797 | I106: =VLOOKUP(B106,'EOS Storage'!$H$5:$M$28,6) -> 111 | J106: 0 | K106: 111000 | L106: 0 | M106: 0 | N106: 0 | O106: 0 | P106: 10700 | Q106: =Tisdale!B98 -> 0 | R106: =P106+Tisdale!B98 -> 10700 | S106: 10700 | T106: =intrp(Tisdale!$E$2:$F$14,S106) -> 0 | U106: 10700 | V106: 10700 | W106: =intrp(Tisdale!$E$2:$F$14,V106) -> 0 | X106: 10700
A107: 2000-04-07 | B107: 2000 | C107: =Historical!B105 -> 0 | D107: 0 | E107: =Historical!C105 -> 0 | F107: 0 | G107: 0 | H107: 461947.8797 | I107: =VLOOKUP(B107,'EOS Storage'!$H$5:$M$28,6) -> 111 | J107: 0 | K107: 111000 | L107: 0 | M107: 0 | N107: 0 | O107: 0 | P107: 10500 | Q107: =Tisdale!B99 -> 0 | R107: =P107+Tisdale!B99 -> 10500 | S107: 10500 | T107: =intrp(Tisdale!$E$2:$F$14,S107) -> 0 | U107: 10500 | V107: 10500 | W107: =intrp(Tisdale!$E$2:$F$14,V107) -> 0 | X107: 10500
A108: 2000-04-08 | B108: 2000 | C108: =Historical!B106 -> 0 | D108: 0 | E108: =Historical!C106 -> 0 | F108: 0 | G108: 0 | H108: 461947.8797 | I108: =VLOOKUP(B108,'EOS Storage'!$H$5:$M$28,6) -> 111 | J108: 0 | K108: 111000 | L108: 0 | M108: 0 | N108: 0 | O108: 0 | P108: 10200 | Q108: =Tisdale!B100 -> 0 | R108: =P108+Tisdale!B100 -> 10200 | S108: 10200 | T108: =intrp(Tisdale!$E$2:$F$14,S108) -> 0 | U108: 10200 | V108: 10200 | W108: =intrp(Tisdale!$E$2:$F$14,V108) -> 0 | X108: 10200
A109: 2000-04-09 | B109: 2000 | C109: =Historical!B107 -> 0 | D109: 0 | E109: =Historical!C107 -> 0 | F109: 0 | G109: 0 | H109: 461947.8797 | I109: =VLOOKUP(B109,'EOS Storage'!$H$5:$M$28,6) -> 111 | J109: 0 | K109: 111000 | L109: 0 | M109: 0 | N109: 0 | O109: 0 | P109: 9990 | Q109: =Tisdale!B101 -> 0 | R109: =P109+Tisdale!B101 -> 9990 | S109: 9990 | T109: =intrp(Tisdale!$E$2:$F$14,S109) -> 0 | U109: 9990 | V109: 9990 | W109: =intrp(Tisdale!$E$2:$F$14,V109) -> 0 | X109: 9990
A110: 2000-04-10 | B110: 2000 | C110: =Historical!B108 -> 0 | D110: 0 | E110: =Historical!C108 -> 0 | F110: 0 | G110: 0 | H110: 461947.8797 | I110: =VLOOKUP(B110,'EOS Storage'!$H$5:$M$28,6) -> 111 | J110: 0 | K110: 111000 | L110: 0 | M110: 0 | N110: 0 | O110: 0 | P110: 10500 | Q110: =Tisdale!B102 -> 0 | R110: =P110+Tisdale!B102 -> 10500 | S110: 10500 | T110: =intrp(Tisdale!$E$2:$F$14,S110) -> 0 | U110: 10500 | V110: 10500 | W110: =intrp(Tisdale!$E$2:$F$14,V110) -> 0 | X110: 10500
A111: 2000-04-11 | B111: 2000 | C111: =Historical!B109 -> 0 | D111: 0 | E111: =Historical!C109 -> 0 | F111: 0 | G111: 0 | H111: 461947.8797 | I111: =VLOOKUP(B111,'EOS Storage'!$H$5:$M$28,6) -> 111 | J111: 0 | K111: 111000 | L111: 0 | M111: 0 | N111: 0 | O111: 0 | P111: 11100 | Q111: =Tisdale!B103 -> 0 | R111: =P111+Tisdale!B103 -> 11100 | S111: 11100 | T111: =intrp(Tisdale!$E$2:$F$14,S111) -> 0 | U111: 11100 | V111: 11100 | W111: =intrp(Tisdale!$E$2:$F$14,V111) -> 0 | X111: 11100
A112: 2000-04-12 | B112: 2000 | C112: =Historical!B110 -> 0 | D112: 0 | E112: =Historical!C110 -> 0 | F112: 0 | G112: 0 | H112: 461947.8797 | I112: =VLOOKUP(B112,'EOS Storage'!$H$5:$M$28,6) -> 111 | J112: 0 | K112: 111000 | L112: 0 | M112: 0 | N112: 0 | O112: 0 | P112: 11200 | Q112: =Tisdale!B104 -> 0 | R112: =P112+Tisdale!B104 -> 11200 | S112: 11200 | T112: =intrp(Tisdale!$E$2:$F$14,S112) -> 0 | U112: 11200 | V112: 11200 | W112: =intrp(Tisdale!$E$2:$F$14,V112) -> 0 | X112: 11200
A113: 2000-04-13 | B113: 2000 | C113: =Historical!B111 -> 0 | D113: 0 | E113: =Historical!C111 -> 0 | F113: 0 | G113: 0 | H113: 461947.8797 | I113: =VLOOKUP(B113,'EOS Storage'!$H$5:$M$28,6) -> 111 | J113: 0 | K113: 111000 | L113: 0 | M113: 0 | N113: 0 | O113: 0 | P113: 11200 | Q113: =Tisdale!B105 -> 0 | R113: =P113+Tisdale!B105 -> 11200 | S113: 11200 | T113: =intrp(Tisdale!$E$2:$F$14,S113) -> 0 | U113: 11200 | V113: 11200 | W113: =intrp(Tisdale!$E$2:$F$14,V113) -> 0 | X113: 11200
A114: 2000-04-14 | B114: 2000 | C114: =Historical!B112 -> 0 | D114: 0 | E114: =Historical!C112 -> 0 | F114: 0 | G114: 0 | H114: 461947.8797 | I114: =VLOOKUP(B114,'EOS Storage'!$H$5:$M$28,6) -> 111 | J114: 0 | K114: 111000 | L114: 0 | M114: 0 | N114: 0 | O114: 0 | P114: 11300 | Q114: =Tisdale!B106 -> 0 | R114: =P114+Tisdale!B106 -> 11300 | S114: 11300 | T114: =intrp(Tisdale!$E$2:$F$14,S114) -> 0 | U114: 11300 | V114: 11300 | W114: =intrp(Tisdale!$E$2:$F$14,V114) -> 0 | X114: 11300
A115: 2000-04-15 | B115: 2000 | C115: =Historical!B113 -> 0 | D115: 0 | E115: =Historical!C113 -> 0 | F115: 0 | G115: 0 | H115: 461947.8797 | I115: =VLOOKUP(B115,'EOS Storage'!$H$5:$M$28,6) -> 111 | J115: 0 | K115: 111000 | L115: 0 | M115: 0 | N115: 0 | O115: 0 | P115: 11900 | Q115: =Tisdale!B107 -> 0 | R115: =P115+Tisdale!B107 -> 11900 | S115: 11900 | T115: =intrp(Tisdale!$E$2:$F$14,S115) -> 0 | U115: 11900 | V115: 11900 | W115: =intrp(Tisdale!$E$2:$F$14,V115) -> 0 | X115: 11900
A116: 2000-04-16 | B116: 2000 | C116: =Historical!B114 -> 0 | D116: 0 | E116: =Historical!C114 -> 0 | F116: 0 | G116: 0 | H116: 461947.8797 | I116: =VLOOKUP(B116,'EOS Storage'!$H$5:$M$28,6) -> 111 | J116: 0 | K116: 111000 | L116: 0 | M116: 0 | N116: 0 | O116: 0 | P116: 11700 | Q116: =Tisdale!B108 -> 0 | R116: =P116+Tisdale!B108 -> 11700 | S116: 11700 | T116: =intrp(Tisdale!$E$2:$F$14,S116) -> 0 | U116: 11700 | V116: 11700 | W116: =intrp(Tisdale!$E$2:$F$14,V116) -> 0 | X116: 11700
A117: 2000-04-17 | B117: 2000 | C117: =Historical!B115 -> 0 | D117: 0 | E117: =Historical!C115 -> 0 | F117: 0 | G117: 0 | H117: 461947.8797 | I117: =VLOOKUP(B117,'EOS Storage'!$H$5:$M$28,6) -> 111 | J117: 0 | K117: 111000 | L117: 0 | M117: 0 | N117: 0 | O117: 0 | P117: 11600 | Q117: =Tisdale!B109 -> 0 | R117: =P117+Tisdale!B109 -> 11600 | S117: 11600 | T117: =intrp(Tisdale!$E$2:$F$14,S117) -> 0 | U117: 11600 | V117: 11600 | W117: =intrp(Tisdale!$E$2:$F$14,V117) -> 0 | X117: 11600
A118: 2000-04-18 | B118: 2000 | C118: =Historical!B116 -> 1961.882473 | D118: 392.3764946 | E118: =Historical!C116 -> 0 | F118: 0 | G118: 1961.882473 | H118: 465839.2148 | I118: =VLOOKUP(B118,'EOS Storage'!$H$5:$M$28,6) -> 111 | J118: 0 | K118: 111000 | L118: 0 | M118: 0 | N118: 0 | O118: 0 | P118: 13900 | Q118: =Tisdale!B110 -> 0 | R118: =P118+Tisdale!B110 -> 13900 | S118: 13507.62351 | T118: =intrp(Tisdale!$E$2:$F$14,S118) -> 0 | U118: 13507.62351 | V118: 13900 | W118: =intrp(Tisdale!$E$2:$F$14,V118) -> 0 | X118: 13900
A119: 2000-04-19 | B119: 2000 | C119: =Historical!B117 -> 2200 | D119: 832.3764946 | E119: =Historical!C117 -> 586.4371457 | F119: 117.2874291 | G119: 2786.437146 | H119: 471366.0292 | I119: =VLOOKUP(B119,'EOS Storage'!$H$5:$M$28,6) -> 111 | J119: 0 | K119: 111000 | L119: 0 | M119: 0 | N119: 0 | O119: 0 | P119: 18900 | Q119: =Tisdale!B111 -> 0 | R119: =P119+Tisdale!B111 -> 18900 | S119: 17950.33608 | T119: =intrp(Tisdale!$E$2:$F$14,S119) -> 0 | U119: 17950.33608 | V119: 18900 | W119: =intrp(Tisdale!$E$2:$F$14,V119) -> 0 | X119: 18900
A120: 2000-04-20 | B120: 2000 | C120: =Historical!B118 -> 1793.035555 | D120: 1190.983606 | E120: =Historical!C118 -> 0 | F120: 117.2874291 | G120: 1793.035555 | H120: 474922.4615 | I120: =VLOOKUP(B120,'EOS Storage'!$H$5:$M$28,6) -> 111 | J120: 0 | K120: 111000 | L120: 0 | M120: 0 | N120: 0 | O120: 0 | P120: 18400 | Q120: =Tisdale!B112 -> 0 | R120: =P120+Tisdale!B112 -> 18400 | S120: 17091.72897 | T120: =intrp(Tisdale!$E$2:$F$14,S120) -> 0 | U120: 17091.72897 | V120: 18400 | W120: =intrp(Tisdale!$E$2:$F$14,V120) -> 0 | X120: 18400
A121: 2000-04-21 | B121: 2000 | C121: =Historical!B119 -> 993.035555 | D121: 1389.590717 | E121: =Historical!C119 -> 0 | F121: 117.2874291 | G121: 993.035555 | H121: 476892.1177 | I121: =VLOOKUP(B121,'EOS Storage'!$H$5:$M$28,6) -> 111 | J121: 0 | K121: 111000 | L121: 0 | M121: 0 | N121: 0 | O121: 0 | P121: 16300 | Q121: =Tisdale!B113 -> 0 | R121: =P121+Tisdale!B113 -> 16300 | S121: 14793.12185 | T121: =intrp(Tisdale!$E$2:$F$14,S121) -> 0 | U121: 14793.12185 | V121: 16300 | W121: =intrp(Tisdale!$E$2:$F$14,V121) -> 0 | X121: 16300
A122: 2000-04-22 | B122: 2000 | C122: =Historical!B120 -> 1093.035555 | D122: 1608.197828 | E122: =Historical!C120 -> 0 | F122: 117.2874291 | G122: 1093.035555 | H122: 479060.1209 | I122: =VLOOKUP(B122,'EOS Storage'!$H$5:$M$28,6) -> 111 | J122: 0 | K122: 111000 | L122: 0 | M122: 0 | N122: 0 | O122: 0 | P122: 14700 | Q122: =Tisdale!B114 -> 0 | R122: =P122+Tisdale!B114 -> 14700 | S122: 12974.51474 | T122: =intrp(Tisdale!$E$2:$F$14,S122) -> 0 | U122: 12974.51474 | V122: 14700 | W122: =intrp(Tisdale!$E$2:$F$14,V122) -> 0 | X122: 14700
A123: 2000-04-23 | B123: 2000 | C123: =Historical!B121 -> 893.035555 | D123: 1394.428444 | E123: =Historical!C121 -> 0 | F123: 117.2874291 | G123: 893.035555 | H123: 480831.4302 | I123: =VLOOKUP(B123,'EOS Storage'!$H$5:$M$28,6) -> 111 | J123: 0 | K123: 111000 | L123: 0 | M123: 0 | N123: 0 | O123: 0 | P123: 13800 | Q123: =Tisdale!B115 -> 0 | R123: =P123+Tisdale!B115 -> 13800 | S123: 12288.28413 | T123: =intrp(Tisdale!$E$2:$F$14,S123) -> 0 | U123: 12288.28413 | V123: 13800 | W123: =intrp(Tisdale!$E$2:$F$14,V123) -> 0 | X123: 13800
A124: 2000-04-24 | B124: 2000 | C124: =Historical!B122 -> 593.035555 | D124: 1073.035555 | E124: =Historical!C122 -> 0 | F124: 0 | G124: 593.035555 | H124: 482007.6984 | I124: =VLOOKUP(B124,'EOS Storage'!$H$5:$M$28,6) -> 111 | J124: 0 | K124: 111000 | L124: 0 | M124: 0 | N124: 0 | O124: 0 | P124: 13300 | Q124: =Tisdale!B116 -> 0 | R124: =P124+Tisdale!B116 -> 13300 | S124: 12226.96444 | T124: =intrp(Tisdale!$E$2:$F$14,S124) -> 0 | U124: 12226.96444 | V124: 13300 | W124: =intrp(Tisdale!$E$2:$F$14,V124) -> 0 | X124: 13300
A125: 2000-04-25 | B125: 2000 | C125: =Historical!B123 -> 293.035555 | D125: 773.035555 | E125: =Historical!C123 -> 0 | F125: 0 | G125: 293.035555 | H125: 482588.9256 | I125: =VLOOKUP(B125,'EOS Storage'!$H$5:$M$28,6) -> 111 | J125: 0 | K125: 111000 | L125: 0 | M125: 0 | N125: 0 | O125: 0 | P125: 12600 | Q125: =Tisdale!B117 -> 0 | R125: =P125+Tisdale!B117 -> 12600 | S125: 11826.96444 | T125: =intrp(Tisdale!$E$2:$F$14,S125) -> 0 | U125: 11826.96444 | V125: 12600 | W125: =intrp(Tisdale!$E$2:$F$14,V125) -> 0 | X125: 12600
A126: 2000-04-26 | B126: 2000 | C126: =Historical!B124 -> 0 | D126: 574.428444 | E126: =Historical!C124 -> 0 | F126: 0 | G126: 0 | H126: 482588.9256 | I126: =VLOOKUP(B126,'EOS Storage'!$H$5:$M$28,6) -> 111 | J126: 0 | K126: 111000 | L126: 0 | M126: 0 | N126: 0 | O126: 0 | P126: 11900 | Q126: =Tisdale!B118 -> 0 | R126: =P126+Tisdale!B118 -> 11900 | S126: 11325.57156 | T126: =intrp(Tisdale!$E$2:$F$14,S126) -> 0 | U126: 11325.57156 | V126: 11900 | W126: =intrp(Tisdale!$E$2:$F$14,V126) -> 0 | X126: 11900
A127: 2000-04-27 | B127: 2000 | C127: =Historical!B125 -> 0 | D127: 355.821333 | E127: =Historical!C125 -> 0 | F127: 0 | G127: 0 | H127: 482588.9256 | I127: =VLOOKUP(B127,'EOS Storage'!$H$5:$M$28,6) -> 111 | J127: 0 | K127: 111000 | L127: 0 | M127: 0 | N127: 0 | O127: 0 | P127: 11000 | Q127: =Tisdale!B119 -> 0 | R127: =P127+Tisdale!B119 -> 11000 | S127: 10644.17867 | T127: =intrp(Tisdale!$E$2:$F$14,S127) -> 0 | U127: 10644.17867 | V127: 11000 | W127: =intrp(Tisdale!$E$2:$F$14,V127) -> 0 | X127: 11000
A128: 2000-04-28 | B128: 2000 | C128: =Historical!B126 -> 0 | D128: 177.214222 | E128: =Historical!C126 -> 0 | F128: 0 | G128: 0 | H128: 482588.9256 | I128: =VLOOKUP(B128,'EOS Storage'!$H$5:$M$28,6) -> 111 | J128: 0 | K128: 111000 | L128: 0 | M128: 0 | N128: 0 | O128: 0 | P128: 10300 | Q128: =Tisdale!B120 -> 0 | R128: =P128+Tisdale!B120 -> 10300 | S128: 10122.78578 | T128: =intrp(Tisdale!$E$2:$F$14,S128) -> 0 | U128: 10122.78578 | V128: 10300 | W128: =intrp(Tisdale!$E$2:$F$14,V128) -> 0 | X128: 10300
A129: 2000-04-29 | B129: 2000 | C129: =Historical!B127 -> 0 | D129: 58.60711101 | E129: =Historical!C127 -> 0 | F129: 0 | G129: 0 | H129: 482588.9256 | I129: =VLOOKUP(B129,'EOS Storage'!$H$5:$M$28,6) -> 111 | J129: 0 | K129: 111000 | L129: 0 | M129: 0 | N129: 0 | O129: 0 | P129: 9880 | Q129: =Tisdale!B121 -> 0 | R129: =P129+Tisdale!B121 -> 9880 | S129: 9821.392889 | T129: =intrp(Tisdale!$E$2:$F$14,S129) -> 0 | U129: 9821.392889 | V129: 9880 | W129: =intrp(Tisdale!$E$2:$F$14,V129) -> 0 | X129: 9880
A130: 2000-04-30 | B130: 2000 | C130: =Historical!B128 -> 0 | D130: 0 | E130: =Historical!C128 -> 0 | F130: 0 | G130: 0 | H130: 482588.9256 | I130: =VLOOKUP(B130,'EOS Storage'!$H$5:$M$28,6) -> 111 | J130: 0 | K130: 111000 | L130: 0 | M130: 0 | N130: 0 | O130: 0 | P130: 9870 | Q130: =Tisdale!B122 -> 0 | R130: =P130+Tisdale!B122 -> 9870 | S130: 9870 | T130: =intrp(Tisdale!$E$2:$F$14,S130) -> 0 | U130: 9870 | V130: 9870 | W130: =intrp(Tisdale!$E$2:$F$14,V130) -> 0 | X130: 9870
A131: 2000-05-01 | B131: 2000 | C131: =Historical!B129 -> 0 | D131: 0 | E131: =Historical!C129 -> 0 | F131: 0 | G131: 0 | H131: 482588.9256 | I131: =VLOOKUP(B131,'EOS Storage'!$H$5:$M$28,6) -> 111 | J131: 0 | K131: 111000 | L131: 0 | M131: 0 | N131: 0 | O131: 0 | P131: 10100 | Q131: =Tisdale!B123 -> 0 | R131: =P131+Tisdale!B123 -> 10100 | S131: 10100 | T131: =intrp(Tisdale!$E$2:$F$14,S131) -> 0 | U131: 10100 | V131: 10100 | W131: =intrp(Tisdale!$E$2:$F$14,V131) -> 0 | X131: 10100
A132: 2000-05-02 | B132: 2000 | C132: =Historical!B130 -> 0 | D132: 0 | E132: =Historical!C130 -> 0 | F132: 0 | G132: 0 | H132: 482588.9256 | I132: =VLOOKUP(B132,'EOS Storage'!$H$5:$M$28,6) -> 111 | J132: 0 | K132: 111000 | L132: 0 | M132: 0 | N132: 0 | O132: 0 | P132: 9900 | Q132: =Tisdale!B124 -> 0 | R132: =P132+Tisdale!B124 -> 9900 | S132: 9900 | T132: =intrp(Tisdale!$E$2:$F$14,S132) -> 0 | U132: 9900 | V132: 9900 | W132: =intrp(Tisdale!$E$2:$F$14,V132) -> 0 | X132: 9900
A133: 2000-05-03 | B133: 2000 | C133: =Historical!B131 -> 0 | D133: 0 | E133: =Historical!C131 -> 0 | F133: 0 | G133: 0 | H133: 482588.9256 | I133: =VLOOKUP(B133,'EOS Storage'!$H$5:$M$28,6) -> 111 | J133: 0 | K133: 111000 | L133: 0 | M133: 0 | N133: 0 | O133: 0 | P133: 10100 | Q133: =Tisdale!B125 -> 0 | R133: =P133+Tisdale!B125 -> 10100 | S133: 10100 | T133: =intrp(Tisdale!$E$2:$F$14,S133) -> 0 | U133: 10100 | V133: 10100 | W133: =intrp(Tisdale!$E$2:$F$14,V133) -> 0 | X133: 10100
A134: 2000-05-04 | B134: 2000 | C134: =Historical!B132 -> 0 | D134: 0 | E134: =Historical!C132 -> 0 | F134: 0 | G134: 0 | H134: 482588.9256 | I134: =VLOOKUP(B134,'EOS Storage'!$H$5:$M$28,6) -> 111 | J134: 0 | K134: 111000 | L134: 0 | M134: 0 | N134: 0 | O134: 0 | P134: 10800 | Q134: =Tisdale!B126 -> 0 | R134: =P134+Tisdale!B126 -> 10800 | S134: 10800 | T134: =intrp(Tisdale!$E$2:$F$14,S134) -> 0 | U134: 10800 | V134: 10800 | W134: =intrp(Tisdale!$E$2:$F$14,V134) -> 0 | X134: 10800
A135: 2000-05-05 | B135: 2000 | C135: =Historical!B133 -> 0 | D135: 0 | E135: =Historical!C133 -> 0 | F135: 0 | G135: 0 | H135: 482588.9256 | I135: =VLOOKUP(B135,'EOS Storage'!$H$5:$M$28,6) -> 111 | J135: 0 | K135: 111000 | L135: 0 | M135: 0 | N135: 0 | O135: 0 | P135: 10800 | Q135: =Tisdale!B127 -> 0 | R135: =P135+Tisdale!B127 -> 10800 | S135: 10800 | T135: =intrp(Tisdale!$E$2:$F$14,S135) -> 0 | U135: 10800 | V135: 10800 | W135: =intrp(Tisdale!$E$2:$F$14,V135) -> 0 | X135: 10800
A136: 2000-05-06 | B136: 2000 | C136: =Historical!B134 -> 0 | D136: 0 | E136: =Historical!C134 -> 0 | F136: 0 | G136: 0 | H136: 482588.9256 | I136: =VLOOKUP(B136,'EOS Storage'!$H$5:$M$28,6) -> 111 | J136: 0 | K136: 111000 | L136: 0 | M136: 0 | N136: 0 | O136: 0 | P136: 10700 | Q136: =Tisdale!B128 -> 0 | R136: =P136+Tisdale!B128 -> 10700 | S136: 10700 | T136: =intrp(Tisdale!$E$2:$F$14,S136) -> 0 | U136: 10700 | V136: 10700 | W136: =intrp(Tisdale!$E$2:$F$14,V136) -> 0 | X136: 10700
A137: 2000-05-07 | B137: 2000 | C137: =Historical!B135 -> 0 | D137: 0 | E137: =Historical!C135 -> 0 | F137: 0 | G137: 0 | H137: 482588.9256 | I137: =VLOOKUP(B137,'EOS Storage'!$H$5:$M$28,6) -> 111 | J137: 0 | K137: 111000 | L137: 0 | M137: 0 | N137: 0 | O137: 0 | P137: 11100 | Q137: =Tisdale!B129 -> 0 | R137: =P137+Tisdale!B129 -> 11100 | S137: 11100 | T137: =intrp(Tisdale!$E$2:$F$14,S137) -> 0 | U137: 11100 | V137: 11100 | W137: =intrp(Tisdale!$E$2:$F$14,V137) -> 0 | X137: 11100
A138: 2000-05-08 | B138: 2000 | C138: =Historical!B136 -> 0 | D138: 0 | E138: =Historical!C136 -> 0 | F138: 0 | G138: =C138+E138 -> 0 | H138: 482588.9256 | I138: =VLOOKUP(B138,'EOS Storage'!$H$5:$M$28,6) -> 111 | J138: 0 | K138: 111000 | L138: =IF(J138<C138,MIN($L$1,J138),C138) -> 0 | M138: 0 | N138: 0 | O138: 0 | P138: 11200 | Q138: =Tisdale!B130 -> 0 | R138: =P138+Tisdale!B130 -> 11200 | S138: 11200 | T138: =intrp(Tisdale!$E$2:$F$14,S138) -> 0 | U138: 11200 | V138: 11200 | W138: =intrp(Tisdale!$E$2:$F$14,V138) -> 0 | X138: 11200
A139: 2000-05-09 | B139: =IF(MONTH(A139)>9,YEAR(A139)+1,YEAR(A139)) -> 2000 | C139: =Historical!B137 -> 0 | D139: 0 | E139: =Historical!C137 -> 0 | F139: 0 | G139: 0 | H139: 482588.9256 | I139: =VLOOKUP(B139,'EOS Storage'!$H$5:$M$28,6) -> 111 | J139: =IF(B139=B138,IF(K138<I139*1000,MIN(G139,(I139*1000-K138)/1.98347),0),G139) -> 0 | K139: 111000 | L139: 0 | M139: 0 | N139: =J139-L139 -> 0 | O139: 0 | P139: 11200 | Q139: =Tisdale!B131 -> 0 | R139: =P139+Tisdale!B131 -> 11200 | S139: 11200 | T139: =intrp(Tisdale!$E$2:$F$14,S139) -> 0 | U139: 11200 | V139: 11200 | W139: =intrp(Tisdale!$E$2:$F$14,V139) -> 0 | X139: 11200
A140: 2000-05-10 | B140: 2000 | C140: =Historical!B138 -> 0 | D140: 0 | E140: =Historical!C138 -> 0 | F140: 0 | G140: 0 | H140: =IF(B140=B139,G140*1.98347+H139,G140*1.98347) -> 482588.9256 | I140: =VLOOKUP(B140,'EOS Storage'!$H$5:$M$28,6) -> 111 | J140: 0 | K140: =K139+J140*1.98347 -> 111000 | L140: 0 | M140: 0 | N140: 0 | O140: 0 | P140: 10900 | Q140: =Tisdale!B132 -> 0 | R140: =P140+Tisdale!B132 -> 10900 | S140: 10900 | T140: =intrp(Tisdale!$E$2:$F$14,S140) -> 0 | U140: 10900 | V140: 10900 | W140: =intrp(Tisdale!$E$2:$F$14,V140) -> 0 | X140: 10900
A141: 2000-05-11 | B141: 2000 | C141: =Historical!B139 -> 0 | D141: 0 | E141: =Historical!C139 -> 0 | F141: 0 | G141: 0 | H141: 482588.9256 | I141: =VLOOKUP(B141,'EOS Storage'!$H$5:$M$28,6) -> 111 | J141: 0 | K141: 111000 | L141: 0 | M141: 0 | N141: 0 | O141: 0 | P141: 9790 | Q141: =Tisdale!B133 -> 0 | R141: =P141+Tisdale!B133 -> 9790 | S141: 9790 | T141: =intrp(Tisdale!$E$2:$F$14,S141) -> 0 | U141: 9790 | V141: 9790 | W141: =intrp(Tisdale!$E$2:$F$14,V141) -> 0 | X141: 9790
A142: 2000-05-12 | B142: 2000 | C142: =Historical!B140 -> 0 | D142: 0 | E142: =Historical!C140 -> 0 | F142: 0 | G142: 0 | H142: 482588.9256 | I142: =VLOOKUP(B142,'EOS Storage'!$H$5:$M$28,6) -> 111 | J142: 0 | K142: 111000 | L142: 0 | M142: 0 | N142: 0 | O142: 0 | P142: 8970 | Q142: =Tisdale!B134 -> 0 | R142: =P142+Tisdale!B134 -> 8970 | S142: =R142-D142-F142 -> 8970 | T142: =intrp(Tisdale!$E$2:$F$14,S142) -> 0 | U142: =S142-T142 -> 8970 | V142: =R142-M142-O142 -> 8970 | W142: =intrp(Tisdale!$E$2:$F$14,V142) -> 0 | X142: =V142-W142 -> 8970
A143: 2000-05-13 | B143: 2000 | C143: =Historical!B141 -> 0 | D143: =AVERAGE(C139:C143) -> 0 | E143: =Historical!C141 -> 0 | F143: =AVERAGE(E139:E143) -> 0 | G143: 0 | H143: 482588.9256 | I143: =VLOOKUP(B143,'EOS Storage'!$H$5:$M$28,6) -> 111 | J143: 0 | K143: 111000 | L143: 0 | M143: =AVERAGE(L139:L143) -> 0 | N143: 0 | O143: =AVERAGE(N139:N143) -> 0 | P143: 8180 | Q143: =Tisdale!B135 -> 0 | R143: =P143+Tisdale!B135 -> 8180 | S143: 8180 | T143: =intrp(Tisdale!$E$2:$F$14,S143) -> 0 | U143: 8180 | V143: 8180 | W143: =intrp(Tisdale!$E$2:$F$14,V143) -> 0 | X143: 8180
A144: 2000-05-14 | B144: 2000 | C144: =Historical!B142 -> 0 | D144: 0 | E144: =Historical!C142 -> 0 | F144: 0 | G144: 0 | H144: 482588.9256 | I144: =VLOOKUP(B144,'EOS Storage'!$H$5:$M$28,6) -> 111 | J144: 0 | K144: 111000 | L144: 0 | M144: 0 | N144: 0 | O144: 0 | P144: 7700 | Q144: =Tisdale!B136 -> 0 | R144: =P144+Tisdale!B136 -> 7700 | S144: 7700 | T144: =intrp(Tisdale!$E$2:$F$14,S144) -> 0 | U144: 7700 | V144: 7700 | W144: =intrp(Tisdale!$E$2:$F$14,V144) -> 0 | X144: 7700
A145: 2000-05-15 | B145: 2000 | C145: =Historical!B143 -> 0 | D145: 0 | E145: =Historical!C143 -> 0 | F145: 0 | G145: 0 | H145: 482588.9256 | I145: =VLOOKUP(B145,'EOS Storage'!$H$5:$M$28,6) -> 111 | J145: 0 | K145: 111000 | L145: 0 | M145: 0 | N145: 0 | O145: 0 | P145: 7880 | Q145: =Tisdale!B137 -> 0 | R145: =P145+Tisdale!B137 -> 7880 | S145: 7880 | T145: =intrp(Tisdale!$E$2:$F$14,S145) -> 0 | U145: 7880 | V145: 7880 | W145: =intrp(Tisdale!$E$2:$F$14,V145) -> 0 | X145: 7880
A146: 2000-05-16 | B146: 2000 | C146: =Historical!B144 -> 0 | D146: 0 | E146: =Historical!C144 -> 0 | F146: 0 | G146: 0 | H146: 482588.9256 | I146: =VLOOKUP(B146,'EOS Storage'!$H$5:$M$28,6) -> 111 | J146: 0 | K146: 111000 | L146: 0 | M146: 0 | N146: 0 | O146: 0 | P146: 8180 | Q146: =Tisdale!B138 -> 0 | R146: =P146+Tisdale!B138 -> 8180 | S146: 8180 | T146: =intrp(Tisdale!$E$2:$F$14,S146) -> 0 | U146: 8180 | V146: 8180 | W146: =intrp(Tisdale!$E$2:$F$14,V146) -> 0 | X146: 8180
A147: 2000-05-17 | B147: 2000 | C147: =Historical!B145 -> 0 | D147: 0 | E147: =Historical!C145 -> 0 | F147: 0 | G147: 0 | H147: 482588.9256 | I147: =VLOOKUP(B147,'EOS Storage'!$H$5:$M$28,6) -> 111 | J147: 0 | K147: 111000 | L147: 0 | M147: 0 | N147: 0 | O147: 0 | P147: 9700 | Q147: =Tisdale!B139 -> 0 | R147: =P147+Tisdale!B139 -> 9700 | S147: 9700 | T147: =intrp(Tisdale!$E$2:$F$14,S147) -> 0 | U147: 9700 | V147: 9700 | W147: =intrp(Tisdale!$E$2:$F$14,V147) -> 0 | X147: 9700
A148: 2000-05-18 | B148: 2000 | C148: =Historical!B146 -> 0 | D148: 0 | E148: =Historical!C146 -> 0 | F148: 0 | G148: 0 | H148: 482588.9256 | I148: =VLOOKUP(B148,'EOS Storage'!$H$5:$M$28,6) -> 111 | J148: 0 | K148: 111000 | L148: 0 | M148: 0 | N148: 0 | O148: 0 | P148: 9900 | Q148: =Tisdale!B140 -> 0 | R148: =P148+Tisdale!B140 -> 9900 | S148: 9900 | T148: =intrp(Tisdale!$E$2:$F$14,S148) -> 0 | U148: 9900 | V148: 9900 | W148: =intrp(Tisdale!$E$2:$F$14,V148) -> 0 | X148: 9900
A149: 2000-05-19 | B149: 2000 | C149: =Historical!B147 -> 0 | D149: 0 | E149: =Historical!C147 -> 0 | F149: 0 | G149: 0 | H149: 482588.9256 | I149: =VLOOKUP(B149,'EOS Storage'!$H$5:$M$28,6) -> 111 | J149: 0 | K149: 111000 | L149: 0 | M149: 0 | N149: 0 | O149: 0 | P149: 9030 | Q149: =Tisdale!B141 -> 0 | R149: =P149+Tisdale!B141 -> 9030 | S149: 9030 | T149: =intrp(Tisdale!$E$2:$F$14,S149) -> 0 | U149: 9030 | V149: 9030 | W149: =intrp(Tisdale!$E$2:$F$14,V149) -> 0 | X149: 9030
A150: 2000-05-20 | B150: 2000 | C150: =Historical!B148 -> 0 | D150: 0 | E150: =Historical!C148 -> 0 | F150: 0 | G150: 0 | H150: 482588.9256 | I150: =VLOOKUP(B150,'EOS Storage'!$H$5:$M$28,6) -> 111 | J150: 0 | K150: 111000 | L150: 0 | M150: 0 | N150: 0 | O150: 0 | P150: 8840 | Q150: =Tisdale!B142 -> 0 | R150: =P150+Tisdale!B142 -> 8840 | S150: 8840 | T150: =intrp(Tisdale!$E$2:$F$14,S150) -> 0 | U150: 8840 | V150: 8840 | W150: =intrp(Tisdale!$E$2:$F$14,V150) -> 0 | X150: 8840
A151: 2000-05-21 | B151: 2000 | C151: =Historical!B149 -> 0 | D151: 0 | E151: =Historical!C149 -> 0 | F151: 0 | G151: 0 | H151: 482588.9256 | I151: =VLOOKUP(B151,'EOS Storage'!$H$5:$M$28,6) -> 111 | J151: 0 | K151: 111000 | L151: 0 | M151: 0 | N151: 0 | O151: 0 | P151: 9740 | Q151: =Tisdale!B143 -> 0 | R151: =P151+Tisdale!B143 -> 9740 | S151: 9740 | T151: =intrp(Tisdale!$E$2:$F$14,S151) -> 0 | U151: 9740 | V151: 9740 | W151: =intrp(Tisdale!$E$2:$F$14,V151) -> 0 | X151: 9740
A152: 2000-05-22 | B152: 2000 | C152: =Historical!B150 -> 0 | D152: 0 | E152: =Historical!C150 -> 0 | F152: 0 | G152: 0 | H152: 482588.9256 | I152: =VLOOKUP(B152,'EOS Storage'!$H$5:$M$28,6) -> 111 | J152: 0 | K152: 111000 | L152: 0 | M152: 0 | N152: 0 | O152: 0 | P152: 10700 | Q152: =Tisdale!B144 -> 0 | R152: =P152+Tisdale!B144 -> 10700 | S152: 10700 | T152: =intrp(Tisdale!$E$2:$F$14,S152) -> 0 | U152: 10700 | V152: 10700 | W152: =intrp(Tisdale!$E$2:$F$14,V152) -> 0 | X152: 10700
A153: 2000-05-23 | B153: 2000 | C153: =Historical!B151 -> 0 | D153: 0 | E153: =Historical!C151 -> 0 | F153: 0 | G153: 0 | H153: 482588.9256 | I153: =VLOOKUP(B153,'EOS Storage'!$H$5:$M$28,6) -> 111 | J153: 0 | K153: 111000 | L153: 0 | M153: 0 | N153: 0 | O153: 0 | P153: 10800 | Q153: =Tisdale!B145 -> 0 | R153: =P153+Tisdale!B145 -> 10800 | S153: 10800 | T153: =intrp(Tisdale!$E$2:$F$14,S153) -> 0 | U153: 10800 | V153: 10800 | W153: =intrp(Tisdale!$E$2:$F$14,V153) -> 0 | X153: 10800
A154: 2000-05-24 | B154: 2000 | C154: =Historical!B152 -> 0 | D154: 0 | E154: =Historical!C152 -> 0 | F154: 0 | G154: 0 | H154: 482588.9256 | I154: =VLOOKUP(B154,'EOS Storage'!$H$5:$M$28,6) -> 111 | J154: 0 | K154: 111000 | L154: 0 | M154: 0 | N154: 0 | O154: 0 | P154: 10600 | Q154: =Tisdale!B146 -> 0 | R154: =P154+Tisdale!B146 -> 10600 | S154: 10600 | T154: =intrp(Tisdale!$E$2:$F$14,S154) -> 0 | U154: 10600 | V154: 10600 | W154: =intrp(Tisdale!$E$2:$F$14,V154) -> 0 | X154: 10600
A155: 2000-05-25 | B155: 2000 | C155: =Historical!B153 -> 0 | D155: 0 | E155: =Historical!C153 -> 0 | F155: 0 | G155: 0 | H155: 482588.9256 | I155: =VLOOKUP(B155,'EOS Storage'!$H$5:$M$28,6) -> 111 | J155: 0 | K155: 111000 | L155: 0 | M155: 0 | N155: 0 | O155: 0 | P155: 10300 | Q155: =Tisdale!B147 -> 0 | R155: =P155+Tisdale!B147 -> 10300 | S155: 10300 | T155: =intrp(Tisdale!$E$2:$F$14,S155) -> 0 | U155: 10300 | V155: 10300 | W155: =intrp(Tisdale!$E$2:$F$14,V155) -> 0 | X155: 10300
A156: 2000-05-26 | B156: 2000 | C156: =Historical!B154 -> 0 | D156: 0 | E156: =Historical!C154 -> 0 | F156: 0 | G156: 0 | H156: 482588.9256 | I156: =VLOOKUP(B156,'EOS Storage'!$H$5:$M$28,6) -> 111 | J156: 0 | K156: 111000 | L156: 0 | M156: 0 | N156: 0 | O156: 0 | P156: 10600 | Q156: =Tisdale!B148 -> 0 | R156: =P156+Tisdale!B148 -> 10600 | S156: 10600 | T156: =intrp(Tisdale!$E$2:$F$14,S156) -> 0 | U156: 10600 | V156: 10600 | W156: =intrp(Tisdale!$E$2:$F$14,V156) -> 0 | X156: 10600
A157: 2000-05-27 | B157: 2000 | C157: =Historical!B155 -> 0 | D157: 0 | E157: =Historical!C155 -> 0 | F157: 0 | G157: 0 | H157: 482588.9256 | I157: =VLOOKUP(B157,'EOS Storage'!$H$5:$M$28,6) -> 111 | J157: 0 | K157: 111000 | L157: 0 | M157: 0 | N157: 0 | O157: 0 | P157: 9690 | Q157: =Tisdale!B149 -> 0 | R157: =P157+Tisdale!B149 -> 9690 | S157: 9690 | T157: =intrp(Tisdale!$E$2:$F$14,S157) -> 0 | U157: 9690 | V157: 9690 | W157: =intrp(Tisdale!$E$2:$F$14,V157) -> 0 | X157: 9690
A158: 2000-05-28 | B158: 2000 | C158: =Historical!B156 -> 0 | D158: 0 | E158: =Historical!C156 -> 0 | F158: 0 | G158: 0 | H158: 482588.9256 | I158: =VLOOKUP(B158,'EOS Storage'!$H$5:$M$28,6) -> 111 | J158: 0 | K158: 111000 | L158: 0 | M158: 0 | N158: 0 | O158: 0 | P158: 9460 | Q158: =Tisdale!B150 -> 0 | R158: =P158+Tisdale!B150 -> 9460 | S158: 9460 | T158: =intrp(Tisdale!$E$2:$F$14,S158) -> 0 | U158: 9460 | V158: 9460 | W158: =intrp(Tisdale!$E$2:$F$14,V158) -> 0 | X158: 9460
A159: 2000-05-29 | B159: 2000 | C159: =Historical!B157 -> 0 | D159: 0 | E159: =Historical!C157 -> 0 | F159: 0 | G159: 0 | H159: 482588.9256 | I159: =VLOOKUP(B159,'EOS Storage'!$H$5:$M$28,6) -> 111 | J159: 0 | K159: 111000 | L159: 0 | M159: 0 | N159: 0 | O159: 0 | P159: 9550 | Q159: =Tisdale!B151 -> 0 | R159: =P159+Tisdale!B151 -> 9550 | S159: 9550 | T159: =intrp(Tisdale!$E$2:$F$14,S159) -> 0 | U159: 9550 | V159: 9550 | W159: =intrp(Tisdale!$E$2:$F$14,V159) -> 0 | X159: 9550
A160: 2000-05-30 | B160: 2000 | C160: =Historical!B158 -> 0 | D160: 0 | E160: =Historical!C158 -> 0 | F160: 0 | G160: 0 | H160: 482588.9256 | I160: =VLOOKUP(B160,'EOS Storage'!$H$5:$M$28,6) -> 111 | J160: 0 | K160: 111000 | L160: 0 | M160: 0 | N160: 0 | O160: 0 | P160: 9550 | Q160: =Tisdale!B152 -> 0 | R160: =P160+Tisdale!B152 -> 9550 | S160: 9550 | T160: =intrp(Tisdale!$E$2:$F$14,S160) -> 0 | U160: 9550 | V160: 9550 | W160: =intrp(Tisdale!$E$2:$F$14,V160) -> 0 | X160: 9550
A161: 2000-05-31 | B161: 2000 | C161: =Historical!B159 -> 0 | D161: 0 | E161: =Historical!C159 -> 0 | F161: 0 | G161: 0 | H161: 482588.9256 | I161: =VLOOKUP(B161,'EOS Storage'!$H$5:$M$28,6) -> 111 | J161: 0 | K161: 111000 | L161: 0 | M161: 0 | N161: 0 | O161: 0 | P161: 9300 | Q161: =Tisdale!B153 -> 0 | R161: =P161+Tisdale!B153 -> 9300 | S161: 9300 | T161: =intrp(Tisdale!$E$2:$F$14,S161) -> 0 | U161: 9300 | V161: 9300 | W161: =intrp(Tisdale!$E$2:$F$14,V161) -> 0 | X161: 9300
A162: 2000-06-01 | B162: 2000 | C162: =Historical!B160 -> 0 | D162: 0 | E162: =Historical!C160 -> 0 | F162: 0 | G162: 0 | H162: 482588.9256 | I162: =VLOOKUP(B162,'EOS Storage'!$H$5:$M$28,6) -> 111 | J162: 0 | K162: 111000 | L162: 0 | M162: 0 | N162: 0 | O162: 0 | P162: 9200 | Q162: =Tisdale!B154 -> 0 | R162: =P162+Tisdale!B154 -> 9200 | S162: 9200 | T162: =intrp(Tisdale!$E$2:$F$14,S162) -> 0 | U162: 9200 | V162: 9200 | W162: =intrp(Tisdale!$E$2:$F$14,V162) -> 0 | X162: 9200
A163: 2000-06-02 | B163: 2000 | C163: =Historical!B161 -> 0 | D163: 0 | E163: =Historical!C161 -> 0 | F163: 0 | G163: 0 | H163: 482588.9256 | I163: =VLOOKUP(B163,'EOS Storage'!$H$5:$M$28,6) -> 111 | J163: 0 | K163: 111000 | L163: 0 | M163: 0 | N163: 0 | O163: 0 | P163: 8960 | Q163: =Tisdale!B155 -> 0 | R163: =P163+Tisdale!B155 -> 8960 | S163: 8960 | T163: =intrp(Tisdale!$E$2:$F$14,S163) -> 0 | U163: 8960 | V163: 8960 | W163: =intrp(Tisdale!$E$2:$F$14,V163) -> 0 | X163: 8960
A164: 2000-06-03 | B164: 2000 | C164: =Historical!B162 -> 0 | D164: 0 | E164: =Historical!C162 -> 0 | F164: 0 | G164: 0 | H164: 482588.9256 | I164: =VLOOKUP(B164,'EOS Storage'!$H$5:$M$28,6) -> 111 | J164: 0 | K164: 111000 | L164: 0 | M164: 0 | N164: 0 | O164: 0 | P164: 8410 | Q164: =Tisdale!B156 -> 0 | R164: =P164+Tisdale!B156 -> 8410 | S164: 8410 | T164: =intrp(Tisdale!$E$2:$F$14,S164) -> 0 | U164: 8410 | V164: 8410 | W164: =intrp(Tisdale!$E$2:$F$14,V164) -> 0 | X164: 8410
A165: 2000-06-04 | B165: 2000 | C165: =Historical!B163 -> 0 | D165: 0 | E165: =Historical!C163 -> 0 | F165: 0 | G165: 0 | H165: 482588.9256 | I165: =VLOOKUP(B165,'EOS Storage'!$H$5:$M$28,6) -> 111 | J165: 0 | K165: 111000 | L165: 0 | M165: 0 | N165: 0 | O165: 0 | P165: 8070 | Q165: =Tisdale!B157 -> 0 | R165: =P165+Tisdale!B157 -> 8070 | S165: 8070 | T165: =intrp(Tisdale!$E$2:$F$14,S165) -> 0 | U165: 8070 | V165: 8070 | W165: =intrp(Tisdale!$E$2:$F$14,V165) -> 0 | X165: 8070
A166: 2000-06-05 | B166: 2000 | C166: =Historical!B164 -> 0 | D166: 0 | E166: =Historical!C164 -> 0 | F166: 0 | G166: 0 | H166: 482588.9256 | I166: =VLOOKUP(B166,'EOS Storage'!$H$5:$M$28,6) -> 111 | J166: 0 | K166: 111000 | L166: 0 | M166: 0 | N166: 0 | O166: 0 | P166: 7960 | Q166: =Tisdale!B158 -> 0 | R166: =P166+Tisdale!B158 -> 7960 | S166: 7960 | T166: =intrp(Tisdale!$E$2:$F$14,S166) -> 0 | U166: 7960 | V166: 7960 | W166: =intrp(Tisdale!$E$2:$F$14,V166) -> 0 | X166: 7960
A167: 2000-06-06 | B167: 2000 | C167: =Historical!B165 -> 0 | D167: 0 | E167: =Historical!C165 -> 0 | F167: 0 | G167: 0 | H167: 482588.9256 | I167: =VLOOKUP(B167,'EOS Storage'!$H$5:$M$28,6) -> 111 | J167: 0 | K167: 111000 | L167: 0 | M167: 0 | N167: 0 | O167: 0 | P167: 7730 | Q167: =Tisdale!B159 -> 0 | R167: =P167+Tisdale!B159 -> 7730 | S167: 7730 | T167: =intrp(Tisdale!$E$2:$F$14,S167) -> 0 | U167: 7730 | V167: 7730 | W167: =intrp(Tisdale!$E$2:$F$14,V167) -> 0 | X167: 7730
A168: 2000-06-07 | B168: 2000 | C168: =Historical!B166 -> 0 | D168: 0 | E168: =Historical!C166 -> 0 | F168: 0 | G168: 0 | H168: 482588.9256 | I168: =VLOOKUP(B168,'EOS Storage'!$H$5:$M$28,6) -> 111 | J168: 0 | K168: 111000 | L168: 0 | M168: 0 | N168: 0 | O168: 0 | P168: 7280 | Q168: =Tisdale!B160 -> 0 | R168: =P168+Tisdale!B160 -> 7280 | S168: 7280 | T168: =intrp(Tisdale!$E$2:$F$14,S168) -> 0 | U168: 7280 | V168: 7280 | W168: =intrp(Tisdale!$E$2:$F$14,V168) -> 0 | X168: 7280
A169: 2000-06-08 | B169: 2000 | C169: =Historical!B167 -> 0 | D169: 0 | E169: =Historical!C167 -> 0 | F169: 0 | G169: 0 | H169: 482588.9256 | I169: =VLOOKUP(B169,'EOS Storage'!$H$5:$M$28,6) -> 111 | J169: 0 | K169: 111000 | L169: 0 | M169: 0 | N169: 0 | O169: 0 | P169: 7400 | Q169: =Tisdale!B161 -> 0 | R169: =P169+Tisdale!B161 -> 7400 | S169: 7400 | T169: =intrp(Tisdale!$E$2:$F$14,S169) -> 0 | U169: 7400 | V169: 7400 | W169: =intrp(Tisdale!$E$2:$F$14,V169) -> 0 | X169: 7400
A170: 2000-06-09 | B170: 2000 | C170: =Historical!B168 -> 0 | D170: 0 | E170: =Historical!C168 -> 0 | F170: 0 | G170: 0 | H170: 482588.9256 | I170: =VLOOKUP(B170,'EOS Storage'!$H$5:$M$28,6) -> 111 | J170: 0 | K170: 111000 | L170: 0 | M170: 0 | N170: 0 | O170: 0 | P170: 7700 | Q170: =Tisdale!B162 -> 0 | R170: =P170+Tisdale!B162 -> 7700 | S170: 7700 | T170: =intrp(Tisdale!$E$2:$F$14,S170) -> 0 | U170: 7700 | V170: 7700 | W170: =intrp(Tisdale!$E$2:$F$14,V170) -> 0 | X170: 7700
A171: 2000-06-10 | B171: 2000 | C171: =Historical!B169 -> 0 | D171: 0 | E171: =Historical!C169 -> 0 | F171: 0 | G171: 0 | H171: 482588.9256 | I171: =VLOOKUP(B171,'EOS Storage'!$H$5:$M$28,6) -> 111 | J171: 0 | K171: 111000 | L171: 0 | M171: 0 | N171: 0 | O171: 0 | P171: 7900 | Q171: =Tisdale!B163 -> 0 | R171: =P171+Tisdale!B163 -> 7900 | S171: 7900 | T171: =intrp(Tisdale!$E$2:$F$14,S171) -> 0 | U171: 7900 | V171: 7900 | W171: =intrp(Tisdale!$E$2:$F$14,V171) -> 0 | X171: 7900
A172: 2000-06-11 | B172: 2000 | C172: =Historical!B170 -> 0 | D172: 0 | E172: =Historical!C170 -> 0 | F172: 0 | G172: 0 | H172: 482588.9256 | I172: =VLOOKUP(B172,'EOS Storage'!$H$5:$M$28,6) -> 111 | J172: 0 | K172: 111000 | L172: 0 | M172: 0 | N172: 0 | O172: 0 | P172: 8000 | Q172: =Tisdale!B164 -> 0 | R172: =P172+Tisdale!B164 -> 8000 | S172: 8000 | T172: =intrp(Tisdale!$E$2:$F$14,S172) -> 0 | U172: 8000 | V172: 8000 | W172: =intrp(Tisdale!$E$2:$F$14,V172) -> 0 | X172: 8000
A173: 2000-06-12 | B173: 2000 | C173: =Historical!B171 -> 0 | D173: 0 | E173: =Historical!C171 -> 0 | F173: 0 | G173: 0 | H173: 482588.9256 | I173: =VLOOKUP(B173,'EOS Storage'!$H$5:$M$28,6) -> 111 | J173: 0 | K173: 111000 | L173: 0 | M173: 0 | N173: 0 | O173: 0 | P173: 8000 | Q173: =Tisdale!B165 -> 0 | R173: =P173+Tisdale!B165 -> 8000 | S173: 8000 | T173: =intrp(Tisdale!$E$2:$F$14,S173) -> 0 | U173: 8000 | V173: 8000 | W173: =intrp(Tisdale!$E$2:$F$14,V173) -> 0 | X173: 8000
A174: 2000-06-13 | B174: 2000 | C174: =Historical!B172 -> 0 | D174: 0 | E174: =Historical!C172 -> 0 | F174: 0 | G174: 0 | H174: 482588.9256 | I174: =VLOOKUP(B174,'EOS Storage'!$H$5:$M$28,6) -> 111 | J174: 0 | K174: 111000 | L174: 0 | M174: 0 | N174: 0 | O174: 0 | P174: 8030 | Q174: =Tisdale!B166 -> 0 | R174: =P174+Tisdale!B166 -> 8030 | S174: 8030 | T174: =intrp(Tisdale!$E$2:$F$14,S174) -> 0 | U174: 8030 | V174: 8030 | W174: =intrp(Tisdale!$E$2:$F$14,V174) -> 0 | X174: 8030
A175: 2000-06-14 | B175: 2000 | C175: =Historical!B173 -> 0 | D175: 0 | E175: =Historical!C173 -> 0 | F175: 0 | G175: 0 | H175: 482588.9256 | I175: =VLOOKUP(B175,'EOS Storage'!$H$5:$M$28,6) -> 111 | J175: 0 | K175: 111000 | L175: 0 | M175: 0 | N175: 0 | O175: 0 | P175: 8980 | Q175: =Tisdale!B167 -> 0 | R175: =P175+Tisdale!B167 -> 8980 | S175: 8980 | T175: =intrp(Tisdale!$E$2:$F$14,S175) -> 0 | U175: 8980 | V175: 8980 | W175: =intrp(Tisdale!$E$2:$F$14,V175) -> 0 | X175: 8980
A176: 2000-06-15 | B176: 2000 | C176: =Historical!B174 -> 0 | D176: 0 | E176: =Historical!C174 -> 0 | F176: 0 | G176: 0 | H176: 482588.9256 | I176: =VLOOKUP(B176,'EOS Storage'!$H$5:$M$28,6) -> 111 | J176: 0 | K176: 111000 | L176: 0 | M176: 0 | N176: 0 | O176: 0 | P176: 9490 | Q176: =Tisdale!B168 -> 0 | R176: =P176+Tisdale!B168 -> 9490 | S176: 9490 | T176: =intrp(Tisdale!$E$2:$F$14,S176) -> 0 | U176: 9490 | V176: 9490 | W176: =intrp(Tisdale!$E$2:$F$14,V176) -> 0 | X176: 9490
A177: 2000-06-16 | B177: 2000 | C177: =Historical!B175 -> 0 | D177: 0 | E177: =Historical!C175 -> 0 | F177: 0 | G177: 0 | H177: 482588.9256 | I177: =VLOOKUP(B177,'EOS Storage'!$H$5:$M$28,6) -> 111 | J177: 0 | K177: 111000 | L177: 0 | M177: 0 | N177: 0 | O177: 0 | P177: 9360 | Q177: =Tisdale!B169 -> 0 | R177: =P177+Tisdale!B169 -> 9360 | S177: 9360 | T177: =intrp(Tisdale!$E$2:$F$14,S177) -> 0 | U177: 9360 | V177: 9360 | W177: =intrp(Tisdale!$E$2:$F$14,V177) -> 0 | X177: 9360
A178: 2000-06-17 | B178: 2000 | C178: =Historical!B176 -> 0 | D178: 0 | E178: =Historical!C176 -> 0 | F178: 0 | G178: 0 | H178: 482588.9256 | I178: =VLOOKUP(B178,'EOS Storage'!$H$5:$M$28,6) -> 111 | J178: 0 | K178: 111000 | L178: 0 | M178: 0 | N178: 0 | O178: 0 | P178: 9050 | Q178: =Tisdale!B170 -> 0 | R178: =P178+Tisdale!B170 -> 9050 | S178: 9050 | T178: =intrp(Tisdale!$E$2:$F$14,S178) -> 0 | U178: 9050 | V178: 9050 | W178: =intrp(Tisdale!$E$2:$F$14,V178) -> 0 | X178: 9050
A179: 2000-06-18 | B179: 2000 | C179: =Historical!B177 -> 0 | D179: 0 | E179: =Historical!C177 -> 0 | F179: 0 | G179: 0 | H179: 482588.9256 | I179: =VLOOKUP(B179,'EOS Storage'!$H$5:$M$28,6) -> 111 | J179: 0 | K179: 111000 | L179: 0 | M179: 0 | N179: 0 | O179: 0 | P179: 8560 | Q179: =Tisdale!B171 -> 0 | R179: =P179+Tisdale!B171 -> 8560 | S179: 8560 | T179: =intrp(Tisdale!$E$2:$F$14,S179) -> 0 | U179: 8560 | V179: 8560 | W179: =intrp(Tisdale!$E$2:$F$14,V179) -> 0 | X179: 8560
A180: 2000-06-19 | B180: 2000 | C180: =Historical!B178 -> 0 | D180: 0 | E180: =Historical!C178 -> 0 | F180: 0 | G180: 0 | H180: 482588.9256 | I180: =VLOOKUP(B180,'EOS Storage'!$H$5:$M$28,6) -> 111 | J180: 0 | K180: 111000 | L180: 0 | M180: 0 | N180: 0 | O180: 0 | P180: 8300 | Q180: =Tisdale!B172 -> 0 | R180: =P180+Tisdale!B172 -> 8300 | S180: 8300 | T180: =intrp(Tisdale!$E$2:$F$14,S180) -> 0 | U180: 8300 | V180: 8300 | W180: =intrp(Tisdale!$E$2:$F$14,V180) -> 0 | X180: 8300
A181: 2000-06-20 | B181: 2000 | C181: =Historical!B179 -> 0 | D181: 0 | E181: =Historical!C179 -> 0 | F181: 0 | G181: 0 | H181: 482588.9256 | I181: =VLOOKUP(B181,'EOS Storage'!$H$5:$M$28,6) -> 111 | J181: 0 | K181: 111000 | L181: 0 | M181: 0 | N181: 0 | O181: 0 | P181: 8050 | Q181: =Tisdale!B173 -> 0 | R181: =P181+Tisdale!B173 -> 8050 | S181: 8050 | T181: =intrp(Tisdale!$E$2:$F$14,S181) -> 0 | U181: 8050 | V181: 8050 | W181: =intrp(Tisdale!$E$2:$F$14,V181) -> 0 | X181: 8050
A182: 2000-06-21 | B182: 2000 | C182: =Historical!B180 -> 0 | D182: 0 | E182: =Historical!C180 -> 0 | F182: 0 | G182: 0 | H182: 482588.9256 | I182: =VLOOKUP(B182,'EOS Storage'!$H$5:$M$28,6) -> 111 | J182: 0 | K182: 111000 | L182: 0 | M182: 0 | N182: 0 | O182: 0 | P182: 7830 | Q182: =Tisdale!B174 -> 0 | R182: =P182+Tisdale!B174 -> 7830 | S182: 7830 | T182: =intrp(Tisdale!$E$2:$F$14,S182) -> 0 | U182: 7830 | V182: 7830 | W182: =intrp(Tisdale!$E$2:$F$14,V182) -> 0 | X182: 7830
A183: 2000-06-22 | B183: 2000 | C183: =Historical!B181 -> 0 | D183: 0 | E183: =Historical!C181 -> 0 | F183: 0 | G183: 0 | H183: 482588.9256 | I183: =VLOOKUP(B183,'EOS Storage'!$H$5:$M$28,6) -> 111 | J183: 0 | K183: 111000 | L183: 0 | M183: 0 | N183: 0 | O183: 0 | P183: 8070 | Q183: =Tisdale!B175 -> 0 | R183: =P183+Tisdale!B175 -> 8070 | S183: 8070 | T183: =intrp(Tisdale!$E$2:$F$14,S183) -> 0 | U183: 8070 | V183: 8070 | W183: =intrp(Tisdale!$E$2:$F$14,V183) -> 0 | X183: 8070
A184: 2000-06-23 | B184: 2000 | C184: =Historical!B182 -> 0 | D184: 0 | E184: =Historical!C182 -> 0 | F184: 0 | G184: 0 | H184: 482588.9256 | I184: =VLOOKUP(B184,'EOS Storage'!$H$5:$M$28,6) -> 111 | J184: 0 | K184: 111000 | L184: 0 | M184: 0 | N184: 0 | O184: 0 | P184: 7970 | Q184: =Tisdale!B176 -> 0 | R184: =P184+Tisdale!B176 -> 7970 | S184: 7970 | T184: =intrp(Tisdale!$E$2:$F$14,S184) -> 0 | U184: 7970 | V184: 7970 | W184: =intrp(Tisdale!$E$2:$F$14,V184) -> 0 | X184: 7970
A185: 2000-06-24 | B185: 2000 | C185: =Historical!B183 -> 0 | D185: 0 | E185: =Historical!C183 -> 0 | F185: 0 | G185: 0 | H185: 482588.9256 | I185: =VLOOKUP(B185,'EOS Storage'!$H$5:$M$28,6) -> 111 | J185: 0 | K185: 111000 | L185: 0 | M185: 0 | N185: 0 | O185: 0 | P185: 7690 | Q185: =Tisdale!B177 -> 0 | R185: =P185+Tisdale!B177 -> 7690 | S185: 7690 | T185: =intrp(Tisdale!$E$2:$F$14,S185) -> 0 | U185: 7690 | V185: 7690 | W185: =intrp(Tisdale!$E$2:$F$14,V185) -> 0 | X185: 7690
A186: 2000-06-25 | B186: 2000 | C186: =Historical!B184 -> 0 | D186: 0 | E186: =Historical!C184 -> 0 | F186: 0 | G186: 0 | H186: 482588.9256 | I186: =VLOOKUP(B186,'EOS Storage'!$H$5:$M$28,6) -> 111 | J186: 0 | K186: 111000 | L186: 0 | M186: 0 | N186: 0 | O186: 0 | P186: 7710 | Q186: =Tisdale!B178 -> 0 | R186: =P186+Tisdale!B178 -> 7710 | S186: 7710 | T186: =intrp(Tisdale!$E$2:$F$14,S186) -> 0 | U186: 7710 | V186: 7710 | W186: =intrp(Tisdale!$E$2:$F$14,V186) -> 0 | X186: 7710
A187: 2000-06-26 | B187: 2000 | C187: =Historical!B185 -> 0 | D187: 0 | E187: =Historical!C185 -> 0 | F187: 0 | G187: 0 | H187: 482588.9256 | I187: =VLOOKUP(B187,'EOS Storage'!$H$5:$M$28,6) -> 111 | J187: 0 | K187: 111000 | L187: 0 | M187: 0 | N187: 0 | O187: 0 | P187: 7930 | Q187: =Tisdale!B179 -> 0 | R187: =P187+Tisdale!B179 -> 7930 | S187: 7930 | T187: =intrp(Tisdale!$E$2:$F$14,S187) -> 0 | U187: 7930 | V187: 7930 | W187: =intrp(Tisdale!$E$2:$F$14,V187) -> 0 | X187: 7930
A188: 2000-06-27 | B188: 2000 | C188: =Historical!B186 -> 0 | D188: 0 | E188: =Historical!C186 -> 0 | F188: 0 | G188: 0 | H188: 482588.9256 | I188: =VLOOKUP(B188,'EOS Storage'!$H$5:$M$28,6) -> 111 | J188: 0 | K188: 111000 | L188: 0 | M188: 0 | N188: 0 | O188: 0 | P188: 8130 | Q188: =Tisdale!B180 -> 0 | R188: =P188+Tisdale!B180 -> 8130 | S188: 8130 | T188: =intrp(Tisdale!$E$2:$F$14,S188) -> 0 | U188: 8130 | V188: 8130 | W188: =intrp(Tisdale!$E$2:$F$14,V188) -> 0 | X188: 8130
A189: 2000-06-28 | B189: 2000 | C189: =Historical!B187 -> 0 | D189: 0 | E189: =Historical!C187 -> 0 | F189: 0 | G189: 0 | H189: 482588.9256 | I189: =VLOOKUP(B189,'EOS Storage'!$H$5:$M$28,6) -> 111 | J189: 0 | K189: 111000 | L189: 0 | M189: 0 | N189: 0 | O189: 0 | P189: 8200 | Q189: =Tisdale!B181 -> 0 | R189: =P189+Tisdale!B181 -> 8200 | S189: 8200 | T189: =intrp(Tisdale!$E$2:$F$14,S189) -> 0 | U189: 8200 | V189: 8200 | W189: =intrp(Tisdale!$E$2:$F$14,V189) -> 0 | X189: 8200
A190: 2000-06-29 | B190: 2000 | C190: =Historical!B188 -> 0 | D190: 0 | E190: =Historical!C188 -> 0 | F190: 0 | G190: 0 | H190: 482588.9256 | I190: =VLOOKUP(B190,'EOS Storage'!$H$5:$M$28,6) -> 111 | J190: 0 | K190: 111000 | L190: 0 | M190: 0 | N190: 0 | O190: 0 | P190: 8410 | Q190: =Tisdale!B182 -> 0 | R190: =P190+Tisdale!B182 -> 8410 | S190: 8410 | T190: =intrp(Tisdale!$E$2:$F$14,S190) -> 0 | U190: 8410 | V190: 8410 | W190: =intrp(Tisdale!$E$2:$F$14,V190) -> 0 | X190: 8410
A191: 2000-06-30 | B191: 2000 | C191: =Historical!B189 -> 0 | D191: 0 | E191: =Historical!C189 -> 0 | F191: 0 | G191: 0 | H191: 482588.9256 | I191: =VLOOKUP(B191,'EOS Storage'!$H$5:$M$28,6) -> 111 | J191: 0 | K191: 111000 | L191: 0 | M191: 0 | N191: 0 | O191: 0 | P191: 8580 | Q191: =Tisdale!B183 -> 0 | R191: =P191+Tisdale!B183 -> 8580 | S191: 8580 | T191: =intrp(Tisdale!$E$2:$F$14,S191) -> 0 | U191: 8580 | V191: 8580 | W191: =intrp(Tisdale!$E$2:$F$14,V191) -> 0 | X191: 8580
A192: 2000-07-01 | B192: 2000 | C192: =Historical!B190 -> 0 | D192: 0 | E192: =Historical!C190 -> 0 | F192: 0 | G192: 0 | H192: 482588.9256 | I192: =VLOOKUP(B192,'EOS Storage'!$H$5:$M$28,6) -> 111 | J192: 0 | K192: 111000 | L192: 0 | M192: 0 | N192: 0 | O192: 0 | P192: 8760 | Q192: =Tisdale!B184 -> 0 | R192: =P192+Tisdale!B184 -> 8760 | S192: 8760 | T192: =intrp(Tisdale!$E$2:$F$14,S192) -> 0 | U192: 8760 | V192: 8760 | W192: =intrp(Tisdale!$E$2:$F$14,V192) -> 0 | X192: 8760
A193: 2000-07-02 | B193: 2000 | C193: =Historical!B191 -> 0 | D193: 0 | E193: =Historical!C191 -> 0 | F193: 0 | G193: 0 | H193: 482588.9256 | I193: =VLOOKUP(B193,'EOS Storage'!$H$5:$M$28,6) -> 111 | J193: 0 | K193: 111000 | L193: 0 | M193: 0 | N193: 0 | O193: 0 | P193: 8700 | Q193: =Tisdale!B185 -> 0 | R193: =P193+Tisdale!B185 -> 8700 | S193: 8700 | T193: =intrp(Tisdale!$E$2:$F$14,S193) -> 0 | U193: 8700 | V193: 8700 | W193: =intrp(Tisdale!$E$2:$F$14,V193) -> 0 | X193: 8700
A194: 2000-07-03 | B194: 2000 | C194: =Historical!B192 -> 0 | D194: 0 | E194: =Historical!C192 -> 0 | F194: 0 | G194: 0 | H194: 482588.9256 | I194: =VLOOKUP(B194,'EOS Storage'!$H$5:$M$28,6) -> 111 | J194: 0 | K194: 111000 | L194: 0 | M194: 0 | N194: 0 | O194: 0 | P194: 8700 | Q194: =Tisdale!B186 -> 0 | R194: =P194+Tisdale!B186 -> 8700 | S194: 8700 | T194: =intrp(Tisdale!$E$2:$F$14,S194) -> 0 | U194: 8700 | V194: 8700 | W194: =intrp(Tisdale!$E$2:$F$14,V194) -> 0 | X194: 8700
A195: 2000-07-04 | B195: 2000 | C195: =Historical!B193 -> 0 | D195: 0 | E195: =Historical!C193 -> 0 | F195: 0 | G195: 0 | H195: 482588.9256 | I195: =VLOOKUP(B195,'EOS Storage'!$H$5:$M$28,6) -> 111 | J195: 0 | K195: 111000 | L195: 0 | M195: 0 | N195: 0 | O195: 0 | P195: 8930 | Q195: =Tisdale!B187 -> 0 | R195: =P195+Tisdale!B187 -> 8930 | S195: 8930 | T195: =intrp(Tisdale!$E$2:$F$14,S195) -> 0 | U195: 8930 | V195: 8930 | W195: =intrp(Tisdale!$E$2:$F$14,V195) -> 0 | X195: 8930
A196: 2000-07-05 | B196: 2000 | C196: =Historical!B194 -> 0 | D196: 0 | E196: =Historical!C194 -> 0 | F196: 0 | G196: 0 | H196: 482588.9256 | I196: =VLOOKUP(B196,'EOS Storage'!$H$5:$M$28,6) -> 111 | J196: 0 | K196: 111000 | L196: 0 | M196: 0 | N196: 0 | O196: 0 | P196: 9080 | Q196: =Tisdale!B188 -> 0 | R196: =P196+Tisdale!B188 -> 9080 | S196: 9080 | T196: =intrp(Tisdale!$E$2:$F$14,S196) -> 0 | U196: 9080 | V196: 9080 | W196: =intrp(Tisdale!$E$2:$F$14,V196) -> 0 | X196: 9080
A197: 2000-07-06 | B197: 2000 | C197: =Historical!B195 -> 0 | D197: 0 | E197: =Historical!C195 -> 0 | F197: 0 | G197: 0 | H197: 482588.9256 | I197: =VLOOKUP(B197,'EOS Storage'!$H$5:$M$28,6) -> 111 | J197: 0 | K197: 111000 | L197: 0 | M197: 0 | N197: 0 | O197: 0 | P197: 9660 | Q197: =Tisdale!B189 -> 0 | R197: =P197+Tisdale!B189 -> 9660 | S197: 9660 | T197: =intrp(Tisdale!$E$2:$F$14,S197) -> 0 | U197: 9660 | V197: 9660 | W197: =intrp(Tisdale!$E$2:$F$14,V197) -> 0 | X197: 9660
A198: 2000-07-07 | B198: 2000 | C198: =Historical!B196 -> 0 | D198: 0 | E198: =Historical!C196 -> 0 | F198: 0 | G198: 0 | H198: 482588.9256 | I198: =VLOOKUP(B198,'EOS Storage'!$H$5:$M$28,6) -> 111 | J198: 0 | K198: 111000 | L198: 0 | M198: 0 | N198: 0 | O198: 0 | P198: 9770 | Q198: =Tisdale!B190 -> 0 | R198: =P198+Tisdale!B190 -> 9770 | S198: 9770 | T198: =intrp(Tisdale!$E$2:$F$14,S198) -> 0 | U198: 9770 | V198: 9770 | W198: =intrp(Tisdale!$E$2:$F$14,V198) -> 0 | X198: 9770
A199: 2000-07-08 | B199: 2000 | C199: =Historical!B197 -> 0 | D199: 0 | E199: =Historical!C197 -> 0 | F199: 0 | G199: 0 | H199: 482588.9256 | I199: =VLOOKUP(B199,'EOS Storage'!$H$5:$M$28,6) -> 111 | J199: 0 | K199: 111000 | L199: 0 | M199: 0 | N199: 0 | O199: 0 | P199: 9730 | Q199: =Tisdale!B191 -> 0 | R199: =P199+Tisdale!B191 -> 9730 | S199: 9730 | T199: =intrp(Tisdale!$E$2:$F$14,S199) -> 0 | U199: 9730 | V199: 9730 | W199: =intrp(Tisdale!$E$2:$F$14,V199) -> 0 | X199: 9730
A200: 2000-07-09 | B200: 2000 | C200: =Historical!B198 -> 0 | D200: 0 | E200: =Historical!C198 -> 0 | F200: 0 | G200: 0 | H200: 482588.9256 | I200: =VLOOKUP(B200,'EOS Storage'!$H$5:$M$28,6) -> 111 | J200: 0 | K200: 111000 | L200: 0 | M200: 0 | N200: 0 | O200: 0 | P200: 9800 | Q200: =Tisdale!B192 -> 0 | R200: =P200+Tisdale!B192 -> 9800 | S200: 9800 | T200: =intrp(Tisdale!$E$2:$F$14,S200) -> 0 | U200: 9800 | V200: 9800 | W200: =intrp(Tisdale!$E$2:$F$14,V200) -> 0 | X200: 9800
A201: 2000-07-10 | B201: 2000 | C201: =Historical!B199 -> 0 | D201: 0 | E201: =Historical!C199 -> 0 | F201: 0 | G201: 0 | H201: 482588.9256 | I201: =VLOOKUP(B201,'EOS Storage'!$H$5:$M$28,6) -> 111 | J201: 0 | K201: 111000 | L201: 0 | M201: 0 | N201: 0 | O201: 0 | P201: 9860 | Q201: =Tisdale!B193 -> 0 | R201: =P201+Tisdale!B193 -> 9860 | S201: 9860 | T201: =intrp(Tisdale!$E$2:$F$14,S201) -> 0 | U201: 9860 | V201: 9860 | W201: =intrp(Tisdale!$E$2:$F$14,V201) -> 0 | X201: 9860
... 2049 more rows

Sheet Wilkins Graph (with FV)

Sheet Tisdale
A1: Date | B1: Tisdale Spill | E1: Sac R upstream of Tisdale Weir (cfs) | F1: Tisdale Weir Spill (cfs)
A2: 2000-01-01 | B2: 0 | E2: 0 | F2: 0
A3: 2000-01-02 | B3: 0 | E3: 23500 | F3: 0
A4: 2000-01-03 | B4: 0 | E4: 26200 | F4: 2000
A5: 2000-01-04 | B5: 0 | E5: 27600 | F5: 3000
A6: 2000-01-05 | B6: 0 | E6: 29600 | F6: 4000
A7: 2000-01-06 | B7: 0 | E7: 32000 | F7: 6000
A8: 2000-01-07 | B8: 0 | E8: 37000 | F8: 10000
A9: 2000-01-08 | B9: 0 | E9: 42500 | F9: 15000
A10: 2000-01-09 | B10: 0 | E10: 50400 | F10: 22000
A11: 2000-01-10 | B11: 0 | E11: 59000 | F11: 30000
A12: 2000-01-11 | B12: 0 | E12: 69600 | F12: 40000
A13: 2000-01-12 | B13: 0 | E13: 82400 | F13: 52000
A14: 2000-01-13 | B14: 0 | E14: 96000 | F14: 65000
A15: 2000-01-14 | B15: 0
A16: 2000-01-15 | B16: 0
A17: 2000-01-16 | B17: 0
A18: 2000-01-17 | B18: 14822.6
A19: 2000-01-18 | B19: 14568
A20: 2000-01-19 | B20: 0
A21: 2000-01-20 | B21: 0
A22: 2000-01-21 | B22: 0
A23: 2000-01-22 | B23: 0
A24: 2000-01-23 | B24: 0
A25: 2000-01-24 | B25: 0
A26: 2000-01-25 | B26: 622.4
A27: 2000-01-26 | B27: 1356.41
A28: 2000-01-27 | B28: 820.66
A29: 2000-01-28 | B29: 137.77
A30: 2000-01-29 | B30: 0
A31: 2000-01-30 | B31: 0
A32: 2000-01-31 | B32: 2005.42
A33: 2000-02-01 | B33: 6429.82
A34: 2000-02-02 | B34: 3754.31
A35: 2000-02-03 | B35: 1388.27
A36: 2000-02-04 | B36: 132.97
A37: 2000-02-05 | B37: 221.67
A38: 2000-02-06 | B38: 270.14
A39: 2000-02-07 | B39: 1243.89
A40: 2000-02-08 | B40: 224.16
A41: 2000-02-09 | B41: 0
A42: 2000-02-10 | B42: 0
A43: 2000-02-11 | B43: 1027.12
A44: 2000-02-12 | B44: 6947.54
A45: 2000-02-13 | B45: 13992.46
A46: 2000-02-14 | B46: 14721.86
A47: 2000-02-15 | B47: 16028.54
A48: 2000-02-16 | B48: 16242.71
A49: 2000-02-17 | B49: 15680.26
A50: 2000-02-18 | B50: 15219.43
A51: 2000-02-19 | B51: 14823.16
A52: 2000-02-20 | B52: 14531.4
A53: 2000-02-21 | B53: 14285.76
A54: 2000-02-22 | B54: 14362.72
A55: 2000-02-23 | B55: 14685.29
A56: 2000-02-24 | B56: 15580.16
A57: 2000-02-25 | B57: 15604.85
A58: 2000-02-26 | B58: 15072.61
A59: 2000-02-27 | B59: 15075.98
A60: 2000-02-28 | B60: 15721.87
A61: 2000-02-29 | B61: 15904.65
A62: 2000-03-01 | B62: 15724.32
A63: 2000-03-02 | B63: 15725.3
A64: 2000-03-03 | B64: 15627.94
A65: 2000-03-04 | B65: 15500.8
A66: 2000-03-05 | B66: 15417.62
A67: 2000-03-06 | B67: 15813.95
A68: 2000-03-07 | B68: 16159.67
A69: 2000-03-08 | B69: 15703.64
A70: 2000-03-09 | B70: 15346.4
A71: 2000-03-10 | B71: 15393.76
A72: 2000-03-11 | B72: 15370.6
A73: 2000-03-12 | B73: 14930.98
A74: 2000-03-13 | B74: 14288.83
A75: 2000-03-14 | B75: 13602.11
A76: 2000-03-15 | B76: 12346.2
A77: 2000-03-16 | B77: 8807.18
A78: 2000-03-17 | B78: 4156.69
A79: 2000-03-18 | B79: 1424.91
A80: 2000-03-19 | B80: 192.45
A81: 2000-03-20 | B81: 0
A82: 2000-03-21 | B82: 0
A83: 2000-03-22 | B83: 0
A84: 2000-03-23 | B84: 0
A85: 2000-03-24 | B85: 0
A86: 2000-03-25 | B86: 0
A87: 2000-03-26 | B87: 0
A88: 2000-03-27 | B88: 0
A89: 2000-03-28 | B89: 0
A90: 2000-03-29 | B90: 0
A91: 2000-03-30 | B91: 0
A92: 2000-03-31 | B92: 0
A93: 2000-04-01 | B93: 0
A94: 2000-04-02 | B94: 0
A95: 2000-04-03 | B95: 0
A96: 2000-04-04 | B96: 0
A97: 2000-04-05 | B97: 0
A98: 2000-04-06 | B98: 0
A99: 2000-04-07 | B99: 0
A100: 2000-04-08 | B100: 0
A101: 2000-04-09 | B101: 0
A102: 2000-04-10 | B102: 0
A103: 2000-04-11 | B103: 0
A104: 2000-04-12 | B104: 0
A105: 2000-04-13 | B105: 0
A106: 2000-04-14 | B106: 0
A107: 2000-04-15 | B107: 0
A108: 2000-04-16 | B108: 0
A109: 2000-04-17 | B109: 0
A110: 2000-04-18 | B110: 0
A111: 2000-04-19 | B111: 0
A112: 2000-04-20 | B112: 0
A113: 2000-04-21 | B113: 0
A114: 2000-04-22 | B114: 0
A115: 2000-04-23 | B115: 0
A116: 2000-04-24 | B116: 0
A117: 2000-04-25 | B117: 0
A118: 2000-04-26 | B118: 0
A119: 2000-04-27 | B119: 0
A120: 2000-04-28 | B120: 0
A121: 2000-04-29 | B121: 0
A122: 2000-04-30 | B122: 0
A123: 2000-05-01 | B123: 0
A124: 2000-05-02 | B124: 0
A125: 2000-05-03 | B125: 0
A126: 2000-05-04 | B126: 0
A127: 2000-05-05 | B127: 0
A128: 2000-05-06 | B128: 0
A129: 2000-05-07 | B129: 0
A130: 2000-05-08 | B130: 0
A131: 2000-05-09 | B131: 0
A132: 2000-05-10 | B132: 0
A133: 2000-05-11 | B133: 0
A134: 2000-05-12 | B134: 0
A135: 2000-05-13 | B135: 0
A136: 2000-05-14 | B136: 0
A137: 2000-05-15 | B137: 0
A138: 2000-05-16 | B138: 0
A139: 2000-05-17 | B139: 0
A140: 2000-05-18 | B140: 0
A141: 2000-05-19 | B141: 0
A142: 2000-05-20 | B142: 0
A143: 2000-05-21 | B143: 0
A144: 2000-05-22 | B144: 0
A145: 2000-05-23 | B145: 0
A146: 2000-05-24 | B146: 0
A147: 2000-05-25 | B147: 0
A148: 2000-05-26 | B148: 0
A149: 2000-05-27 | B149: 0
A150: 2000-05-28 | B150: 0
A151: 2000-05-29 | B151: 0
A152: 2000-05-30 | B152: 0
A153: 2000-05-31 | B153: 0
A154: 2000-06-01 | B154: 0
A155: 2000-06-02 | B155: 0
A156: 2000-06-03 | B156: 0
A157: 2000-06-04 | B157: 0
A158: 2000-06-05 | B158: 0
A159: 2000-06-06 | B159: 0
A160: 2000-06-07 | B160: 0
A161: 2000-06-08 | B161: 0
A162: 2000-06-09 | B162: 0
A163: 2000-06-10 | B163: 0
A164: 2000-06-11 | B164: 0
A165: 2000-06-12 | B165: 0
A166: 2000-06-13 | B166: 0
A167: 2000-06-14 | B167: 0
A168: 2000-06-15 | B168: 0
A169: 2000-06-16 | B169: 0
A170: 2000-06-17 | B170: 0
A171: 2000-06-18 | B171: 0
A172: 2000-06-19 | B172: 0
A173: 2000-06-20 | B173: 0
A174: 2000-06-21 | B174: 0
A175: 2000-06-22 | B175: 0
A176: 2000-06-23 | B176: 0
A177: 2000-06-24 | B177: 0
A178: 2000-06-25 | B178: 0
A179: 2000-06-26 | B179: 0
A180: 2000-06-27 | B180: 0
A181: 2000-06-28 | B181: 0
A182: 2000-06-29 | B182: 0
A183: 2000-06-30 | B183: 0
A184: 2000-07-01 | B184: 0
A185: 2000-07-02 | B185: 0
A186: 2000-07-03 | B186: 0
A187: 2000-07-04 | B187: 0
A188: 2000-07-05 | B188: 0
A189: 2000-07-06 | B189: 0
A190: 2000-07-07 | B190: 0
A191: 2000-07-08 | B191: 0
A192: 2000-07-09 | B192: 0
A193: 2000-07-10 | B193: 0
A194: 2000-07-11 | B194: 0
A195: 2000-07-12 | B195: 0
A196: 2000-07-13 | B196: 0
A197: 2000-07-14 | B197: 0
A198: 2000-07-15 | B198: 0
A199: 2000-07-16 | B199: 0
A200: 2000-07-17 | B200: 0
... 7745 more rows
